Workbook

Sheet 綜合報表
A1: 2330 | B1: << 請輸入欲查詢的公司 代碼，並按[更新版面] | P1: ※2013年以後公司皆只公告"以合併為主"之月營收 | V1: =基本資料!A1 -> 2330 台積電 | W1: IFRS-資產負債表 | Z1: 單位:仟元 | AB1: =基本資料!A1 -> 2330 台積電 | AC1: IFRS-損益表(累計) | AE1: 單位:仟元 | AG1: =基本資料!A1 -> 2330 台積電 | AH1: IFRS-損益表、現流表(單季) | AM1: 單位:仟元 | AO1: IFRS-附註揭露 | AS1: 單位:仟元 | BA1: 單位:仟元 | BC1: IFRS新增專區!!!! | BI1: 單位:仟元 | BQ1: 單位:仟元
P2: 月營收 | Q2: 單月營收(佰萬) | R2: 累計營收(佰萬) | S2: 單月MoM | T2: 單月YoY | U2: 合併 | V2: 以合併為主資產負債表 | W2: ='合併財報(累計)'!B2 -> 2023-12-29 | X2: ='合併財報(累計)'!C2 -> 2024-12-31 | Y2: ='合併財報(累計)'!D2 -> 2025-12-31 | Z2: ='合併財報(累計)'!F2 -> 2025-12-31 | AB2: 以合併為主損益表-累計 | AC2: ='合併財報(累計)'!B2 -> 2023-12-29 | AD2: ='合併財報(累計)'!C2 -> 2024-12-31 | AE2: ='合併財報(累計)'!D2 -> 2025-12-31 | AG2: 以合併為主損益表-單季 | AH2: ='合併財報(單季)'!B2 -> 2024-09-30 | AI2: ='合併財報(單季)'!C2 -> 2024-12-31 | AJ2: ='合併財報(單季)'!D2 -> 2025-03-31 | AK2: ='合併財報(單季)'!E2 -> 2025-06-30 | AL2: ='合併財報(單季)'!F2 -> 2025-09-30 | AM2: ='合併財報(單季)'!G2 -> 2025-12-31 | AO2: =IFRS_BS!A1&" IFRS資產負債表" -> 2330 台積電 IFRS資產負債表 | AP2: =IF(IFRS_BS!B2="","",IFRS_BS!B2) -> 2023-12-29 | AQ2: =IF(IFRS_BS!C2="","",IFRS_BS!C2) -> 2024-12-31 | AR2: =IF(IFRS_BS!D2="","",IFRS_BS!D2) -> 2025-03-31 | AS2: =IF(IFRS_BS!F2="","",IFRS_BS!F2) -> 2020-12-31 | AU2: ='IFRS_IS(Q)'!A1&" IFRS損益表(單季)" -> 2330 台積電 IFRS損益表(單季) | AV2: =IF('IFRS_IS(Q)'!B2="","",'IFRS_IS(Q)'!B2) -> 2024-12-31 | AW2: =IF('IFRS_IS(Q)'!C2="","",'IFRS_IS(Q)'!C2) -> 2025-03-31 | AX2: =IF('IFRS_IS(Q)'!D2="","",'IFRS_IS(Q)'!D2) -> 2025-06-30 | AY2: =IF('IFRS_IS(Q)'!E2="","",'IFRS_IS(Q)'!E2) -> 2025-09-30 | AZ2: =IF('IFRS_IS(Q)'!F2="","",'IFRS_IS(Q)'!F2) -> 2025-12-31 | BA2: =IF('IFRS_IS(Q)'!G2="","",'IFRS_IS(Q)'!G2) ->  | BC2: 其他綜合損益 | BD2: =IF(IFRS_note!B2="","",IFRS_note!B2) -> 2024-12-31 | BE2: =IF(IFRS_note!C2="","",IFRS_note!C2) -> 2025-03-31 | BF2: =IF(IFRS_note!D2="","",IFRS_note!D2) -> 2025-06-30 | BG2: =IF(IFRS_note!E2="","",IFRS_note!E2) -> 2025-09-30 | BH2: =IF(IFRS_note!F2="","",IFRS_note!F2) -> 2025-12-31 | BI2: =IF(IFRS_note!G2="","",IFRS_note!G2) ->  | BK2: 存貨明細表 | BL2: =IF(IFRS_note!B2="","",IFRS_note!B2) -> 2024-12-31 | BM2: =IF(IFRS_note!C2="","",IFRS_note!C2) -> 2025-03-31 | BN2: =IF(IFRS_note!D2="","",IFRS_note!D2) -> 2025-06-30 | BO2: =IF(IFRS_note!E2="","",IFRS_note!E2) -> 2025-09-30 | BP2: =IF(IFRS_note!F2="","",IFRS_note!F2) -> 2025-12-31 | BQ2: =IF(IFRS_note!G2="","",IFRS_note!G2) -> 
A3: =基本資料!A1 -> 2330 台積電 | D3: 實收資本額 | E3: =TEXT(ROUND(基本資料!C3/1000000,2),"###,###.## (百萬元)") -> 259,325.25 (百萬元) | P3: =TEXT(月營收!$A3,"YYYY/MM") -> 2026/03 | Q3: =IF(月營收!$B3="","",月營收!$B3) -> 415191.699 | R3: =IF(月營收!$C3="","",月營收!$C3) -> 1134103.44 | S3: =IF(月營收!$D3="","",月營收!$D3) -> 30.7 | T3: =IF(月營收!$E3="","",月營收!$E3) -> 45.19 | U3: =IF(月營收!$F3="Y","合併",IF(月營收!$F3="N","非合併","")) ->  | V3: ='合併財報(累計)'!$A3 -> 合併(Y/N) | W3: =IF('合併財報(累計)'!$B3="Y","合併","非合併") -> 合併 | X3: =IF('合併財報(累計)'!$C3="Y","合併","非合併") -> 合併 | Y3: =IF('合併財報(累計)'!$D3="Y","合併","非合併") -> 合併 | Z3: =IF('合併財報(累計)'!$F3="Y","合併","非合併") -> 合併 | AB3: ='合併財報(累計)'!$A3 -> 合併(Y/N) | AC3: =IF('合併財報(累計)'!$B3="Y","合併","非合併") -> 合併 | AD3: =IF('合併財報(累計)'!$B3="Y","合併","非合併") -> 合併 | AE3: =IF('合併財報(累計)'!$B3="Y","合併","非合併") -> 合併 | AG3: ='合併財報(單季)'!A3 -> 營業收入淨額 | AH3: ='合併財報(單季)'!B3 -> 759692143 | AI3: ='合併財報(單季)'!C3 -> 868461178 | AJ3: ='合併財報(單季)'!D3 -> 839253664 | AK3: ='合併財報(單季)'!E3 -> 933791869 | AL3: ='合併財報(單季)'!F3 -> 989918318 | AM3: ='合併財報(單季)'!G3 -> 1046090421 | AO3: =IFRS_BS!A3 -> 現金及約當現金 | AP3: =IFRS_BS!B3 -> 1465427753 | AQ3: =IFRS_BS!C3 -> 2127627043 | AR3: =IFRS_BS!D3 -> 2394804250 | AS3: =IFRS_BS!F3 -> 0 | AU3: =IF('IFRS_IS(Q)'!A3="","",'IFRS_IS(Q)'!A3) -> 合併(Y/N) | AV3: =IF('IFRS_IS(Q)'!B3="Y","合併",IF('IFRS_IS(Q)'!B3="N","非合併","")) -> 合併 | AW3: =IF('IFRS_IS(Q)'!C3="Y","合併",IF('IFRS_IS(Q)'!C3="N","非合併","")) -> 合併 | AX3: =IF('IFRS_IS(Q)'!D3="Y","合併",IF('IFRS_IS(Q)'!D3="N","非合併","")) -> 合併 | AY3: =IF('IFRS_IS(Q)'!E3="Y","合併",IF('IFRS_IS(Q)'!E3="N","非合併","")) -> 合併 | AZ3: =IF('IFRS_IS(Q)'!F3="Y","合併",IF('IFRS_IS(Q)'!F3="N","非合併","")) -> 合併 | BA3: =IF('IFRS_IS(Q)'!G3="Y","合併",IF('IFRS_IS(Q)'!G3="N","非合併","")) ->  | BC3: =IFRS_note!A3 -> 財報附註TEJ是否完成Y/N | BD3: =IF(IFRS_note!B3="Y","完成",IF(IFRS_note!B3="","","未完成")) -> 完成 | BE3: =IF(IFRS_note!C3="Y","完成",IF(IFRS_note!C3="","","未完成")) -> 完成 | BF3: =IF(IFRS_note!D3="Y","完成",IF(IFRS_note!D3="","","未完成")) -> 完成 | BG3: =IF(IFRS_note!E3="Y","完成",IF(IFRS_note!E3="","","未完成")) -> 完成 | BH3: =IF(IFRS_note!F3="Y","完成",IF(IFRS_note!F3="","","未完成")) -> 完成 | BI3: =IF(IFRS_note!G3="Y","完成",IF(IFRS_note!G3="","","未完成")) ->  | BK3: 存貨明細表-<主要觀察存貨相關費損及跌價損失>
A4: 市 場 別 | B4: =IF(基本資料!A3<>"",IF(基本資料!A3="TSE","上市",IF(基本資料!A3="OTC","上櫃",IF(基本資料!A3="ROTC","興櫃","其他"))),"") -> 上市 | D4: 上 市 日 期 | E4: =IF(基本資料!A3="TSE",基本資料!D3,IF(基本資料!A3="OTC",基本資料!E3,IF(基本資料!A3="ROTC",基本資料!F3,""))) -> 1994-09-05 | P4: =TEXT(月營收!$A4,"YYYY/MM") -> 2026/02 | Q4: =IF(月營收!$B4="","",月營收!$B4) -> 317656.613 | R4: =IF(月營收!$C4="","",月營收!$C4) -> 718911.741 | S4: =IF(月營收!$D4="","",月營收!$D4) -> -20.83 | T4: =IF(月營收!$E4="","",月營收!$E4) -> 22.17 | U4: =IF(月營收!$F4="Y","合併",IF(月營收!$F4="N","非合併","")) ->  | V4: ='合併財報(累計)'!$A4 -> 現金及約當現金 | W4: =IF('合併財報(累計)'!$B4="","",'合併財報(累計)'!$B4) -> 1465427753 | X4: =IF('合併財報(累計)'!$C4="","",'合併財報(累計)'!$C4) -> 2127627043 | Y4: =IF('合併財報(累計)'!$D4="","",'合併財報(累計)'!$D4) -> 2767856402 | Z4: =IF('合併財報(累計)'!$F4="","",'合併財報(累計)'!$F4) -> 2767856402 | AB4: ='合併財報(累計)'!A59 -> 營業收入淨額 | AC4: ='合併財報(累計)'!B59 -> 2161735841 | AD4: ='合併財報(累計)'!C59 -> 2894307699 | AE4: ='合併財報(累計)'!D59 -> 3809054272 | AG4: ='合併財報(單季)'!A4 -> 營業成本 | AH4: ='合併財報(單季)'!B4 -> 320346477 | AI4: ='合併財報(單季)'!C4 -> 356083027 | AJ4: ='合併財報(單季)'!D4 -> 345858588 | AK4: ='合併財報(單季)'!E4 -> 386422631 | AL4: ='合併財報(單季)'!F4 -> 401375489 | AM4: ='合併財報(單季)'!G4 -> 394103585 | AO4: =IFRS_BS!A4 -> 透過損益按公允價值衡量之金融資產－流動 | AP4: =IFRS_BS!B4 -> 924636 | AQ4: =IFRS_BS!C4 -> 207700 | AR4: =IFRS_BS!D4 -> 54369 | AS4: =IFRS_BS!F4 -> 0 | AU4: =IF('IFRS_IS(Q)'!A4="","",'IFRS_IS(Q)'!A4) -> 營業收入淨額 | AV4: =IF('IFRS_IS(Q)'!B4="","",'IFRS_IS(Q)'!B4) -> 868461178 | AW4: =IF('IFRS_IS(Q)'!C4="","",'IFRS_IS(Q)'!C4) -> 839253664 | AX4: =IF('IFRS_IS(Q)'!D4="","",'IFRS_IS(Q)'!D4) -> 933791869 | AY4: =IF('IFRS_IS(Q)'!E4="","",'IFRS_IS(Q)'!E4) -> 989918318 | AZ4: =IF('IFRS_IS(Q)'!F4="","",'IFRS_IS(Q)'!F4) -> 1046090421 | BA4: =IF('IFRS_IS(Q)'!G4="","",'IFRS_IS(Q)'!G4) ->  | BC4: 其他綜合損益-<主要觀察公司未透過損益但造成淨值變動因素> | BK4: =IF(IFRS_note!A4="","",IFRS_note!A4) -> 存貨費損─呆滯損失 | BL4: =IF(IFRS_note!B4="","",IFRS_note!B4) -> 0 | BM4: =IF(IFRS_note!C4="","",IFRS_note!C4) -> 0 | BN4: =IF(IFRS_note!D4="","",IFRS_note!D4) -> 0 | BO4: =IF(IFRS_note!E4="","",IFRS_note!E4) -> 0 | BP4: =IF(IFRS_note!F4="","",IFRS_note!F4) -> 0 | BQ4: =IF(IFRS_note!G4="","",IFRS_note!G4) -> 
A5: 發 言 人 | B5: =LEFT(基本資料!B3,FIND("(",基本資料!B3)-1) -> 黃仁昭 | D5: 電 話 | E5: =IF(基本資料!G3<>"",基本資料!G3,"") -> 03-5636688 | P5: =TEXT(月營收!$A5,"YYYY/MM") -> 2026/01 | Q5: =IF(月營收!$B5="","",月營收!$B5) -> 401255.128 | R5: =IF(月營收!$C5="","",月營收!$C5) -> 401255.128 | S5: =IF(月營收!$D5="","",月營收!$D5) -> 19.78 | T5: =IF(月營收!$E5="","",月營收!$E5) -> 36.81 | U5: =IF(月營收!$F5="Y","合併",IF(月營收!$F5="N","非合併","")) ->  | V5: ='合併財報(累計)'!$A5 -> 透過損益按公允價值衡量之金融資產－流動 | W5: =IF('合併財報(累計)'!$B5="","",'合併財報(累計)'!$B5) -> 924636 | X5: =IF('合併財報(累計)'!$C5="","",'合併財報(累計)'!$C5) -> 207700 | Y5: =IF('合併財報(累計)'!$D5="","",'合併財報(累計)'!$D5) -> 100200 | Z5: =IF('合併財報(累計)'!$F5="","",'合併財報(累計)'!$F5) -> 100200 | AB5: ='合併財報(累計)'!A60 -> 營業成本 | AC5: ='合併財報(累計)'!B60 -> 986625213 | AD5: ='合併財報(累計)'!C60 -> 1269954135 | AE5: ='合併財報(累計)'!D60 -> 1527760293 | AG5: ='合併財報(單季)'!A5 -> 營業毛利 | AH5: ='合併財報(單季)'!B5 -> 439345666 | AI5: ='合併財報(單季)'!C5 -> 512378151 | AJ5: ='合併財報(單季)'!D5 -> 493395076 | AK5: ='合併財報(單季)'!E5 -> 547369238 | AL5: ='合併財報(單季)'!F5 -> 588542829 | AM5: ='合併財報(單季)'!G5 -> 651986836 | AO5: =IFRS_BS!A5 -> 透過其他綜合損益按公允價值衡量之金融資產－流動 | AP5: =IFRS_BS!B5 -> 154530830 | AQ5: =IFRS_BS!C5 -> 192202657 | AR5: =IFRS_BS!D5 -> 189928311 | AS5: =IFRS_BS!F5 -> 0 | AU5: =IF('IFRS_IS(Q)'!A5="","",'IFRS_IS(Q)'!A5) -> 營業成本 | AV5: =IF('IFRS_IS(Q)'!B5="","",'IFRS_IS(Q)'!B5) -> 356083027 | AW5: =IF('IFRS_IS(Q)'!C5="","",'IFRS_IS(Q)'!C5) -> 345858588 | AX5: =IF('IFRS_IS(Q)'!D5="","",'IFRS_IS(Q)'!D5) -> 386422631 | AY5: =IF('IFRS_IS(Q)'!E5="","",'IFRS_IS(Q)'!E5) -> 401375489 | AZ5: =IF('IFRS_IS(Q)'!F5="","",'IFRS_IS(Q)'!F5) -> 394103585 | BA5: =IF('IFRS_IS(Q)'!G5="","",'IFRS_IS(Q)'!G5) ->  | BC5: =IF(IFRS_note!A43="","",IFRS_note!A43) -> 國外機構財務報表換算之兌換差額─OCI | BD5: =IF(IFRS_note!B43="","",IFRS_note!B43) -> 64299685 | BE5: =IF(IFRS_note!C43="","",IFRS_note!C43) -> 30220692 | BF5: =IF(IFRS_note!D43="","",IFRS_note!D43) -> -226272181 | BG5: =IF(IFRS_note!E43="","",IFRS_note!E43) -> -131987925 | BH5: =IF(IFRS_note!F43="","",IFRS_note!F43) -> -60951662 | BI5: =IF(IFRS_note!G43="","",IFRS_note!G43) ->  | BK5: =IF(IFRS_note!A5="","",IFRS_note!A5) -> 存貨費損─少/多分攤 | BL5: =IF(IFRS_note!B5="","",IFRS_note!B5) -> 0 | BM5: =IF(IFRS_note!C5="","",IFRS_note!C5) -> 0 | BN5: =IF(IFRS_note!D5="","",IFRS_note!D5) -> 0 | BO5: =IF(IFRS_note!E5="","",IFRS_note!E5) -> 0 | BP5: =IF(IFRS_note!F5="","",IFRS_note!F5) -> 0 | BQ5: =IF(IFRS_note!G5="","",IFRS_note!G5) -> 
A6: 地 址 | B6: =IF(基本資料!H3<>"",基本資料!H3,"") -> 新竹科學工業園區新竹市力行六路8 號 | P6: =TEXT(月營收!$A6,"YYYY/MM") -> 2025/12 | Q6: =IF(月營收!$B6="","",月營收!$B6) -> 335003.568 | R6: =IF(月營收!$C6="","",月營收!$C6) -> 3809054.272 | S6: =IF(月營收!$D6="","",月營收!$D6) -> -2.51 | T6: =IF(月營收!$E6="","",月營收!$E6) -> 20.43 | U6: =IF(月營收!$F6="Y","合併",IF(月營收!$F6="N","非合併","")) ->  | V6: ='合併財報(累計)'!$A6 -> 透過其他綜合損益按公允價值衡量之金融資產－流動 | W6: =IF('合併財報(累計)'!$B6="","",'合併財報(累計)'!$B6) -> 154530830 | X6: =IF('合併財報(累計)'!$C6="","",'合併財報(累計)'!$C6) -> 192202657 | Y6: =IF('合併財報(累計)'!$D6="","",'合併財報(累計)'!$D6) -> 175692690 | Z6: =IF('合併財報(累計)'!$F6="","",'合併財報(累計)'!$F6) -> 175692690 | AB6: ='合併財報(累計)'!A61 -> 營業毛利 | AC6: ='合併財報(累計)'!B61 -> 1175110628 | AD6: ='合併財報(累計)'!C61 -> 1624353564 | AE6: ='合併財報(累計)'!D61 -> 2281293979 | AG6: ='合併財報(單季)'!A6 -> 營業費用 | AH6: ='合併財報(單季)'!B6 -> 79078904 | AI6: ='合併財報(單季)'!C6 -> 86338820 | AJ6: ='合併財報(單季)'!D6 -> 85186056 | AK6: ='合併財報(單季)'!E6 -> 84508339 | AL6: ='合併財報(單季)'!F6 -> 87764445 | AM6: ='合併財報(單季)'!G6 -> 88190790 | AO6: =IFRS_BS!A6 -> 按攤銷後成本衡量之金融資產－流動 | AP6: =IFRS_BS!B6 -> 66761221 | AQ6: =IFRS_BS!C6 -> 101971322 | AR6: =IFRS_BS!D6 -> 118298376 | AS6: =IFRS_BS!F6 -> 0 | AU6: =IF('IFRS_IS(Q)'!A6="","",'IFRS_IS(Q)'!A6) -> 營業毛利 | AV6: =IF('IFRS_IS(Q)'!B6="","",'IFRS_IS(Q)'!B6) -> 512378151 | AW6: =IF('IFRS_IS(Q)'!C6="","",'IFRS_IS(Q)'!C6) -> 493395076 | AX6: =IF('IFRS_IS(Q)'!D6="","",'IFRS_IS(Q)'!D6) -> 547369238 | AY6: =IF('IFRS_IS(Q)'!E6="","",'IFRS_IS(Q)'!E6) -> 588542829 | AZ6: =IF('IFRS_IS(Q)'!F6="","",'IFRS_IS(Q)'!F6) -> 651986836 | BA6: =IF('IFRS_IS(Q)'!G6="","",'IFRS_IS(Q)'!G6) ->  | BC6: =IF(IFRS_note!A44="","",IFRS_note!A44) -> 權益工具投資之利益〈損失〉─OCI | BD6: =IF(IFRS_note!B44="","",IFRS_note!B44) -> 5091916 | BE6: =IF(IFRS_note!C44="","",IFRS_note!C44) -> -373521 | BF6: =IF(IFRS_note!D44="","",IFRS_note!D44) -> 1608828 | BG6: =IF(IFRS_note!E44="","",IFRS_note!E44) -> 1073236 | BH6: =IF(IFRS_note!F44="","",IFRS_note!F44) -> 745272 | BI6: =IF(IFRS_note!G44="","",IFRS_note!G44) ->  | BK6: =IF(IFRS_note!A6="","",IFRS_note!A6) -> 存貨費損─盤盈/虧 | BL6: =IF(IFRS_note!B6="","",IFRS_note!B6) -> 0 | BM6: =IF(IFRS_note!C6="","",IFRS_note!C6) -> 0 | BN6: =IF(IFRS_note!D6="","",IFRS_note!D6) -> 0 | BO6: =IF(IFRS_note!E6="","",IFRS_note!E6) -> 0 | BP6: =IF(IFRS_note!F6="","",IFRS_note!F6) -> 0 | BQ6: =IF(IFRS_note!G6="","",IFRS_note!G6) -> 
A7: 產 業 別 | B7: =IF(基本資料!I3<>"",基本資料!I3,"") -> M2324 半導體業 | E7: 員工人數 | F7: =IF(基本資料!K3="","",基本資料!K3) -> 70037 | P7: =TEXT(月營收!$A7,"YYYY/MM") -> 2025/11 | Q7: =IF(月營收!$B7="","",月營收!$B7) -> 343613.802 | R7: =IF(月營收!$C7="","",月營收!$C7) -> 3474050.704 | S7: =IF(月營收!$D7="","",月營收!$D7) -> -6.49 | T7: =IF(月營收!$E7="","",月營收!$E7) -> 24.47 | U7: =IF(月營收!$F7="Y","合併",IF(月營收!$F7="N","非合併","")) ->  | V7: ='合併財報(累計)'!$A7 -> 按攤銷後成本衡量之金融資產－流動 | W7: =IF('合併財報(累計)'!$B7="","",'合併財報(累計)'!$B7) -> 66761221 | X7: =IF('合併財報(累計)'!$C7="","",'合併財報(累計)'!$C7) -> 101971322 | Y7: =IF('合併財報(累計)'!$D7="","",'合併財報(累計)'!$D7) -> 124945519 | Z7: =IF('合併財報(累計)'!$F7="","",'合併財報(累計)'!$F7) -> 124945519 | AB7: ='合併財報(累計)'!A62 -> 聯屬公司已（未）實現銷貨利益 | AC7: ='合併財報(累計)'!B62 -> 0 | AD7: ='合併財報(累計)'!C62 -> 0 | AE7: ='合併財報(累計)'!D62 -> 0 | AG7: ='合併財報(單季)'!A7 -> 營業利益 | AH7: ='合併財報(單季)'!B7 -> 360766289 | AI7: ='合併財報(單季)'!C7 -> 425712913 | AJ7: ='合併財報(單季)'!D7 -> 407080808 | AK7: ='合併財報(單季)'!E7 -> 463423638 | AL7: ='合併財報(單季)'!F7 -> 500684818 | AM7: ='合併財報(單季)'!G7 -> 564902413 | AO7: =IFRS_BS!A7 -> 避險之金融資產－流動 | AP7: =IFRS_BS!B7 -> 0 | AQ7: =IFRS_BS!C7 -> 10959 | AR7: =IFRS_BS!D7 -> 0 | AS7: =IFRS_BS!F7 -> 0 | AU7: =IF('IFRS_IS(Q)'!A7="","",'IFRS_IS(Q)'!A7) -> 營業費用 | AV7: =IF('IFRS_IS(Q)'!B7="","",'IFRS_IS(Q)'!B7) -> 86338820 | AW7: =IF('IFRS_IS(Q)'!C7="","",'IFRS_IS(Q)'!C7) -> 85186056 | AX7: =IF('IFRS_IS(Q)'!D7="","",'IFRS_IS(Q)'!D7) -> 84508339 | AY7: =IF('IFRS_IS(Q)'!E7="","",'IFRS_IS(Q)'!E7) -> 87764445 | AZ7: =IF('IFRS_IS(Q)'!F7="","",'IFRS_IS(Q)'!F7) -> 88190790 | BA7: =IF('IFRS_IS(Q)'!G7="","",'IFRS_IS(Q)'!G7) ->  | BC7: =IF(IFRS_note!A45="","",IFRS_note!A45) -> 備供出售金融資產未實現評價損益─OCI | BD7: =IF(IFRS_note!B45="","",IFRS_note!B45) -> 1949865 | BE7: =IF(IFRS_note!C45="","",IFRS_note!C45) -> 2053235 | BF7: =IF(IFRS_note!D45="","",IFRS_note!D45) -> 2865452 | BG7: =IF(IFRS_note!E45="","",IFRS_note!E45) -> 4042911 | BH7: =IF(IFRS_note!F45="","",IFRS_note!F45) -> 4688956 | BI7: =IF(IFRS_note!G45="","",IFRS_note!G45) ->  | BK7: =IF(IFRS_note!A7="","",IFRS_note!A7) -> 存貨費損─報廢 | BL7: =IF(IFRS_note!B7="","",IFRS_note!B7) -> 0 | BM7: =IF(IFRS_note!C7="","",IFRS_note!C7) -> 0 | BN7: =IF(IFRS_note!D7="","",IFRS_note!D7) -> 0 | BO7: =IF(IFRS_note!E7="","",IFRS_note!E7) -> 0 | BP7: =IF(IFRS_note!F7="","",IFRS_note!F7) -> 0 | BQ7: =IF(IFRS_note!G7="","",IFRS_note!G7) -> 
A8: 主要產品 | B8: =IF(基本資料!J3<>"",基本資料!J3,"") -> 2025/12:晶圓-5奈米(30.98%),晶圓-3奈米(20.85%),晶圓-7奈米(12.06%),晶圓-28奈米(5.91%),晶圓-16奈米(5.66%),晶圓-65奈米(3.16%) | P8: =TEXT(月營收!$A8,"YYYY/MM") -> 2025/10 | Q8: =IF(月營收!$B8="","",月營收!$B8) -> 367473.051 | R8: =IF(月營收!$C8="","",月營收!$C8) -> 3130436.902 | S8: =IF(月營收!$D8="","",月營收!$D8) -> 11.03 | T8: =IF(月營收!$E8="","",月營收!$E8) -> 16.94 | U8: =IF(月營收!$F8="Y","合併",IF(月營收!$F8="N","非合併","")) ->  | V8: ='合併財報(累計)'!$A8 -> 避險之金融資產－流動 | W8: =IF('合併財報(累計)'!$B8="","",'合併財報(累計)'!$B8) -> 0 | X8: =IF('合併財報(累計)'!$C8="","",'合併財報(累計)'!$C8) -> 10959 | Y8: =IF('合併財報(累計)'!$D8="","",'合併財報(累計)'!$D8) -> 0 | Z8: =IF('合併財報(累計)'!$F8="","",'合併財報(累計)'!$F8) -> 0 | AB8: ='合併財報(累計)'!A63 -> 已實現銷貨毛利 | AC8: ='合併財報(累計)'!B63 -> 1175110628 | AD8: ='合併財報(累計)'!C63 -> 1624353564 | AE8: ='合併財報(累計)'!D63 -> 2281293979 | AG8: ='合併財報(單季)'!A8 -> 採權益法之關聯企業及合資損益之份額 | AH8: ='合併財報(單季)'!B8 -> 1560733 | AI8: ='合併財報(單季)'!C8 -> 1288408 | AJ8: ='合併財報(單季)'!D8 -> 1368307 | AK8: ='合併財報(單季)'!E8 -> 1220948 | AL8: ='合併財報(單季)'!F8 -> 1424738 | AM8: ='合併財報(單季)'!G8 -> 1482601 | AO8: =IFRS_BS!A8 -> 合約資產－流動 | AP8: =IFRS_BS!B8 -> 0 | AQ8: =IFRS_BS!C8 -> 0 | AR8: =IFRS_BS!D8 -> 0 | AS8: =IFRS_BS!F8 -> 0 | AU8: =IF('IFRS_IS(Q)'!A8="","",'IFRS_IS(Q)'!A8) -> 其他收益及費損淨額 | AV8: =IF('IFRS_IS(Q)'!B8="","",'IFRS_IS(Q)'!B8) -> -326418 | AW8: =IF('IFRS_IS(Q)'!C8="","",'IFRS_IS(Q)'!C8) -> -1128212 | AX8: =IF('IFRS_IS(Q)'!D8="","",'IFRS_IS(Q)'!D8) -> 562739 | AY8: =IF('IFRS_IS(Q)'!E8="","",'IFRS_IS(Q)'!E8) -> -93566 | AZ8: =IF('IFRS_IS(Q)'!F8="","",'IFRS_IS(Q)'!F8) -> 1106367 | BA8: =IF('IFRS_IS(Q)'!G8="","",'IFRS_IS(Q)'!G8) ->  | BC8: =IF(IFRS_note!A46="","",IFRS_note!A46) -> 現金流量避險─OCI | BD8: =IF(IFRS_note!B46="","",IFRS_note!B46) ->  | BE8: =IF(IFRS_note!C46="","",IFRS_note!C46) ->  | BF8: =IF(IFRS_note!D46="","",IFRS_note!D46) ->  | BG8: =IF(IFRS_note!E46="","",IFRS_note!E46) ->  | BH8: =IF(IFRS_note!F46="","",IFRS_note!F46) ->  | BI8: =IF(IFRS_note!G46="","",IFRS_note!G46) ->  | BK8: =IF(IFRS_note!A8="","",IFRS_note!A8) -> 存貨費損─進貨合約損失 | BL8: =IF(IFRS_note!B8="","",IFRS_note!B8) -> 0 | BM8: =IF(IFRS_note!C8="","",IFRS_note!C8) -> 0 | BN8: =IF(IFRS_note!D8="","",IFRS_note!D8) -> 0 | BO8: =IF(IFRS_note!E8="","",IFRS_note!E8) -> 0 | BP8: =IF(IFRS_note!F8="","",IFRS_note!F8) -> 0 | BQ8: =IF(IFRS_note!G8="","",IFRS_note!G8) -> 
P9: =TEXT(月營收!$A9,"YYYY/MM") -> 2025/09 | Q9: =IF(月營收!$B9="","",月營收!$B9) -> 330980.92 | R9: =IF(月營收!$C9="","",月營收!$C9) -> 2762963.851 | S9: =IF(月營收!$D9="","",月營收!$D9) -> -1.43 | T9: =IF(月營收!$E9="","",月營收!$E9) -> 31.41 | U9: =IF(月營收!$F9="Y","合併",IF(月營收!$F9="N","非合併","")) ->  | V9: ='合併財報(累計)'!$A9 -> 應收帳款及票據 | W9: =IF('合併財報(累計)'!$B9="","",'合併財報(累計)'!$B9) -> 201938365 | X9: =IF('合併財報(累計)'!$C9="","",'合併財報(累計)'!$C9) -> 272087708 | Y9: =IF('合併財報(累計)'!$D9="","",'合併財報(累計)'!$D9) -> 281791053 | Z9: =IF('合併財報(累計)'!$F9="","",'合併財報(累計)'!$F9) -> 281791053 | AB9: ='合併財報(累計)'!A64 -> 營業費用 | AC9: ='合併財報(累計)'!B64 -> 253833716 | AD9: ='合併財報(累計)'!C64 -> 301070315 | AE9: ='合併財報(累計)'!D64 -> 345649630 | AG9: ='合併財報(單季)'!A9 -> 其他收入 | AH9: ='合併財報(單季)'!B9 -> 22642575 | AI9: ='合併財報(單季)'!C9 -> 24524163 | AJ9: ='合併財報(單季)'!D9 -> 24910821 | AK9: ='合併財報(單季)'!E9 -> 25604041 | AL9: ='合併財報(單季)'!F9 -> 26260563 | AM9: ='合併財報(單季)'!G9 -> 29555385 | AO9: =IFRS_BS!A9 -> 應收帳款及票據 | AP9: =IFRS_BS!B9 -> 201938365 | AQ9: =IFRS_BS!C9 -> 272087708 | AR9: =IFRS_BS!D9 -> 243949322 | AS9: =IFRS_BS!F9 -> 0 | AU9: =IF('IFRS_IS(Q)'!A9="","",'IFRS_IS(Q)'!A9) -> 營業利益 | AV9: =IF('IFRS_IS(Q)'!B9="","",'IFRS_IS(Q)'!B9) -> 425712913 | AW9: =IF('IFRS_IS(Q)'!C9="","",'IFRS_IS(Q)'!C9) -> 407080808 | AX9: =IF('IFRS_IS(Q)'!D9="","",'IFRS_IS(Q)'!D9) -> 463423638 | AY9: =IF('IFRS_IS(Q)'!E9="","",'IFRS_IS(Q)'!E9) -> 500684818 | AZ9: =IF('IFRS_IS(Q)'!F9="","",'IFRS_IS(Q)'!F9) -> 564902413 | BA9: =IF('IFRS_IS(Q)'!G9="","",'IFRS_IS(Q)'!G9) ->  | BC9: =IF(IFRS_note!A47="","",IFRS_note!A47) -> 國外營運機構淨投資避險─OCI | BD9: =IF(IFRS_note!B47="","",IFRS_note!B47) ->  | BE9: =IF(IFRS_note!C47="","",IFRS_note!C47) ->  | BF9: =IF(IFRS_note!D47="","",IFRS_note!D47) ->  | BG9: =IF(IFRS_note!E47="","",IFRS_note!E47) ->  | BH9: =IF(IFRS_note!F47="","",IFRS_note!F47) ->  | BI9: =IF(IFRS_note!G47="","",IFRS_note!G47) ->  | BK9: =IF(IFRS_note!A9="","",IFRS_note!A9) -> 存貨費損─下腳及癈料收 | BL9: =IF(IFRS_note!B9="","",IFRS_note!B9) -> 0 | BM9: =IF(IFRS_note!C9="","",IFRS_note!C9) -> 0 | BN9: =IF(IFRS_note!D9="","",IFRS_note!D9) -> 0 | BO9: =IF(IFRS_note!E9="","",IFRS_note!E9) -> 0 | BP9: =IF(IFRS_note!F9="","",IFRS_note!F9) -> 0 | BQ9: =IF(IFRS_note!G9="","",IFRS_note!G9) -> 
P10: =TEXT(月營收!$A10,"YYYY/MM") -> 2025/08 | Q10: =IF(月營收!$B10="","",月營收!$B10) -> 335771.691 | R10: =IF(月營收!$C10="","",月營收!$C10) -> 2431982.931 | S10: =IF(月營收!$D10="","",月營收!$D10) -> 3.9 | T10: =IF(月營收!$E10="","",月營收!$E10) -> 33.84 | U10: =IF(月營收!$F10="Y","合併",IF(月營收!$F10="N","非合併","")) ->  | V10: ='合併財報(累計)'!$A10 -> 其他應收款 | W10: =IF('合併財報(累計)'!$B10="","",'合併財報(累計)'!$B10) -> 71871 | X10: =IF('合併財報(累計)'!$C10="","",'合併財報(累計)'!$C10) -> 251 | Y10: =IF('合併財報(累計)'!$D10="","",'合併財報(累計)'!$D10) -> 268115 | Z10: =IF('合併財報(累計)'!$F10="","",'合併財報(累計)'!$F10) -> 268115 | AB10: ='合併財報(累計)'!A65 -> 推銷費用 | AC10: ='合併財報(累計)'!B65 -> 10590705 | AD10: ='合併財報(累計)'!C65 -> 13143524 | AE10: ='合併財報(累計)'!D65 -> 16918076 | AG10: ='合併財報(單季)'!A10 -> 其他利益及損失 | AH10: ='合併財報(單季)'!B10 -> 1869558 | AI10: ='合併財報(單季)'!C10 -> -189706 | AJ10: ='合併財報(單季)'!D10 -> 204390 | AK10: ='合併財報(單季)'!E10 -> 6460812 | AL10: ='合併財報(單季)'!F10 -> -42790 | AM10: ='合併財報(單季)'!G10 -> -512212 | AO10: =IFRS_BS!A10 -> 其他應收款 | AP10: =IFRS_BS!B10 -> 71871 | AQ10: =IFRS_BS!C10 -> 251 | AR10: =IFRS_BS!D10 -> 252 | AS10: =IFRS_BS!F10 -> 0 | AU10: =IF('IFRS_IS(Q)'!A10="","",'IFRS_IS(Q)'!A10) -> 利息收入 | AV10: =IF('IFRS_IS(Q)'!B10="","",'IFRS_IS(Q)'!B10) -> 24273340 | AW10: =IF('IFRS_IS(Q)'!C10="","",'IFRS_IS(Q)'!C10) -> 24859312 | AX10: =IF('IFRS_IS(Q)'!D10="","",'IFRS_IS(Q)'!D10) -> 25191998 | AY10: =IF('IFRS_IS(Q)'!E10="","",'IFRS_IS(Q)'!E10) -> 26180345 | AZ10: =IF('IFRS_IS(Q)'!F10="","",'IFRS_IS(Q)'!F10) -> 29507426 | BA10: =IF('IFRS_IS(Q)'!G10="","",'IFRS_IS(Q)'!G10) ->  | BC10: =IF(IFRS_note!A48="","",IFRS_note!A48) -> 重估價之利益〈損失〉─OCI | BD10: =IF(IFRS_note!B48="","",IFRS_note!B48) -> 0 | BE10: =IF(IFRS_note!C48="","",IFRS_note!C48) -> 0 | BF10: =IF(IFRS_note!D48="","",IFRS_note!D48) -> 0 | BG10: =IF(IFRS_note!E48="","",IFRS_note!E48) -> 0 | BH10: =IF(IFRS_note!F48="","",IFRS_note!F48) -> 0 | BI10: =IF(IFRS_note!G48="","",IFRS_note!G48) ->  | BK10: =IF(IFRS_note!A10="","",IFRS_note!A10) -> 存貨費損─其他 | BL10: =IF(IFRS_note!B10="","",IFRS_note!B10) -> 0 | BM10: =IF(IFRS_note!C10="","",IFRS_note!C10) -> 0 | BN10: =IF(IFRS_note!D10="","",IFRS_note!D10) -> 0 | BO10: =IF(IFRS_note!E10="","",IFRS_note!E10) -> 0 | BP10: =IF(IFRS_note!F10="","",IFRS_note!F10) -> 0 | BQ10: =IF(IFRS_note!G10="","",IFRS_note!G10) -> 
A11: 收盤價 | B11: ='圖-報酬率'!B3 -> 2250 | D11: 法人買賣超合計(近一日) | F11: =IF(法人動向!$E$3="", IF(法人動向!E4>0,"買超"&ABS(法人動向!E4)&"張",IF(法人動向!E4<0,"賣超"&ABS(法人動向!E4)&"張","")), IF(法人動向!E3>0,"買超"&ABS(法人動向!E3)&"張",IF(法人動向!E3<0,"賣超"&ABS(法人動向!E3)&"張",""))) -> 賣超2598張 | P11: =TEXT(月營收!$A11,"YYYY/MM") -> 2025/07 | Q11: =IF(月營收!$B11="","",月營收!$B11) -> 323165.707 | R11: =IF(月營收!$C11="","",月營收!$C11) -> 2096211.24 | S11: =IF(月營收!$D11="","",月營收!$D11) -> 22.55 | T11: =IF(月營收!$E11="","",月營收!$E11) -> 25.77 | U11: =IF(月營收!$F11="Y","合併",IF(月營收!$F11="N","非合併","")) ->  | V11: ='合併財報(累計)'!$A11 -> 存貨 | W11: =IF('合併財報(累計)'!$B11="","",'合併財報(累計)'!$B11) -> 250997088 | X11: =IF('合併財報(累計)'!$C11="","",'合併財報(累計)'!$C11) -> 287868810 | Y11: =IF('合併財報(累計)'!$D11="","",'合併財報(累計)'!$D11) -> 288109485 | Z11: =IF('合併財報(累計)'!$F11="","",'合併財報(累計)'!$F11) -> 288109485 | AB11: ='合併財報(累計)'!A66 -> 管理費用 | AC11: ='合併財報(累計)'!B66 -> 60872841 | AD11: ='合併財報(累計)'!C66 -> 83744968 | AE11: ='合併財報(累計)'!D66 -> 82304290 | AG11: ='合併財報(單季)'!A11 -> 財務成本 | AH11: ='合併財報(單季)'!B11 -> 2635790 | AI11: ='合併財報(單季)'!C11 -> 2523135 | AJ11: ='合併財報(單季)'!D11 -> 2677274 | AK11: ='合併財報(單季)'!E11 -> 3691095 | AL11: ='合併財報(單季)'!F11 -> 2958568 | AM11: ='合併財報(單季)'!G11 -> 3043450 | AO11: =IFRS_BS!A11 -> 存貨 | AP11: =IFRS_BS!B11 -> 250997088 | AQ11: =IFRS_BS!C11 -> 287868810 | AR11: =IFRS_BS!D11 -> 293387615 | AS11: =IFRS_BS!F11 -> 0 | AU11: =IF('IFRS_IS(Q)'!A11="","",'IFRS_IS(Q)'!A11) -> 租金收入 | AV11: =IF('IFRS_IS(Q)'!B11="","",'IFRS_IS(Q)'!B11) -> 0 | AW11: =IF('IFRS_IS(Q)'!C11="","",'IFRS_IS(Q)'!C11) -> 0 | AX11: =IF('IFRS_IS(Q)'!D11="","",'IFRS_IS(Q)'!D11) -> 0 | AY11: =IF('IFRS_IS(Q)'!E11="","",'IFRS_IS(Q)'!E11) -> 0 | AZ11: =IF('IFRS_IS(Q)'!F11="","",'IFRS_IS(Q)'!F11) -> 0 | BA11: =IF('IFRS_IS(Q)'!G11="","",'IFRS_IS(Q)'!G11) ->  | BC11: =IF(IFRS_note!A49="","",IFRS_note!A49) -> 確定福利計畫精算利益〈損失〉─OCI | BD11: =IF(IFRS_note!B49="","",IFRS_note!B49) -> 144365 | BE11: =IF(IFRS_note!C49="","",IFRS_note!C49) -> 0 | BF11: =IF(IFRS_note!D49="","",IFRS_note!D49) -> 0 | BG11: =IF(IFRS_note!E49="","",IFRS_note!E49) -> 0 | BH11: =IF(IFRS_note!F49="","",IFRS_note!F49) -> -693271 | BI11: =IF(IFRS_note!G49="","",IFRS_note!G49) ->  | BK11: =IF(IFRS_note!A11="","",IFRS_note!A11) -> 存貨相關費損合計 | BL11: =IF(IFRS_note!B11="","",IFRS_note!B11) -> 0 | BM11: =IF(IFRS_note!C11="","",IFRS_note!C11) -> 0 | BN11: =IF(IFRS_note!D11="","",IFRS_note!D11) -> 0 | BO11: =IF(IFRS_note!E11="","",IFRS_note!E11) -> 0 | BP11: =IF(IFRS_note!F11="","",IFRS_note!F11) -> 0 | BQ11: =IF(IFRS_note!G11="","",IFRS_note!G11) -> 
A12: 券資比 | B12: ='圖-報酬率'!B4 -> 0 | D12: 法人買賣超合計(近一週) | F12: =IF(法人動向!$E$3="", IF(SUM(WEEK2)>0,"買超"&ABS(SUM(WEEK2))&"張",IF(SUM(WEEK2)<0,"賣超"&ABS(SUM(WEEK2))&"張","")), IF(SUM(WEEK1)>0,"買超"&ABS(SUM(WEEK1))&"張",IF(SUM(WEEK1)<0,"賣超"&ABS(SUM(WEEK1))&"張",""))) -> 賣超35190張 | P12: =TEXT(月營收!$A12,"YYYY/MM") -> 2025/06 | Q12: =IF(月營收!$B12="","",月營收!$B12) -> 263708.978 | R12: =IF(月營收!$C12="","",月營收!$C12) -> 1773045.533 | S12: =IF(月營收!$D12="","",月營收!$D12) -> -17.72 | T12: =IF(月營收!$E12="","",月營收!$E12) -> 26.86 | U12: =IF(月營收!$F12="Y","合併",IF(月營收!$F12="N","非合併","")) ->  | V12: ='合併財報(累計)'!$A12 -> 其他金融資產－流動 | W12: =IF('合併財報(累計)'!$B12="","",'合併財報(累計)'!$B12) -> 27158766 | X12: =IF('合併財報(累計)'!$C12="","",'合併財報(累計)'!$C12) -> 63138316 | Y12: =IF('合併財報(累計)'!$D12="","",'合併財報(累計)'!$D12) -> 59702922 | Z12: =IF('合併財報(累計)'!$F12="","",'合併財報(累計)'!$F12) -> 59702922 | AB12: ='合併財報(累計)'!A67 -> 研究發展費 | AC12: ='合併財報(累計)'!B67 -> 182370170 | AD12: ='合併財報(累計)'!C67 -> 204181823 | AE12: ='合併財報(累計)'!D67 -> 246427264 | AG12: ='合併財報(單季)'!A12 -> 預期信用減損（損失）利益 | AH12: ='合併財報(單季)'!B12 -> -16513 | AI12: ='合併財報(單季)'!C12 -> -14639 | AJ12: ='合併財報(單季)'!D12 -> 8360 | AK12: ='合併財報(單季)'!E12 -> 16860 | AL12: ='合併財報(單季)'!F12 -> 262 | AM12: ='合併財報(單季)'!G12 -> -21536 | AO12: =IFRS_BS!A12 -> 預付費用及預付款 | AP12: =IFRS_BS!B12 -> 0 | AQ12: =IFRS_BS!C12 -> 0 | AR12: =IFRS_BS!D12 -> 0 | AS12: =IFRS_BS!F12 -> 0 | AU12: =IF('IFRS_IS(Q)'!A12="","",'IFRS_IS(Q)'!A12) -> 其他收入-其他 | AV12: =IF('IFRS_IS(Q)'!B12="","",'IFRS_IS(Q)'!B12) -> 250823 | AW12: =IF('IFRS_IS(Q)'!C12="","",'IFRS_IS(Q)'!C12) -> 0 | AX12: =IF('IFRS_IS(Q)'!D12="","",'IFRS_IS(Q)'!D12) -> 0 | AY12: =IF('IFRS_IS(Q)'!E12="","",'IFRS_IS(Q)'!E12) -> 543770 | AZ12: =IF('IFRS_IS(Q)'!F12="","",'IFRS_IS(Q)'!F12) -> 47959 | BA12: =IF('IFRS_IS(Q)'!G12="","",'IFRS_IS(Q)'!G12) ->  | BC12: =IF(IFRS_note!A50="","",IFRS_note!A50) -> 採用權益法認列之關聯企業及合資之其他綜合損益之份額─OCI | BD12: =IF(IFRS_note!B50="","",IFRS_note!B50) ->  | BE12: =IF(IFRS_note!C50="","",IFRS_note!C50) ->  | BF12: =IF(IFRS_note!D50="","",IFRS_note!D50) ->  | BG12: =IF(IFRS_note!E50="","",IFRS_note!E50) ->  | BH12: =IF(IFRS_note!F50="","",IFRS_note!F50) ->  | BI12: =IF(IFRS_note!G50="","",IFRS_note!G50) -> 
A13: 現金股利率 | B13: ='圖-報酬率'!B5 -> 0.9778 | D13: 法人買賣超合計(近一月) | F13: =IF(法人動向!$E$3="", IF(SUM(MONTH2)>0,"買超"&ABS(SUM(MONTH2))&"張",IF(SUM(MONTH2)<0,"賣超"&ABS(SUM(MONTH2))&"張","")), IF(SUM(MONTH1)>0,"買超"&ABS(SUM(MONTH1))&"張",IF(SUM(MONTH1)<0,"賣超"&ABS(SUM(MONTH1))&"張",""))) -> 賣超23607張 | P13: =TEXT(月營收!$A13,"YYYY/MM") -> 2025/05 | Q13: =IF(月營收!$B13="","",月營收!$B13) -> 320515.951 | R13: =IF(月營收!$C13="","",月營收!$C13) -> 1509336.555 | S13: =IF(月營收!$D13="","",月營收!$D13) -> -8.31 | T13: =IF(月營收!$E13="","",月營收!$E13) -> 39.59 | U13: =IF(月營收!$F13="Y","合併",IF(月營收!$F13="N","非合併","")) ->  | V13: ='合併財報(累計)'!$A13 -> 其他流動資產 | W13: =IF('合併財報(累計)'!$B13="","",'合併財報(累計)'!$B13) -> 26222380 | X13: =IF('合併財報(累計)'!$C13="","",'合併財報(累計)'!$C13) -> 43237354 | Y13: =IF('合併財報(累計)'!$D13="","",'合併財報(累計)'!$D13) -> 118664431 | Z13: =IF('合併財報(累計)'!$F13="","",'合併財報(累計)'!$F13) -> 118664431 | AB13: ='合併財報(累計)'!A68 -> 其他費用 | AC13: ='合併財報(累計)'!B68 -> 0 | AD13: ='合併財報(累計)'!C68 -> 0 | AE13: ='合併財報(累計)'!D68 -> 0 | AG13: ='合併財報(單季)'!A13 -> 營業外收入及支出 | AH13: ='合併財報(單季)'!B13 -> 23420563 | AI13: ='合併財報(單季)'!C13 -> 23085091 | AJ13: ='合併財報(單季)'!D13 -> 23814604 | AK13: ='合併財報(單季)'!E13 -> 29611566 | AL13: ='合併財報(單季)'!F13 -> 24684205 | AM13: ='合併財報(單季)'!G13 -> 27460788 | AO13: =IFRS_BS!A13 -> 待出售非流動資產 | AP13: =IFRS_BS!B13 -> 0 | AQ13: =IFRS_BS!C13 -> 0 | AR13: =IFRS_BS!D13 -> 0 | AS13: =IFRS_BS!F13 -> 0 | AU13: =IF('IFRS_IS(Q)'!A13="","",'IFRS_IS(Q)'!A13) -> 其他收入 | AV13: =IF('IFRS_IS(Q)'!B13="","",'IFRS_IS(Q)'!B13) -> 24524163 | AW13: =IF('IFRS_IS(Q)'!C13="","",'IFRS_IS(Q)'!C13) -> 24910821 | AX13: =IF('IFRS_IS(Q)'!D13="","",'IFRS_IS(Q)'!D13) -> 25604041 | AY13: =IF('IFRS_IS(Q)'!E13="","",'IFRS_IS(Q)'!E13) -> 26260563 | AZ13: =IF('IFRS_IS(Q)'!F13="","",'IFRS_IS(Q)'!F13) -> 29555385 | BA13: =IF('IFRS_IS(Q)'!G13="","",'IFRS_IS(Q)'!G13) ->  | BC13: =IF(IFRS_note!A51="","",IFRS_note!A51) -> 其他綜合損益─其他─OCI | BD13: =IF(IFRS_note!B51="","",IFRS_note!B51) ->  | BE13: =IF(IFRS_note!C51="","",IFRS_note!C51) ->  | BF13: =IF(IFRS_note!D51="","",IFRS_note!D51) ->  | BG13: =IF(IFRS_note!E51="","",IFRS_note!E51) ->  | BH13: =IF(IFRS_note!F51="","",IFRS_note!F51) ->  | BI13: =IF(IFRS_note!G51="","",IFRS_note!G51) ->  | BK13: 補充明細_負債準備 | BL13: =IF(IFRS_note!B2="","",IFRS_note!B2) -> 2024-12-31 | BM13: =IF(IFRS_note!C2="","",IFRS_note!C2) -> 2025-03-31 | BN13: =IF(IFRS_note!D2="","",IFRS_note!D2) -> 2025-06-30 | BO13: =IF(IFRS_note!E2="","",IFRS_note!E2) -> 2025-09-30 | BP13: =IF(IFRS_note!F2="","",IFRS_note!F2) -> 2025-12-31 | BQ13: =IF(IFRS_note!G2="","",IFRS_note!G2) -> 
A14: 股利殖利率 | B14: ='圖-報酬率'!B6 -> 0 | D14: =IF(法人動向!B3="", IF(法人動向!B4>=2,"外資連"&ABS(法人動向!B4)&"買",IF(法人動向!B4<=-2,"外資連"&ABS(法人動向!B4)&"賣","")), IF(法人動向!B3>=2,"外資連"&ABS(法人動向!B3)&"買",IF(法人動向!B3<=-2,"外資連"&ABS(法人動向!B3)&"賣",""))) -> 外資連2賣 | E14: =IF(法人動向!C3="", IF(法人動向!C4>=2,"投信連"&ABS(法人動向!C4)&"買",IF(法人動向!C4<=-2,"投信連"&ABS(法人動向!C4)&"賣","")), IF(法人動向!C3>=2,"投信連"&ABS(法人動向!C3)&"買",IF(法人動向!C3<=-2,"投信連"&ABS(法人動向!C3)&"賣",""))) -> 投信連9買 | F14: =IF(法人動向!D3="", IF(法人動向!D4>=2,"自營連"&ABS(法人動向!D4)&"買",IF(法人動向!D4<=-2,"自營連"&ABS(法人動向!D4)&"賣","")), IF(法人動向!D3>=2,"自營連"&ABS(法人動向!D3)&"買",IF(法人動向!D3<=-2,"自營連"&ABS(法人動向!D3)&"賣",""))) -> 自營連2賣 | P14: =TEXT(月營收!$A14,"YYYY/MM") -> 2025/04 | Q14: =IF(月營收!$B14="","",月營收!$B14) -> 349566.94 | R14: =IF(月營收!$C14="","",月營收!$C14) -> 1188820.604 | S14: =IF(月營收!$D14="","",月營收!$D14) -> 22.24 | T14: =IF(月營收!$E14="","",月營收!$E14) -> 48.11 | U14: =IF(月營收!$F14="Y","合併",IF(月營收!$F14="N","非合併","")) ->  | V14: ='合併財報(累計)'!$A14 -> 流動資產 | W14: =IF('合併財報(累計)'!$B14="","",'合併財報(累計)'!$B14) -> 2194032910 | X14: =IF('合併財報(累計)'!$C14="","",'合併財報(累計)'!$C14) -> 3088352120 | Y14: =IF('合併財報(累計)'!$D14="","",'合併財報(累計)'!$D14) -> 3817130817 | Z14: =IF('合併財報(累計)'!$F14="","",'合併財報(累計)'!$F14) -> 3817130817 | AB14: ='合併財報(累計)'!A69 -> 其他收益及費損淨額 | AC14: ='合併財報(累計)'!B69 -> 188694 | AD14: ='合併財報(累計)'!C69 -> -1230199 | AE14: ='合併財報(累計)'!D69 -> 447328 | AG14: ='合併財報(單季)'!A14 -> 稅前淨利 | AH14: ='合併財報(單季)'!B14 -> 384186852 | AI14: ='合併財報(單季)'!C14 -> 448798004 | AJ14: ='合併財報(單季)'!D14 -> 430895412 | AK14: ='合併財報(單季)'!E14 -> 493035204 | AL14: ='合併財報(單季)'!F14 -> 525369023 | AM14: ='合併財報(單季)'!G14 -> 592363201 | AO14: =IFRS_BS!A14 -> 其他流動資產 | AP14: =IFRS_BS!B14 -> 26222380 | AQ14: =IFRS_BS!C14 -> 43237354 | AR14: =IFRS_BS!D14 -> 45703772 | AS14: =IFRS_BS!F14 -> 0 | AU14: =IF('IFRS_IS(Q)'!A14="","",'IFRS_IS(Q)'!A14) -> 處分不動產、廠房及設備利益 | AV14: =IF('IFRS_IS(Q)'!B14="","",'IFRS_IS(Q)'!B14) -> 0 | AW14: =IF('IFRS_IS(Q)'!C14="","",'IFRS_IS(Q)'!C14) -> 0 | AX14: =IF('IFRS_IS(Q)'!D14="","",'IFRS_IS(Q)'!D14) -> 0 | AY14: =IF('IFRS_IS(Q)'!E14="","",'IFRS_IS(Q)'!E14) -> 0 | AZ14: =IF('IFRS_IS(Q)'!F14="","",'IFRS_IS(Q)'!F14) -> 0 | BA14: =IF('IFRS_IS(Q)'!G14="","",'IFRS_IS(Q)'!G14) ->  | BC14: =IF(IFRS_note!A52="","",IFRS_note!A52) -> 與其他綜合損益組成部分相關之所得稅─OCI | BD14: =IF(IFRS_note!B52="","",IFRS_note!B52) ->  | BE14: =IF(IFRS_note!C52="","",IFRS_note!C52) ->  | BF14: =IF(IFRS_note!D52="","",IFRS_note!D52) ->  | BG14: =IF(IFRS_note!E52="","",IFRS_note!E52) ->  | BH14: =IF(IFRS_note!F52="","",IFRS_note!F52) ->  | BI14: =IF(IFRS_note!G52="","",IFRS_note!G52) ->  | BL14: =IF(IFRS_note!B2="","",IFRS_note!B2) -> 2024-12-31 | BM14: =IF(IFRS_note!C2="","",IFRS_note!C2) -> 2025-03-31 | BN14: =IF(IFRS_note!D2="","",IFRS_note!D2) -> 2025-06-30 | BO14: =IF(IFRS_note!E2="","",IFRS_note!E2) -> 2025-09-30 | BP14: =IF(IFRS_note!F2="","",IFRS_note!F2) -> 2025-12-31 | BQ14: =IF(IFRS_note!G2="","",IFRS_note!G2) -> 
P15: =TEXT(月營收!$A15,"YYYY/MM") -> 2025/03 | Q15: =IF(月營收!$B15="","",月營收!$B15) -> 285956.83 | R15: =IF(月營收!$C15="","",月營收!$C15) -> 839253.664 | S15: =IF(月營收!$D15="","",月營收!$D15) -> 9.98 | T15: =IF(月營收!$E15="","",月營收!$E15) -> 46.49 | U15: =IF(月營收!$F15="Y","合併",IF(月營收!$F15="N","非合併","")) ->  | V15: ='合併財報(累計)'!$A15 -> 透過損益按公允價值衡量之金融資產－非流動 | W15: =IF('合併財報(累計)'!$B15="","",'合併財報(累計)'!$B15) -> 13417457 | X15: =IF('合併財報(累計)'!$C15="","",'合併財報(累計)'!$C15) -> 15199842 | Y15: =IF('合併財報(累計)'!$D15="","",'合併財報(累計)'!$D15) -> 15032128 | Z15: =IF('合併財報(累計)'!$F15="","",'合併財報(累計)'!$F15) -> 15032128 | AB15: ='合併財報(累計)'!A70 -> 營業利益 | AC15: ='合併財報(累計)'!B70 -> 921465606 | AD15: ='合併財報(累計)'!C70 -> 1322053050 | AE15: ='合併財報(累計)'!D70 -> 1936091677 | AG15: ='合併財報(單季)'!A15 -> 所得稅費用 | AH15: ='合併財報(單季)'!B15 -> 59106682 | AI15: ='合併財報(單季)'!C15 -> 74329116 | AJ15: ='合併財報(單季)'!D15 -> 70162751 | AK15: ='合併財報(單季)'!E15 -> 95541780 | AL15: ='合併財報(單季)'!F15 -> 73613661 | AM15: ='合併財報(單季)'!G15 -> 86947868 | AO15: =IFRS_BS!A15 -> 透過損益按公允價值衡量之金融資產－非流動 | AP15: =IFRS_BS!B15 -> 13417457 | AQ15: =IFRS_BS!C15 -> 15199842 | AR15: =IFRS_BS!D15 -> 15485300 | AS15: =IFRS_BS!F15 -> 0 | AU15: =IF('IFRS_IS(Q)'!A15="","",'IFRS_IS(Q)'!A15) -> 處分投資利益 | AV15: =IF('IFRS_IS(Q)'!B15="","",'IFRS_IS(Q)'!B15) -> 7126 | AW15: =IF('IFRS_IS(Q)'!C15="","",'IFRS_IS(Q)'!C15) -> 0 | AX15: =IF('IFRS_IS(Q)'!D15="","",'IFRS_IS(Q)'!D15) -> 0 | AY15: =IF('IFRS_IS(Q)'!E15="","",'IFRS_IS(Q)'!E15) -> 0 | AZ15: =IF('IFRS_IS(Q)'!F15="","",'IFRS_IS(Q)'!F15) -> 0 | BA15: =IF('IFRS_IS(Q)'!G15="","",'IFRS_IS(Q)'!G15) ->  | BC15: =IF(IFRS_note!A53="","",IFRS_note!A53) -> 其他綜合損益─OCI | BD15: =IF(IFRS_note!B53="","",IFRS_note!B53) -> 71585646 | BE15: =IF(IFRS_note!C53="","",IFRS_note!C53) -> 31896928 | BF15: =IF(IFRS_note!D53="","",IFRS_note!D53) -> -222604953 | BG15: =IF(IFRS_note!E53="","",IFRS_note!E53) -> -127403017 | BH15: =IF(IFRS_note!F53="","",IFRS_note!F53) -> -56326519 | BI15: =IF(IFRS_note!G53="","",IFRS_note!G53) ->  | BK15: 負債準備<主要觀察負債準備性質>
A16: 股利年度 | B16: 現金股利(元) | D16: 股票股利(元) | E16: 除權日 | F16: 除息日 | P16: =TEXT(月營收!$A16,"YYYY/MM") -> 2025/02 | Q16: =IF(月營收!$B16="","",月營收!$B16) -> 260008.796 | R16: =IF(月營收!$C16="","",月營收!$C16) -> 553296.834 | S16: =IF(月營收!$D16="","",月營收!$D16) -> -11.35 | T16: =IF(月營收!$E16="","",月營收!$E16) -> 43.14 | U16: =IF(月營收!$F16="Y","合併",IF(月營收!$F16="N","非合併","")) ->  | V16: ='合併財報(累計)'!$A16 -> 透過其他綜合損益按公允價值衡量之金融資產－非流動 | W16: =IF('合併財報(累計)'!$B16="","",'合併財報(累計)'!$B16) -> 7208655 | X16: =IF('合併財報(累計)'!$C16="","",'合併財報(累計)'!$C16) -> 7822884 | Y16: =IF('合併財報(累計)'!$D16="","",'合併財報(累計)'!$D16) -> 8797170 | Z16: =IF('合併財報(累計)'!$F16="","",'合併財報(累計)'!$F16) -> 8797170 | AB16: ='合併財報(累計)'!A71 -> 採權益法之關聯企業及合資損益之份額 | AC16: ='合併財報(累計)'!B71 -> 4655098 | AD16: ='合併財報(累計)'!C71 -> 4879367 | AE16: ='合併財報(累計)'!D71 -> 5496594 | AG16: ='合併財報(單季)'!A16 -> 繼續營業單位損益 | AH16: ='合併財報(單季)'!B16 -> 325080170 | AI16: ='合併財報(單季)'!C16 -> 374468888 | AJ16: ='合併財報(單季)'!D16 -> 360732661 | AK16: ='合併財報(單季)'!E16 -> 397493424 | AL16: ='合併財報(單季)'!F16 -> 451755362 | AM16: ='合併財報(單季)'!G16 -> 505415333 | AO16: =IFRS_BS!A16 -> 透過其他綜合損益按公允價值衡量之金融資產－非流動 | AP16: =IFRS_BS!B16 -> 7208655 | AQ16: =IFRS_BS!C16 -> 7822884 | AR16: =IFRS_BS!D16 -> 8337662 | AS16: =IFRS_BS!F16 -> 0 | AU16: =IF('IFRS_IS(Q)'!A16="","",'IFRS_IS(Q)'!A16) -> 外幣兌換利益 | AV16: =IF('IFRS_IS(Q)'!B16="","",'IFRS_IS(Q)'!B16) -> 4416025 | AW16: =IF('IFRS_IS(Q)'!C16="","",'IFRS_IS(Q)'!C16) -> 3538319 | AX16: =IF('IFRS_IS(Q)'!D16="","",'IFRS_IS(Q)'!D16) -> -3538319 | AY16: =IF('IFRS_IS(Q)'!E16="","",'IFRS_IS(Q)'!E16) -> 5516800 | AZ16: =IF('IFRS_IS(Q)'!F16="","",'IFRS_IS(Q)'!F16) -> 8314551 | BA16: =IF('IFRS_IS(Q)'!G16="","",'IFRS_IS(Q)'!G16) ->  | BC16: =IF(IFRS_note!A54="","",IFRS_note!A54) -> ROA(A)稅後息前 | BD16: =IF(IFRS_note!B54="","",IFRS_note!B54) -> 19.32 | BE16: =IF(IFRS_note!C54="","",IFRS_note!C54) -> 5.25 | BF16: =IF(IFRS_note!D54="","",IFRS_note!D54) -> 11.14 | BG16: =IF(IFRS_note!E54="","",IFRS_note!E54) -> 17.34 | BH16: =IF(IFRS_note!F54="","",IFRS_note!F54) -> 23.59 | BI16: =IF(IFRS_note!G54="","",IFRS_note!G54) ->  | BK16: =IF(IFRS_note!A19="","",IFRS_note!A19) -> 員工福利負債準備─流動 | BL16: =IF(IFRS_note!B19="","",IFRS_note!B19) -> 0 | BM16: =IF(IFRS_note!C19="","",IFRS_note!C19) -> 0 | BN16: =IF(IFRS_note!D19="","",IFRS_note!D19) -> 0 | BO16: =IF(IFRS_note!E19="","",IFRS_note!E19) -> 0 | BP16: =IF(IFRS_note!F19="","",IFRS_note!F19) -> 0 | BQ16: =IF(IFRS_note!G19="","",IFRS_note!G19) -> 
A17: =IF(股息股利!A3="","",YEAR(股息股利!A3)) -> 2025 | B17: =IF(股息股利!C3="","",股息股利!C3) -> 22.00006445 | D17: =IF(股息股利!D3="","",股息股利!D3) -> 0 | E17: =IF(股息股利!E3="","",股息股利!E3) ->  | F17: =IF(股息股利!F3="","",股息股利!F3) -> 2026-06-11 | P17: =TEXT(月營收!$A17,"YYYY/MM") -> 2025/01 | Q17: =IF(月營收!$B17="","",月營收!$B17) -> 293288.038 | R17: =IF(月營收!$C17="","",月營收!$C17) -> 293288.038 | S17: =IF(月營收!$D17="","",月營收!$D17) -> 5.44 | T17: =IF(月營收!$E17="","",月營收!$E17) -> 35.92 | U17: =IF(月營收!$F17="Y","合併",IF(月營收!$F17="N","非合併","")) ->  | V17: ='合併財報(累計)'!$A17 -> 按攤銷後成本衡量之金融資產－非流動 | W17: =IF('合併財報(累計)'!$B17="","",'合併財報(累計)'!$B17) -> 79199367 | X17: =IF('合併財報(累計)'!$C17="","",'合併財報(累計)'!$C17) -> 88596542 | Y17: =IF('合併財報(累計)'!$D17="","",'合併財報(累計)'!$D17) -> 110507804 | Z17: =IF('合併財報(累計)'!$F17="","",'合併財報(累計)'!$F17) -> 110507804 | AB17: ='合併財報(累計)'!A72 -> 其他收入 | AC17: ='合併財報(累計)'!B72 -> 60773885 | AD17: ='合併財報(累計)'!C72 -> 87780278 | AE17: ='合併財報(累計)'!D72 -> 106330810 | AG17: ='合併財報(單季)'!A17 -> 其他綜合損益－OCI | AH17: ='合併財報(單季)'!B17 -> -21056278 | AI17: ='合併財報(單季)'!C17 -> 37903377 | AJ17: ='合併財報(單季)'!D17 -> 31896928 | AK17: ='合併財報(單季)'!E17 -> -254501881 | AL17: ='合併財報(單季)'!F17 -> 95201936 | AM17: ='合併財報(單季)'!G17 -> 71076498 | AO17: =IFRS_BS!A17 -> 按攤銷後成本衡量之金融資產－非流動 | AP17: =IFRS_BS!B17 -> 79199367 | AQ17: =IFRS_BS!C17 -> 88596542 | AR17: =IFRS_BS!D17 -> 98203676 | AS17: =IFRS_BS!F17 -> 0 | AU17: =IF('IFRS_IS(Q)'!A17="","",'IFRS_IS(Q)'!A17) -> 透過損益按公允價值衡量之金融資產（負債）利益 | AV17: =IF('IFRS_IS(Q)'!B17="","",'IFRS_IS(Q)'!B17) -> 0 | AW17: =IF('IFRS_IS(Q)'!C17="","",'IFRS_IS(Q)'!C17) -> 0 | AX17: =IF('IFRS_IS(Q)'!D17="","",'IFRS_IS(Q)'!D17) -> 8052726 | AY17: =IF('IFRS_IS(Q)'!E17="","",'IFRS_IS(Q)'!E17) -> -7059168 | AZ17: =IF('IFRS_IS(Q)'!F17="","",'IFRS_IS(Q)'!F17) -> -993558 | BA17: =IF('IFRS_IS(Q)'!G17="","",'IFRS_IS(Q)'!G17) ->  | BC17: =IF(IFRS_note!A55="","",IFRS_note!A55) -> ROE(A)－稅後 | BD17: =IF(IFRS_note!B55="","",IFRS_note!B55) -> 30.04 | BE17: =IF(IFRS_note!C55="","",IFRS_note!C55) -> 8.08 | BF17: =IF(IFRS_note!D55="","",IFRS_note!D55) -> 16.96 | BG17: =IF(IFRS_note!E55="","",IFRS_note!E55) -> 25.86 | BH17: =IF(IFRS_note!F55="","",IFRS_note!F55) -> 35.06 | BI17: =IF(IFRS_note!G55="","",IFRS_note!G55) ->  | BK17: =IF(IFRS_note!A20="","",IFRS_note!A20) -> 保固之短期負債準備 | BL17: =IF(IFRS_note!B20="","",IFRS_note!B20) -> 0 | BM17: =IF(IFRS_note!C20="","",IFRS_note!C20) -> 0 | BN17: =IF(IFRS_note!D20="","",IFRS_note!D20) -> 0 | BO17: =IF(IFRS_note!E20="","",IFRS_note!E20) -> 0 | BP17: =IF(IFRS_note!F20="","",IFRS_note!F20) -> 0 | BQ17: =IF(IFRS_note!G20="","",IFRS_note!G20) -> 
A18: =IF(股息股利!A4="","",YEAR(股息股利!A4)) -> 2024 | B18: =IF(股息股利!C4="","",股息股利!C4) -> 16.9998161 | D18: =IF(股息股利!D4="","",股息股利!D4) -> 0 | E18: =IF(股息股利!E4="","",股息股利!E4) ->  | F18: =IF(股息股利!F4="","",股息股利!F4) -> 2025-06-12 | P18: =TEXT(月營收!$A18,"YYYY/MM") -> 2024/12 | Q18: =IF(月營收!$B18="","",月營收!$B18) -> 278163.107 | R18: =IF(月營收!$C18="","",月營收!$C18) -> 2894307.699 | S18: =IF(月營收!$D18="","",月營收!$D18) -> 0.76 | T18: =IF(月營收!$E18="","",月營收!$E18) -> 57.78 | U18: =IF(月營收!$F18="Y","合併",IF(月營收!$F18="N","非合併","")) ->  | V18: ='合併財報(累計)'!$A18 -> 避險之金融資產－非流動 | W18: =IF('合併財報(累計)'!$B18="","",'合併財報(累計)'!$B18) -> 0 | X18: =IF('合併財報(累計)'!$C18="","",'合併財報(累計)'!$C18) -> 0 | Y18: =IF('合併財報(累計)'!$D18="","",'合併財報(累計)'!$D18) -> 0 | Z18: =IF('合併財報(累計)'!$F18="","",'合併財報(累計)'!$F18) -> 0 | AB18: ='合併財報(累計)'!A73 -> 其他利益及損失 | AC18: ='合併財報(累計)'!B73 -> 4311840 | AD18: ='合併財報(累計)'!C73 -> 1671167 | AE18: ='合併財報(累計)'!D73 -> 6110200 | AG18: ='合併財報(單季)'!A18 -> 本期綜合損益總額 | AH18: ='合併財報(單季)'!B18 -> 304023892 | AI18: ='合併財報(單季)'!C18 -> 412372265 | AJ18: ='合併財報(單季)'!D18 -> 392629589 | AK18: ='合併財報(單季)'!E18 -> 142991543 | AL18: ='合併財報(單季)'!F18 -> 546957298 | AM18: ='合併財報(單季)'!G18 -> 576491831 | AO18: =IFRS_BS!A18 -> 合約資產－非流動 | AP18: =IFRS_BS!B18 -> 0 | AQ18: =IFRS_BS!C18 -> 0 | AR18: =IFRS_BS!D18 -> 0 | AS18: =IFRS_BS!F18 -> 0 | AU18: =IF('IFRS_IS(Q)'!A18="","",'IFRS_IS(Q)'!A18) -> 資產評價利益 | AV18: =IF('IFRS_IS(Q)'!B18="","",'IFRS_IS(Q)'!B18) -> 0 | AW18: =IF('IFRS_IS(Q)'!C18="","",'IFRS_IS(Q)'!C18) -> 0 | AX18: =IF('IFRS_IS(Q)'!D18="","",'IFRS_IS(Q)'!D18) -> 0 | AY18: =IF('IFRS_IS(Q)'!E18="","",'IFRS_IS(Q)'!E18) -> 0 | AZ18: =IF('IFRS_IS(Q)'!F18="","",'IFRS_IS(Q)'!F18) -> 0 | BA18: =IF('IFRS_IS(Q)'!G18="","",'IFRS_IS(Q)'!G18) ->  | BC18: =IF(IFRS_note!A56="","",IFRS_note!A56) -> ROA-綜合損益 | BD18: =IF(IFRS_note!B56="","",IFRS_note!B56) -> 20.35 | BE18: =IF(IFRS_note!C56="","",IFRS_note!C56) -> 5.68 | BF18: =IF(IFRS_note!D56="","",IFRS_note!D56) -> 7.82 | BG18: =IF(IFRS_note!E56="","",IFRS_note!E56) -> 15.41 | BH18: =IF(IFRS_note!F56="","",IFRS_note!F56) -> 22.69 | BI18: =IF(IFRS_note!G56="","",IFRS_note!G56) ->  | BK18: =IF(IFRS_note!A21="","",IFRS_note!A21) -> 重組之短期負債準備 | BL18: =IF(IFRS_note!B21="","",IFRS_note!B21) -> 0 | BM18: =IF(IFRS_note!C21="","",IFRS_note!C21) -> 0 | BN18: =IF(IFRS_note!D21="","",IFRS_note!D21) -> 0 | BO18: =IF(IFRS_note!E21="","",IFRS_note!E21) -> 0 | BP18: =IF(IFRS_note!F21="","",IFRS_note!F21) -> 0 | BQ18: =IF(IFRS_note!G21="","",IFRS_note!G21) -> 
A19: =IF(股息股利!A5="","",YEAR(股息股利!A5)) -> 2023 | B19: =IF(股息股利!C5="","",股息股利!C5) -> 12.99957938 | D19: =IF(股息股利!D5="","",股息股利!D5) -> 0 | E19: =IF(股息股利!E5="","",股息股利!E5) ->  | F19: =IF(股息股利!F5="","",股息股利!F5) -> 2024-06-13 | P19: =TEXT(月營收!$A19,"YYYY/MM") -> 2024/11 | Q19: =IF(月營收!$B19="","",月營收!$B19) -> 276058.358 | R19: =IF(月營收!$C19="","",月營收!$C19) -> 2616144.592 | S19: =IF(月營收!$D19="","",月營收!$D19) -> -12.15 | T19: =IF(月營收!$E19="","",月營收!$E19) -> 33.99 | U19: =IF(月營收!$F19="Y","合併",IF(月營收!$F19="N","非合併","")) ->  | V19: ='合併財報(累計)'!$A19 -> 採權益法之長期股權投資 | W19: =IF('合併財報(累計)'!$B19="","",'合併財報(累計)'!$B19) -> 29616638 | X19: =IF('合併財報(累計)'!$C19="","",'合併財報(累計)'!$C19) -> 37421105 | Y19: =IF('合併財報(累計)'!$D19="","",'合併財報(累計)'!$D19) -> 38033271 | Z19: =IF('合併財報(累計)'!$F19="","",'合併財報(累計)'!$F19) -> 38033271 | AB19: ='合併財報(累計)'!A74 -> 財務成本 | AC19: ='合併財報(累計)'!B74 -> 11999360 | AD19: ='合併財報(累計)'!C74 -> 10495320 | AE19: ='合併財報(累計)'!D74 -> 12370387 | AG19: ='合併財報(單季)'!A19 -> 歸屬母公司淨利（損） | AH19: ='合併財報(單季)'!B19 -> 325257571 | AI19: ='合併財報(單季)'!C19 -> 374679727 | AJ19: ='合併財報(單季)'!D19 -> 361564128 | AK19: ='合併財報(單季)'!E19 -> 398273102 | AL19: ='合併財報(單季)'!F19 -> 452301407 | AM19: ='合併財報(單季)'!G19 -> 505743990 | AO19: =IFRS_BS!A19 -> 採權益法之長期股權投資 | AP19: =IFRS_BS!B19 -> 29616638 | AQ19: =IFRS_BS!C19 -> 37421105 | AR19: =IFRS_BS!D19 -> 38766658 | AS19: =IFRS_BS!F19 -> 0 | AU19: =IF('IFRS_IS(Q)'!A19="","",'IFRS_IS(Q)'!A19) -> 金融資產減損迴轉利益 | AV19: =IF('IFRS_IS(Q)'!B19="","",'IFRS_IS(Q)'!B19) -> 0 | AW19: =IF('IFRS_IS(Q)'!C19="","",'IFRS_IS(Q)'!C19) -> 0 | AX19: =IF('IFRS_IS(Q)'!D19="","",'IFRS_IS(Q)'!D19) -> 0 | AY19: =IF('IFRS_IS(Q)'!E19="","",'IFRS_IS(Q)'!E19) -> 0 | AZ19: =IF('IFRS_IS(Q)'!F19="","",'IFRS_IS(Q)'!F19) -> 0 | BA19: =IF('IFRS_IS(Q)'!G19="","",'IFRS_IS(Q)'!G19) ->  | BC19: =IF(IFRS_note!A57="","",IFRS_note!A57) -> ROE-綜合損益 | BD19: =IF(IFRS_note!B57="","",IFRS_note!B57) -> 31.87 | BE19: =IF(IFRS_note!C57="","",IFRS_note!C57) -> 8.8 | BF19: =IF(IFRS_note!D57="","",IFRS_note!D57) -> 11.98 | BG19: =IF(IFRS_note!E57="","",IFRS_note!E57) -> 23.13 | BH19: =IF(IFRS_note!F57="","",IFRS_note!F57) -> 33.91 | BI19: =IF(IFRS_note!G57="","",IFRS_note!G57) ->  | BK19: =IF(IFRS_note!A22="","",IFRS_note!A22) -> 有待法律程序決定之短期負債準備 | BL19: =IF(IFRS_note!B22="","",IFRS_note!B22) -> 0 | BM19: =IF(IFRS_note!C22="","",IFRS_note!C22) -> 0 | BN19: =IF(IFRS_note!D22="","",IFRS_note!D22) -> 0 | BO19: =IF(IFRS_note!E22="","",IFRS_note!E22) -> 0 | BP19: =IF(IFRS_note!F22="","",IFRS_note!F22) -> 0 | BQ19: =IF(IFRS_note!G22="","",IFRS_note!G22) -> 
A20: =IF(股息股利!A6="","",YEAR(股息股利!A6)) -> 2022 | B20: =IF(股息股利!C6="","",股息股利!C6) -> 10.99964144 | D20: =IF(股息股利!D6="","",股息股利!D6) -> 0 | E20: =IF(股息股利!E6="","",股息股利!E6) ->  | F20: =IF(股息股利!F6="","",股息股利!F6) -> 2023-06-15 | P20: =TEXT(月營收!$A20,"YYYY/MM") -> 2024/10 | Q20: =IF(月營收!$B20="","",月營收!$B20) -> 314239.713 | R20: =IF(月營收!$C20="","",月營收!$C20) -> 2340086.234 | S20: =IF(月營收!$D20="","",月營收!$D20) -> 24.76 | T20: =IF(月營收!$E20="","",月營收!$E20) -> 29.21 | U20: =IF(月營收!$F20="Y","合併",IF(月營收!$F20="N","非合併","")) ->  | V20: ='合併財報(累計)'!$A20 -> 不動產廠房及設備 | W20: =IF('合併財報(累計)'!$B20="","",'合併財報(累計)'!$B20) -> 3064474984 | X20: =IF('合併財報(累計)'!$C20="","",'合併財報(累計)'!$C20) -> 3234980070 | Y20: =IF('合併財報(累計)'!$D20="","",'合併財報(累計)'!$D20) -> 3691840916 | Z20: =IF('合併財報(累計)'!$F20="","",'合併財報(累計)'!$F20) -> 3691840916 | AB20: ='合併財報(累計)'!A75 -> 採用權益法認列之關聯企業及合資損失之份額 | AC20: ='合併財報(累計)'!B75 -> 0 | AD20: ='合併財報(累計)'!C75 -> 0 | AE20: ='合併財報(累計)'!D75 -> 0 | AG20: ='合併財報(單季)'!A20 -> 歸屬非控制權益淨利（損） | AH20: ='合併財報(單季)'!B20 -> -177401 | AI20: ='合併財報(單季)'!C20 -> -210839 | AJ20: ='合併財報(單季)'!D20 -> -831467 | AK20: ='合併財報(單季)'!E20 -> -779678 | AL20: ='合併財報(單季)'!F20 -> -546045 | AM20: ='合併財報(單季)'!G20 -> -328657 | AO20: =IFRS_BS!A20 -> 不動產廠房及設備 | AP20: =IFRS_BS!B20 -> 3064474984 | AQ20: =IFRS_BS!C20 -> 3234980070 | AR20: =IFRS_BS!D20 -> 3400806154 | AS20: =IFRS_BS!F20 -> 0 | AU20: =IF('IFRS_IS(Q)'!A20="","",'IFRS_IS(Q)'!A20) -> 資產減損迴轉利益 | AV20: =IF('IFRS_IS(Q)'!B20="","",'IFRS_IS(Q)'!B20) -> 0 | AW20: =IF('IFRS_IS(Q)'!C20="","",'IFRS_IS(Q)'!C20) -> 0 | AX20: =IF('IFRS_IS(Q)'!D20="","",'IFRS_IS(Q)'!D20) -> 0 | AY20: =IF('IFRS_IS(Q)'!E20="","",'IFRS_IS(Q)'!E20) -> 0 | AZ20: =IF('IFRS_IS(Q)'!F20="","",'IFRS_IS(Q)'!F20) -> 0 | BA20: =IF('IFRS_IS(Q)'!G20="","",'IFRS_IS(Q)'!G20) ->  | BK20: =IF(IFRS_note!A23="","",IFRS_note!A23) -> 虧損性合約之短期負債準備 | BL20: =IF(IFRS_note!B23="","",IFRS_note!B23) -> 0 | BM20: =IF(IFRS_note!C23="","",IFRS_note!C23) -> 0 | BN20: =IF(IFRS_note!D23="","",IFRS_note!D23) -> 0 | BO20: =IF(IFRS_note!E23="","",IFRS_note!E23) -> 0 | BP20: =IF(IFRS_note!F23="","",IFRS_note!F23) -> 0 | BQ20: =IF(IFRS_note!G23="","",IFRS_note!G23) -> 
P21: =TEXT(月營收!$A21,"YYYY/MM") -> 2024/09 | Q21: =IF(月營收!$B21="","",月營收!$B21) -> 251872.717 | R21: =IF(月營收!$C21="","",月營收!$C21) -> 2025846.521 | S21: =IF(月營收!$D21="","",月營收!$D21) -> 0.4 | T21: =IF(月營收!$E21="","",月營收!$E21) -> 39.6 | U21: =IF(月營收!$F21="Y","合併",IF(月營收!$F21="N","非合併","")) ->  | V21: ='合併財報(累計)'!$A21 -> 商譽及無形資產合計 | W21: =IF('合併財報(累計)'!$B21="","",'合併財報(累計)'!$B21) -> 22766744 | X21: =IF('合併財報(累計)'!$C21="","",'合併財報(累計)'!$C21) -> 26282520 | Y21: =IF('合併財報(累計)'!$D21="","",'合併財報(累計)'!$D21) -> 24952615 | Z21: =IF('合併財報(累計)'!$F21="","",'合併財報(累計)'!$F21) -> 24952615 | AB21: ='合併財報(累計)'!A76 -> 採用權益法認列之關聯企業及合資利益之份額 | AC21: ='合併財報(累計)'!B76 -> 4655098 | AD21: ='合併財報(累計)'!C76 -> 4879367 | AE21: ='合併財報(累計)'!D76 -> 5496594 | AG21: ='合併財報(單季)'!A21 -> 綜合損益歸屬母公司 | AH21: ='合併財報(單季)'!B21 -> 302100323 | AI21: ='合併財報(單季)'!C21 -> 414072301 | AJ21: ='合併財報(單季)'!D21 -> 391813092 | AK21: ='合併財報(單季)'!E21 -> 146202878 | AL21: ='合併財報(單季)'!F21 -> 546571990 | AM21: ='合併財報(單季)'!G21 -> 576665931 | AO21: =IFRS_BS!A21 -> 商譽淨額 | AP21: =IFRS_BS!B21 -> 5796438 | AQ21: =IFRS_BS!C21 -> 6070864 | AR21: =IFRS_BS!D21 -> 6130203 | AS21: =IFRS_BS!F21 -> 0 | AU21: =IF('IFRS_IS(Q)'!A21="","",'IFRS_IS(Q)'!A21) -> 不動產、廠房及設備減損迴轉利益 | AV21: =IF('IFRS_IS(Q)'!B21="","",'IFRS_IS(Q)'!B21) -> 0 | AW21: =IF('IFRS_IS(Q)'!C21="","",'IFRS_IS(Q)'!C21) -> 0 | AX21: =IF('IFRS_IS(Q)'!D21="","",'IFRS_IS(Q)'!D21) -> 0 | AY21: =IF('IFRS_IS(Q)'!E21="","",'IFRS_IS(Q)'!E21) -> 0 | AZ21: =IF('IFRS_IS(Q)'!F21="","",'IFRS_IS(Q)'!F21) -> 0 | BA21: =IF('IFRS_IS(Q)'!G21="","",'IFRS_IS(Q)'!G21) ->  | BC21: 補充明細_投資性不動產 | BD21: =IF(IFRS_note!B2="","",IFRS_note!B2) -> 2024-12-31 | BE21: =IF(IFRS_note!C2="","",IFRS_note!C2) -> 2025-03-31 | BF21: =IF(IFRS_note!D2="","",IFRS_note!D2) -> 2025-06-30 | BG21: =IF(IFRS_note!E2="","",IFRS_note!E2) -> 2025-09-30 | BH21: =IF(IFRS_note!F2="","",IFRS_note!F2) -> 2025-12-31 | BI21: =IF(IFRS_note!G2="","",IFRS_note!G2) ->  | BK21: =IF(IFRS_note!A24="","",IFRS_note!A24) -> 除役、復原及修復成本之短期負債準備 | BL21: =IF(IFRS_note!B24="","",IFRS_note!B24) -> 0 | BM21: =IF(IFRS_note!C24="","",IFRS_note!C24) -> 0 | BN21: =IF(IFRS_note!D24="","",IFRS_note!D24) -> 0 | BO21: =IF(IFRS_note!E24="","",IFRS_note!E24) -> 0 | BP21: =IF(IFRS_note!F24="","",IFRS_note!F24) -> 0 | BQ21: =IF(IFRS_note!G24="","",IFRS_note!G24) -> 
P22: =TEXT(月營收!$A22,"YYYY/MM") -> 2024/08 | Q22: =IF(月營收!$B22="","",月營收!$B22) -> 250866.368 | R22: =IF(月營收!$C22="","",月營收!$C22) -> 1773973.804 | S22: =IF(月營收!$D22="","",月營收!$D22) -> -2.37 | T22: =IF(月營收!$E22="","",月營收!$E22) -> 32.95 | U22: =IF(月營收!$F22="Y","合併",IF(月營收!$F22="N","非合併","")) ->  | V22: ='合併財報(累計)'!$A22 -> 遞延所得稅資產 | W22: =IF('合併財報(累計)'!$B22="","",'合併財報(累計)'!$B22) -> 64175787 | X22: =IF('合併財報(累計)'!$C22="","",'合併財報(累計)'!$C22) -> 65943300 | Y22: =IF('合併財報(累計)'!$D22="","",'合併財報(累計)'!$D22) -> 62940253 | Z22: =IF('合併財報(累計)'!$F22="","",'合併財報(累計)'!$F22) -> 62940253 | AB22: ='合併財報(累計)'!A77 -> 預期信用減損（損失）利益 | AC22: ='合併財報(累計)'!B77 -> -35745 | AD22: ='合併財報(累計)'!C77 -> -49907 | AE22: ='合併財報(累計)'!D77 -> 3946 | AG22: ='合併財報(單季)'!A22 -> 綜合損益歸屬非控制權益 | AH22: ='合併財報(單季)'!B22 -> 1923569 | AI22: ='合併財報(單季)'!C22 -> -1700036 | AJ22: ='合併財報(單季)'!D22 -> 816497 | AK22: ='合併財報(單季)'!E22 -> -3211335 | AL22: ='合併財報(單季)'!F22 -> 385308 | AM22: ='合併財報(單季)'!G22 -> -174100 | AO22: =IFRS_BS!A22 -> 遞延所得稅資產 | AP22: =IFRS_BS!B22 -> 64175787 | AQ22: =IFRS_BS!C22 -> 65943300 | AR22: =IFRS_BS!D22 -> 66666777 | AS22: =IFRS_BS!F22 -> 0 | AU22: =IF('IFRS_IS(Q)'!A22="","",'IFRS_IS(Q)'!A22) -> 其他減損迴轉利益 | AV22: =IF('IFRS_IS(Q)'!B22="","",'IFRS_IS(Q)'!B22) -> 0 | AW22: =IF('IFRS_IS(Q)'!C22="","",'IFRS_IS(Q)'!C22) -> 0 | AX22: =IF('IFRS_IS(Q)'!D22="","",'IFRS_IS(Q)'!D22) -> 0 | AY22: =IF('IFRS_IS(Q)'!E22="","",'IFRS_IS(Q)'!E22) -> 0 | AZ22: =IF('IFRS_IS(Q)'!F22="","",'IFRS_IS(Q)'!F22) -> 0 | BA22: =IF('IFRS_IS(Q)'!G22="","",'IFRS_IS(Q)'!G22) ->  | BK22: =IF(IFRS_note!A25="","",IFRS_note!A25) -> 銷貨退回及折讓之短期負債準備 | BL22: =IF(IFRS_note!B25="","",IFRS_note!B25) -> 0 | BM22: =IF(IFRS_note!C25="","",IFRS_note!C25) -> 0 | BN22: =IF(IFRS_note!D25="","",IFRS_note!D25) -> 0 | BO22: =IF(IFRS_note!E25="","",IFRS_note!E25) -> 0 | BP22: =IF(IFRS_note!F25="","",IFRS_note!F25) -> 0 | BQ22: =IF(IFRS_note!G25="","",IFRS_note!G25) -> 
P23: =TEXT(月營收!$A23,"YYYY/MM") -> 2024/07 | Q23: =IF(月營收!$B23="","",月營收!$B23) -> 256953.058 | R23: =IF(月營收!$C23="","",月營收!$C23) -> 1523107.436 | S23: =IF(月營收!$D23="","",月營收!$D23) -> 23.61 | T23: =IF(月營收!$E23="","",月營收!$E23) -> 44.67 | U23: =IF(月營收!$F23="Y","合併",IF(月營收!$F23="N","非合併","")) ->  | V23: ='合併財報(累計)'!$A23 -> 其他非流動資產 | W23: =IF('合併財報(累計)'!$B23="","",'合併財報(累計)'!$B23) -> 57478673 | X23: =IF('合併財報(累計)'!$C23="","",'合併財報(累計)'!$C23) -> 127339617 | Y23: =IF('合併財報(累計)'!$D23="","",'合併財報(累計)'!$D23) -> 163788904 | Z23: =IF('合併財報(累計)'!$F23="","",'合併財報(累計)'!$F23) -> 163788904 | AB23: ='合併財報(累計)'!A78 -> 營業外收入及支出 | AC23: ='合併財報(累計)'!B78 -> 57705718 | AD23: ='合併財報(累計)'!C78 -> 83785585 | AE23: ='合併財報(累計)'!D78 -> 105571163 | AG23: ='合併財報(單季)'!A23 -> 每股盈餘 | AH23: ='合併財報(單季)'!B23 -> 12.55 | AI23: ='合併財報(單季)'!C23 -> 14.45 | AJ23: ='合併財報(單季)'!D23 -> 13.95 | AK23: ='合併財報(單季)'!E23 -> 15.36 | AL23: ='合併財報(單季)'!F23 -> 17.44 | AM23: ='合併財報(單季)'!G23 -> 19.51 | AO23: =IFRS_BS!A23 -> 投資性不動產淨額 | AP23: =IFRS_BS!B23 -> 0 | AQ23: =IFRS_BS!C23 -> 0 | AR23: =IFRS_BS!D23 -> 0 | AS23: =IFRS_BS!F23 -> 0 | AU23: =IF('IFRS_IS(Q)'!A23="","",'IFRS_IS(Q)'!A23) -> 處分不動產、廠房及設備損失 | AV23: =IF('IFRS_IS(Q)'!B23="","",'IFRS_IS(Q)'!B23) -> 0 | AW23: =IF('IFRS_IS(Q)'!C23="","",'IFRS_IS(Q)'!C23) -> 0 | AX23: =IF('IFRS_IS(Q)'!D23="","",'IFRS_IS(Q)'!D23) -> 0 | AY23: =IF('IFRS_IS(Q)'!E23="","",'IFRS_IS(Q)'!E23) -> 0 | AZ23: =IF('IFRS_IS(Q)'!F23="","",'IFRS_IS(Q)'!F23) -> 0 | BA23: =IF('IFRS_IS(Q)'!G23="","",'IFRS_IS(Q)'!G23) ->  | BC23: 投資性不動產<主要觀察未來資產增值情形> | BK23: =IF(IFRS_note!A26="","",IFRS_note!A26) -> 保證合約之短期負債準備 | BL23: =IF(IFRS_note!B26="","",IFRS_note!B26) -> 0 | BM23: =IF(IFRS_note!C26="","",IFRS_note!C26) -> 0 | BN23: =IF(IFRS_note!D26="","",IFRS_note!D26) -> 0 | BO23: =IF(IFRS_note!E26="","",IFRS_note!E26) -> 0 | BP23: =IF(IFRS_note!F26="","",IFRS_note!F26) -> 0 | BQ23: =IF(IFRS_note!G26="","",IFRS_note!G26) -> 
P24: =TEXT(月營收!$A24,"YYYY/MM") -> 2024/06 | Q24: =IF(月營收!$B24="","",月營收!$B24) -> 207868.693 | R24: =IF(月營收!$C24="","",月營收!$C24) -> 1266154.378 | S24: =IF(月營收!$D24="","",月營收!$D24) -> -9.47 | T24: =IF(月營收!$E24="","",月營收!$E24) -> 32.9 | U24: =IF(月營收!$F24="Y","合併",IF(月營收!$F24="N","非合併","")) ->  | V24: ='合併財報(累計)'!$A24 -> 非流動資產 | W24: =IF('合併財報(累計)'!$B24="","",'合併財報(累計)'!$B24) -> 3338338305 | X24: =IF('合併財報(累計)'!$C24="","",'合併財報(累計)'!$C24) -> 3603585880 | Y24: =IF('合併財報(累計)'!$D24="","",'合併財報(累計)'!$D24) -> 4115893061 | Z24: =IF('合併財報(累計)'!$F24="","",'合併財報(累計)'!$F24) -> 4115893061 | AB24: ='合併財報(累計)'!A79 -> 稅前淨利 | AC24: ='合併財報(累計)'!B79 -> 979171324 | AD24: ='合併財報(累計)'!C79 -> 1405838635 | AE24: ='合併財報(累計)'!D79 -> 2041662840 | AG24: ='合併財報(單季)'!A24 -> 每股盈餘－完全稀釋 | AH24: ='合併財報(單季)'!B24 -> 12.54 | AI24: ='合併財報(單季)'!C24 -> 0 | AJ24: ='合併財報(單季)'!D24 -> 13.94 | AK24: ='合併財報(單季)'!E24 -> 15.36 | AL24: ='合併財報(單季)'!F24 -> 17.44 | AM24: ='合併財報(單季)'!G24 -> 0 | AO24: =IFRS_BS!A24 -> 其他非流動資產－其他 | AP24: =IFRS_BS!B24 -> 17053843 | AQ24: =IFRS_BS!C24 -> 87211226 | AR24: =IFRS_BS!D24 -> 92603552 | AS24: =IFRS_BS!F24 -> 0 | AU24: =IF('IFRS_IS(Q)'!A24="","",'IFRS_IS(Q)'!A24) -> 處分投資損失 | AV24: =IF('IFRS_IS(Q)'!B24="","",'IFRS_IS(Q)'!B24) -> 396615 | AW24: =IF('IFRS_IS(Q)'!C24="","",'IFRS_IS(Q)'!C24) -> 218226 | AX24: =IF('IFRS_IS(Q)'!D24="","",'IFRS_IS(Q)'!D24) -> 32605 | AY24: =IF('IFRS_IS(Q)'!E24="","",'IFRS_IS(Q)'!E24) -> 16770 | AZ24: =IF('IFRS_IS(Q)'!F24="","",'IFRS_IS(Q)'!F24) -> 100579 | BA24: =IF('IFRS_IS(Q)'!G24="","",'IFRS_IS(Q)'!G24) ->  | BC24: =IF(IFRS_note!A12="","",IFRS_note!A12) -> 投資性不動產淨額 | BD24: =IF(IFRS_note!B12="","",IFRS_note!B12) -> 0 | BE24: =IF(IFRS_note!C12="","",IFRS_note!C12) -> 0 | BF24: =IF(IFRS_note!D12="","",IFRS_note!D12) -> 0 | BG24: =IF(IFRS_note!E12="","",IFRS_note!E12) -> 0 | BH24: =IF(IFRS_note!F12="","",IFRS_note!F12) -> 0 | BI24: =IF(IFRS_note!G12="","",IFRS_note!G12) ->  | BK24: =IF(IFRS_note!A27="","",IFRS_note!A27) -> 其他短期負債準備 | BL24: =IF(IFRS_note!B27="","",IFRS_note!B27) -> 0 | BM24: =IF(IFRS_note!C27="","",IFRS_note!C27) -> 0 | BN24: =IF(IFRS_note!D27="","",IFRS_note!D27) -> 0 | BO24: =IF(IFRS_note!E27="","",IFRS_note!E27) -> 0 | BP24: =IF(IFRS_note!F27="","",IFRS_note!F27) -> 0 | BQ24: =IF(IFRS_note!G27="","",IFRS_note!G27) -> 
P25: =TEXT(月營收!$A25,"YYYY/MM") -> 2024/05 | Q25: =IF(月營收!$B25="","",月營收!$B25) -> 229620.372 | R25: =IF(月營收!$C25="","",月營收!$C25) -> 1058285.685 | S25: =IF(月營收!$D25="","",月營收!$D25) -> -2.71 | T25: =IF(月營收!$E25="","",月營收!$E25) -> 30.07 | U25: =IF(月營收!$F25="Y","合併",IF(月營收!$F25="N","非合併","")) ->  | V25: ='合併財報(累計)'!$A25 -> 資產總額 | W25: =IF('合併財報(累計)'!$B25="","",'合併財報(累計)'!$B25) -> 5532371215 | X25: =IF('合併財報(累計)'!$C25="","",'合併財報(累計)'!$C25) -> 6691938000 | Y25: =IF('合併財報(累計)'!$D25="","",'合併財報(累計)'!$D25) -> 7933023878 | Z25: =IF('合併財報(累計)'!$F25="","",'合併財報(累計)'!$F25) -> 7933023878 | AB25: ='合併財報(累計)'!A80 -> 所得稅費用 | AC25: ='合併財報(累計)'!B80 -> 141403807 | AD25: ='合併財報(累計)'!C80 -> 233406876 | AE25: ='合併財報(累計)'!D80 -> 326266060 | AG25: 以合併為主現金流量表-單季/單半年 | AO25: =IFRS_BS!A25 -> 非流動資產 | AP25: =IFRS_BS!B25 -> 3338338305 | AQ25: =IFRS_BS!C25 -> 3603585880 | AR25: =IFRS_BS!D25 -> 3787623538 | AS25: =IFRS_BS!F25 -> 0 | AU25: =IF('IFRS_IS(Q)'!A25="","",'IFRS_IS(Q)'!A25) -> 外幣兌換損失 | AV25: =IF('IFRS_IS(Q)'!B25="","",'IFRS_IS(Q)'!B25) -> 0 | AW25: =IF('IFRS_IS(Q)'!C25="","",'IFRS_IS(Q)'!C25) -> 0 | AX25: =IF('IFRS_IS(Q)'!D25="","",'IFRS_IS(Q)'!D25) -> 1244213 | AY25: =IF('IFRS_IS(Q)'!E25="","",'IFRS_IS(Q)'!E25) -> -1244213 | AZ25: =IF('IFRS_IS(Q)'!F25="","",'IFRS_IS(Q)'!F25) -> 0 | BA25: =IF('IFRS_IS(Q)'!G25="","",'IFRS_IS(Q)'!G25) ->  | BC25: =IF(IFRS_note!A13="","",IFRS_note!A13) -> 投資性不動產─成本 | BD25: =IF(IFRS_note!B13="","",IFRS_note!B13) -> 0 | BE25: =IF(IFRS_note!C13="","",IFRS_note!C13) -> 0 | BF25: =IF(IFRS_note!D13="","",IFRS_note!D13) -> 0 | BG25: =IF(IFRS_note!E13="","",IFRS_note!E13) -> 0 | BH25: =IF(IFRS_note!F13="","",IFRS_note!F13) -> 0 | BI25: =IF(IFRS_note!G13="","",IFRS_note!G13) -> 
P26: =TEXT(月營收!$A26,"YYYY/MM") -> 2024/04 | Q26: =IF(月營收!$B26="","",月營收!$B26) -> 236021.112 | R26: =IF(月營收!$C26="","",月營收!$C26) -> 828665.313 | S26: =IF(月營收!$D26="","",月營收!$D26) -> 20.91 | T26: =IF(月營收!$E26="","",月營收!$E26) -> 59.58 | U26: =IF(月營收!$F26="Y","合併",IF(月營收!$F26="N","非合併","")) ->  | V26: ='合併財報(累計)'!$A26 -> 短期借款 | W26: =IF('合併財報(累計)'!$B26="","",'合併財報(累計)'!$B26) -> 0 | X26: =IF('合併財報(累計)'!$C26="","",'合併財報(累計)'!$C26) -> 0 | Y26: =IF('合併財報(累計)'!$D26="","",'合併財報(累計)'!$D26) -> 0 | Z26: =IF('合併財報(累計)'!$F26="","",'合併財報(累計)'!$F26) -> 0 | AB26: ='合併財報(累計)'!A81 -> 繼續營業單位損益 | AC26: ='合併財報(累計)'!B81 -> 837767517 | AD26: ='合併財報(累計)'!C81 -> 1172431759 | AE26: ='合併財報(累計)'!D81 -> 1715396780 | AG26: ='合併財報(單季)'!A26 -> 來自營運之現金流量 | AH26: ='合併財報(單季)'!B26 -> 391992467 | AI26: ='合併財報(單季)'!C26 -> 620205283 | AJ26: ='合併財報(單季)'!D26 -> 625573672 | AK26: ='合併財報(單季)'!E26 -> 497064085 | AL26: ='合併財報(單季)'!F26 -> 426829081 | AM26: ='合併財報(單季)'!G26 -> 725508787 | AO26: =IFRS_BS!A26 -> 短期借款 | AP26: =IFRS_BS!B26 -> 0 | AQ26: =IFRS_BS!C26 -> 0 | AR26: =IFRS_BS!D26 -> 0 | AS26: =IFRS_BS!F26 -> 0 | AU26: =IF('IFRS_IS(Q)'!A26="","",'IFRS_IS(Q)'!A26) -> 透過損益按公允價值衡量之金融資產（負債）損失 | AV26: =IF('IFRS_IS(Q)'!B26="","",'IFRS_IS(Q)'!B26) -> 4473935 | AW26: =IF('IFRS_IS(Q)'!C26="","",'IFRS_IS(Q)'!C26) -> 3091058 | AX26: =IF('IFRS_IS(Q)'!D26="","",'IFRS_IS(Q)'!D26) -> -3091058 | AY26: =IF('IFRS_IS(Q)'!E26="","",'IFRS_IS(Q)'!E26) -> 0 | AZ26: =IF('IFRS_IS(Q)'!F26="","",'IFRS_IS(Q)'!F26) -> 8083154 | BA26: =IF('IFRS_IS(Q)'!G26="","",'IFRS_IS(Q)'!G26) ->  | BC26: =IF(IFRS_note!A14="","",IFRS_note!A14) -> 投資性不動產─重估增值 | BD26: =IF(IFRS_note!B14="","",IFRS_note!B14) -> 0 | BE26: =IF(IFRS_note!C14="","",IFRS_note!C14) -> 0 | BF26: =IF(IFRS_note!D14="","",IFRS_note!D14) -> 0 | BG26: =IF(IFRS_note!E14="","",IFRS_note!E14) -> 0 | BH26: =IF(IFRS_note!F14="","",IFRS_note!F14) -> 0 | BI26: =IF(IFRS_note!G14="","",IFRS_note!G14) ->  | BK26: 補充明細_管理薪酬 | BL26: =IF(IFRS_note!B2="","",IFRS_note!B2) -> 2024-12-31 | BM26: =IF(IFRS_note!C2="","",IFRS_note!C2) -> 2025-03-31 | BN26: =IF(IFRS_note!D2="","",IFRS_note!D2) -> 2025-06-30 | BO26: =IF(IFRS_note!E2="","",IFRS_note!E2) -> 2025-09-30 | BP26: =IF(IFRS_note!F2="","",IFRS_note!F2) -> 2025-12-31 | BQ26: =IF(IFRS_note!G2="","",IFRS_note!G2) -> 
V27: ='合併財報(累計)'!$A27 -> 透過損益按公允價值衡量之金融負債－流動 | W27: =IF('合併財報(累計)'!$B27="","",'合併財報(累計)'!$B27) -> 121412 | X27: =IF('合併財報(累計)'!$C27="","",'合併財報(累計)'!$C27) -> 466539 | Y27: =IF('合併財報(累計)'!$D27="","",'合併財報(累計)'!$D27) -> 3083883 | Z27: =IF('合併財報(累計)'!$F27="","",'合併財報(累計)'!$F27) -> 3083883 | AB27: ='合併財報(累計)'!A82 -> 確定福利計畫之再衡量數－不重分類－OCI | AC27: ='合併財報(累計)'!B82 -> -623356 | AD27: ='合併財報(累計)'!C82 -> 144365 | AE27: ='合併財報(累計)'!D82 -> -693271 | AG27: ='合併財報(單季)'!A27 -> 投資活動之現金流量 | AH27: ='合併財報(單季)'!B27 -> -195509921 | AI27: ='合併財報(單季)'!C27 -> -311918527 | AJ27: ='合併財報(單季)'!D27 -> -290192426 | AK27: ='合併財報(單季)'!E27 -> -228488307 | AL27: ='合併財報(單季)'!F27 -> -259752617 | AM27: ='合併財報(單季)'!G27 -> -365960057 | AO27: =IFRS_BS!A27 -> 透過損益按公允價值衡量之金融負債－流動 | AP27: =IFRS_BS!B27 -> 121412 | AQ27: =IFRS_BS!C27 -> 466539 | AR27: =IFRS_BS!D27 -> 2069289 | AS27: =IFRS_BS!F27 -> 0 | AU27: =IF('IFRS_IS(Q)'!A27="","",'IFRS_IS(Q)'!A27) -> 資產減損損失 | AV27: =IF('IFRS_IS(Q)'!B27="","",'IFRS_IS(Q)'!B27) -> 0 | AW27: =IF('IFRS_IS(Q)'!C27="","",'IFRS_IS(Q)'!C27) -> 0 | AX27: =IF('IFRS_IS(Q)'!D27="","",'IFRS_IS(Q)'!D27) -> 0 | AY27: =IF('IFRS_IS(Q)'!E27="","",'IFRS_IS(Q)'!E27) -> 0 | AZ27: =IF('IFRS_IS(Q)'!F27="","",'IFRS_IS(Q)'!F27) -> 0 | BA27: =IF('IFRS_IS(Q)'!G27="","",'IFRS_IS(Q)'!G27) ->  | BC27: =IF(IFRS_note!A15="","",IFRS_note!A15) -> 投資性不動產-累計公允價值變動數 | BD27: =IF(IFRS_note!B15="","",IFRS_note!B15) -> 0 | BE27: =IF(IFRS_note!C15="","",IFRS_note!C15) -> 0 | BF27: =IF(IFRS_note!D15="","",IFRS_note!D15) -> 0 | BG27: =IF(IFRS_note!E15="","",IFRS_note!E15) -> 0 | BH27: =IF(IFRS_note!F15="","",IFRS_note!F15) -> 0 | BI27: =IF(IFRS_note!G15="","",IFRS_note!G15) -> 
V28: ='合併財報(累計)'!$A28 -> 應付公司債－非流動 | W28: =IF('合併財報(累計)'!$B28="","",'合併財報(累計)'!$B28) -> 913899843 | X28: =IF('合併財報(累計)'!$C28="","",'合併財報(累計)'!$C28) -> 926604506 | Y28: =IF('合併財報(累計)'!$D28="","",'合併財報(累計)'!$D28) -> 856227503 | Z28: =IF('合併財報(累計)'!$F28="","",'合併財報(累計)'!$F28) -> 856227503 | AB28: ='合併財報(累計)'!A83 -> 透過FVOCI衡量權益工具投資未實現評價損益－不重分類－OCI | AC28: ='合併財報(累計)'!B83 -> 1954563 | AD28: ='合併財報(累計)'!C83 -> 5091916 | AE28: ='合併財報(累計)'!D83 -> 745272 | AG28: ='合併財報(單季)'!A28 -> 籌資活動之現金流量 | AH28: ='合併財報(單季)'!B28 -> -83638287 | AI28: ='合併財報(單季)'!C28 -> -100732423 | AJ28: ='合併財報(單季)'!D28 -> -84665592 | AK28: ='合併財報(單季)'!E28 -> -119700601 | AL28: ='合併財報(單季)'!F28 -> -128293126 | AM28: ='合併財報(單季)'!G28 -> -107685373 | AO28: =IFRS_BS!A28 -> 避險之金融負債－流動 | AP28: =IFRS_BS!B28 -> 27334164 | AQ28: =IFRS_BS!C28 -> 0 | AR28: =IFRS_BS!D28 -> 3462 | AS28: =IFRS_BS!F28 -> 0 | AU28: =IF('IFRS_IS(Q)'!A28="","",'IFRS_IS(Q)'!A28) -> 金融資產減損損失 | AV28: =IF('IFRS_IS(Q)'!B28="","",'IFRS_IS(Q)'!B28) -> 0 | AW28: =IF('IFRS_IS(Q)'!C28="","",'IFRS_IS(Q)'!C28) -> 0 | AX28: =IF('IFRS_IS(Q)'!D28="","",'IFRS_IS(Q)'!D28) -> 0 | AY28: =IF('IFRS_IS(Q)'!E28="","",'IFRS_IS(Q)'!E28) -> 0 | AZ28: =IF('IFRS_IS(Q)'!F28="","",'IFRS_IS(Q)'!F28) -> 0 | BA28: =IF('IFRS_IS(Q)'!G28="","",'IFRS_IS(Q)'!G28) ->  | BC28: =IFRS_note!A16 -> 投資性不動產─累計折舊 | BD28: =IFRS_note!B16 -> 0 | BE28: =IFRS_note!C16 -> 0 | BF28: =IFRS_note!D16 -> 0 | BG28: =IFRS_note!E16 -> 0 | BH28: =IFRS_note!F16 -> 0 | BI28: =IFRS_note!G16 -> 0 | BK28: 管理階層薪酬<主要觀察公司管理階層薪酬狀況可與公司獲利狀況比較>
V29: ='合併財報(累計)'!$A29 -> 避險之金融負債－流動 | W29: =IF('合併財報(累計)'!$B29="","",'合併財報(累計)'!$B29) -> 27334164 | X29: =IF('合併財報(累計)'!$C29="","",'合併財報(累計)'!$C29) -> 0 | Y29: =IF('合併財報(累計)'!$D29="","",'合併財報(累計)'!$D29) -> 817 | Z29: =IF('合併財報(累計)'!$F29="","",'合併財報(累計)'!$F29) -> 817 | AB29: ='合併財報(累計)'!A84 -> 避險工具之損益－不重分類－OCI | AC29: ='合併財報(累計)'!B84 -> 39898 | AD29: ='合併財報(累計)'!C84 -> 5041 | AE29: ='合併財報(累計)'!D84 -> -31030 | AG29: ='合併財報(單季)'!A29 -> 匯率影響數 | AH29: ='合併財報(單季)'!B29 -> -25191055 | AI29: ='合併財報(單季)'!C29 -> 33292155 | AJ29: ='合併財報(單季)'!D29 -> 16461553 | AK29: ='合併財報(單季)'!E29 -> -179155087 | AL29: ='合併財報(單季)'!F29 -> 67451706 | AM29: ='合併財報(單季)'!G29 -> 45233661 | AO29: =IFRS_BS!A29 -> 按攤銷後成本衡量之金融負債－流動 | AP29: =IFRS_BS!B29 -> 0 | AQ29: =IFRS_BS!C29 -> 0 | AR29: =IFRS_BS!D29 -> 0 | AS29: =IFRS_BS!F29 -> 0 | AU29: =IF('IFRS_IS(Q)'!A29="","",'IFRS_IS(Q)'!A29) -> 不動產、廠房及設備減損損失 | AV29: =IF('IFRS_IS(Q)'!B29="","",'IFRS_IS(Q)'!B29) -> 0 | AW29: =IF('IFRS_IS(Q)'!C29="","",'IFRS_IS(Q)'!C29) -> 0 | AX29: =IF('IFRS_IS(Q)'!D29="","",'IFRS_IS(Q)'!D29) -> 0 | AY29: =IF('IFRS_IS(Q)'!E29="","",'IFRS_IS(Q)'!E29) -> 0 | AZ29: =IF('IFRS_IS(Q)'!F29="","",'IFRS_IS(Q)'!F29) -> 0 | BA29: =IF('IFRS_IS(Q)'!G29="","",'IFRS_IS(Q)'!G29) ->  | BC29: =IF(IFRS_note!A17="","",IFRS_note!A17) -> 投資性不動產─累計減損 | BD29: =IF(IFRS_note!B17="","",IFRS_note!B17) -> 0 | BE29: =IF(IFRS_note!C17="","",IFRS_note!C17) -> 0 | BF29: =IF(IFRS_note!D17="","",IFRS_note!D17) -> 0 | BG29: =IF(IFRS_note!E17="","",IFRS_note!E17) -> 0 | BH29: =IF(IFRS_note!F17="","",IFRS_note!F17) -> 0 | BI29: =IF(IFRS_note!G17="","",IFRS_note!G17) ->  | BK29: =IF(IFRS_note!A37="","",IFRS_note!A37) -> 管理薪酬─薪資獎金等 | BL29: =IF(IFRS_note!B37="","",IFRS_note!B37) -> 0 | BM29: =IF(IFRS_note!C37="","",IFRS_note!C37) -> 0 | BN29: =IF(IFRS_note!D37="","",IFRS_note!D37) -> 0 | BO29: =IF(IFRS_note!E37="","",IFRS_note!E37) -> 0 | BP29: =IF(IFRS_note!F37="","",IFRS_note!F37) -> 0 | BQ29: =IF(IFRS_note!G37="","",IFRS_note!G37) -> 
V30: ='合併財報(累計)'!$A30 -> 合約負債－流動 | W30: =IF('合併財報(累計)'!$B30="","",'合併財報(累計)'!$B30) -> 52736430 | X30: =IF('合併財報(累計)'!$C30="","",'合併財報(累計)'!$C30) -> 89435361 | Y30: =IF('合併財報(累計)'!$D30="","",'合併財報(累計)'!$D30) -> 49954384 | Z30: =IF('合併財報(累計)'!$F30="","",'合併財報(累計)'!$F30) -> 49954384 | AB30: ='合併財報(累計)'!A85 -> 採權益法認列關聯企業及合資其他綜合損益份額－不重分－OCI | AC30: ='合併財報(累計)'!B85 -> 42554 | AD30: ='合併財報(累計)'!C85 -> -69435 | AE30: ='合併財報(累計)'!D85 -> -113192 | AG30: ='合併財報(單季)'!A30 -> 本期產生現金流量 | AH30: ='合併財報(單季)'!B30 -> 87653204 | AI30: ='合併財報(單季)'!C30 -> 240846488 | AJ30: ='合併財報(單季)'!D30 -> 267177207 | AK30: ='合併財報(單季)'!E30 -> -30279910 | AL30: ='合併財報(單季)'!F30 -> 106235044 | AM30: ='合併財報(單季)'!G30 -> 297097018 | AO30: =IFRS_BS!A30 -> 合約負債－流動 | AP30: =IFRS_BS!B30 -> 52736430 | AQ30: =IFRS_BS!C30 -> 89435361 | AR30: =IFRS_BS!D30 -> 102047887 | AS30: =IFRS_BS!F30 -> 0 | AU30: =IF('IFRS_IS(Q)'!A30="","",'IFRS_IS(Q)'!A30) -> 其他利益及損失-其他 | AV30: =IF('IFRS_IS(Q)'!B30="","",'IFRS_IS(Q)'!B30) -> 257693 | AW30: =IF('IFRS_IS(Q)'!C30="","",'IFRS_IS(Q)'!C30) -> -24645 | AX30: =IF('IFRS_IS(Q)'!D30="","",'IFRS_IS(Q)'!D30) -> 132165 | AY30: =IF('IFRS_IS(Q)'!E30="","",'IFRS_IS(Q)'!E30) -> 272135 | AZ30: =IF('IFRS_IS(Q)'!F30="","",'IFRS_IS(Q)'!F30) -> 350528 | BA30: =IF('IFRS_IS(Q)'!G30="","",'IFRS_IS(Q)'!G30) ->  | BC30: =IF(IFRS_note!A18="","",IFRS_note!A18) -> 投資性不動產公允價值 | BD30: =IF(IFRS_note!B18="","",IFRS_note!B18) ->  | BE30: =IF(IFRS_note!C18="","",IFRS_note!C18) ->  | BF30: =IF(IFRS_note!D18="","",IFRS_note!D18) ->  | BG30: =IF(IFRS_note!E18="","",IFRS_note!E18) ->  | BH30: =IF(IFRS_note!F18="","",IFRS_note!F18) ->  | BI30: =IF(IFRS_note!G18="","",IFRS_note!G18) ->  | BK30: =IF(IFRS_note!A38="","",IFRS_note!A38) -> 管理薪酬─業務執行費 | BL30: =IF(IFRS_note!B38="","",IFRS_note!B38) -> 0 | BM30: =IF(IFRS_note!C38="","",IFRS_note!C38) -> 0 | BN30: =IF(IFRS_note!D38="","",IFRS_note!D38) -> 0 | BO30: =IF(IFRS_note!E38="","",IFRS_note!E38) -> 0 | BP30: =IF(IFRS_note!F38="","",IFRS_note!F38) -> 0 | BQ30: =IF(IFRS_note!G38="","",IFRS_note!G38) -> 
V31: ='合併財報(累計)'!$A31 -> 應付帳款及票據 | W31: =IF('合併財報(累計)'!$B31="","",'合併財報(累計)'!$B31) -> 57293057 | X31: =IF('合併財報(累計)'!$C31="","",'合併財報(累計)'!$C31) -> 74226559 | Y31: =IF('合併財報(累計)'!$D31="","",'合併財報(累計)'!$D31) -> 84330325 | Z31: =IF('合併財報(累計)'!$F31="","",'合併財報(累計)'!$F31) -> 84330325 | AB31: ='合併財報(累計)'!A86 -> 與其他綜合損益組成部分相關之所得稅－可重分類－OCI | AC31: ='合併財報(累計)'!B86 -> 0 | AD31: ='合併財報(累計)'!C86 -> 0 | AE31: ='合併財報(累計)'!D86 -> 0 | AG31: ='合併財報(單季)'!A31 -> 期初現金及約當現金 | AH31: ='合併財報(單季)'!B31 -> 1799127351 | AI31: ='合併財報(單季)'!C31 -> 1886780555 | AJ31: ='合併財報(單季)'!D31 -> 2127627043 | AK31: ='合併財報(單季)'!E31 -> 2394804250 | AL31: ='合併財報(單季)'!F31 -> 2364524340 | AM31: ='合併財報(單季)'!G31 -> 2470759384 | AO31: =IFRS_BS!A31 -> 應付帳款及票據 | AP31: =IFRS_BS!B31 -> 57293057 | AQ31: =IFRS_BS!C31 -> 74226559 | AR31: =IFRS_BS!D31 -> 76853628 | AS31: =IFRS_BS!F31 -> 0 | AU31: =IF('IFRS_IS(Q)'!A31="","",'IFRS_IS(Q)'!A31) -> 其他利益及損失 | AV31: =IF('IFRS_IS(Q)'!B31="","",'IFRS_IS(Q)'!B31) -> -189706 | AW31: =IF('IFRS_IS(Q)'!C31="","",'IFRS_IS(Q)'!C31) -> 204390 | AX31: =IF('IFRS_IS(Q)'!D31="","",'IFRS_IS(Q)'!D31) -> 6460812 | AY31: =IF('IFRS_IS(Q)'!E31="","",'IFRS_IS(Q)'!E31) -> -42790 | AZ31: =IF('IFRS_IS(Q)'!F31="","",'IFRS_IS(Q)'!F31) -> -512212 | BA31: =IF('IFRS_IS(Q)'!G31="","",'IFRS_IS(Q)'!G31) ->  | BK31: =IF(IFRS_note!A39="","",IFRS_note!A39) -> 管理薪酬─酬勞 (盈餘分 | BL31: =IF(IFRS_note!B39="","",IFRS_note!B39) -> 0 | BM31: =IF(IFRS_note!C39="","",IFRS_note!C39) -> 0 | BN31: =IF(IFRS_note!D39="","",IFRS_note!D39) -> 0 | BO31: =IF(IFRS_note!E39="","",IFRS_note!E39) -> 0 | BP31: =IF(IFRS_note!F39="","",IFRS_note!F39) -> 0 | BQ31: =IF(IFRS_note!G39="","",IFRS_note!G39) -> 
V32: ='合併財報(累計)'!$A32 -> 其他應付款 | W32: =IF('合併財報(累計)'!$B32="","",'合併財報(累計)'!$B32) -> 423960584 | X32: =IF('合併財報(累計)'!$C32="","",'合併財報(累計)'!$C32) -> 531376653 | Y32: =IF('合併財報(累計)'!$D32="","",'合併財報(累計)'!$D32) -> 630216526 | Z32: =IF('合併財報(累計)'!$F32="","",'合併財報(累計)'!$F32) -> 630216526 | AB32: ='合併財報(累計)'!A87 -> 後續可能重分類至損益之項目－OCI | AC32: ='合併財報(累計)'!B87 -> -10351949 | AD32: ='合併財報(累計)'!C87 -> 66452628 | AE32: ='合併財報(累計)'!D87 -> -56372952 | AG32: ='合併財報(單季)'!A32 -> 期末現金及約當現金 | AH32: ='合併財報(單季)'!B32 -> 1886780555 | AI32: ='合併財報(單季)'!C32 -> 2127627043 | AJ32: ='合併財報(單季)'!D32 -> 2394804250 | AK32: ='合併財報(單季)'!E32 -> 2364524340 | AL32: ='合併財報(單季)'!F32 -> 2470759384 | AM32: ='合併財報(單季)'!G32 -> 2767856402 | AO32: =IFRS_BS!A32 -> 其他應付款 | AP32: =IFRS_BS!B32 -> 423960584 | AQ32: =IFRS_BS!C32 -> 531376653 | AR32: =IFRS_BS!D32 -> 566040343 | AS32: =IFRS_BS!F32 -> 0 | AU32: =IF('IFRS_IS(Q)'!A32="","",'IFRS_IS(Q)'!A32) -> 財務成本 | AV32: =IF('IFRS_IS(Q)'!B32="","",'IFRS_IS(Q)'!B32) -> 2523135 | AW32: =IF('IFRS_IS(Q)'!C32="","",'IFRS_IS(Q)'!C32) -> 2677274 | AX32: =IF('IFRS_IS(Q)'!D32="","",'IFRS_IS(Q)'!D32) -> 3691095 | AY32: =IF('IFRS_IS(Q)'!E32="","",'IFRS_IS(Q)'!E32) -> 2958568 | AZ32: =IF('IFRS_IS(Q)'!F32="","",'IFRS_IS(Q)'!F32) -> 3043450 | BA32: =IF('IFRS_IS(Q)'!G32="","",'IFRS_IS(Q)'!G32) ->  | BC32: 補充明細_借款明細 | BD32: =IF(IFRS_note!B2="","",IFRS_note!B2) -> 2024-12-31 | BE32: =IF(IFRS_note!C2="","",IFRS_note!C2) -> 2025-03-31 | BF32: =IF(IFRS_note!D2="","",IFRS_note!D2) -> 2025-06-30 | BG32: =IF(IFRS_note!E2="","",IFRS_note!E2) -> 2025-09-30 | BH32: =IF(IFRS_note!F2="","",IFRS_note!F2) -> 2025-12-31 | BI32: =IF(IFRS_note!G2="","",IFRS_note!G2) ->  | BK32: =IF(IFRS_note!A40="","",IFRS_note!A40) -> 管理薪酬─紅利 | BL32: =IF(IFRS_note!B40="","",IFRS_note!B40) -> 0 | BM32: =IF(IFRS_note!C40="","",IFRS_note!C40) -> 0 | BN32: =IF(IFRS_note!D40="","",IFRS_note!D40) -> 0 | BO32: =IF(IFRS_note!E40="","",IFRS_note!E40) -> 0 | BP32: =IF(IFRS_note!F40="","",IFRS_note!F40) -> 0 | BQ32: =IF(IFRS_note!G40="","",IFRS_note!G40) -> 
V33: ='合併財報(累計)'!$A33 -> 當期所得稅負債 | W33: =IF('合併財報(累計)'!$B33="","",'合併財報(累計)'!$B33) -> 98912902 | X33: =IF('合併財報(累計)'!$C33="","",'合併財報(累計)'!$C33) -> 147438423 | Y33: =IF('合併財報(累計)'!$D33="","",'合併財報(累計)'!$D33) -> 202337872 | Z33: =IF('合併財報(累計)'!$F33="","",'合併財報(累計)'!$F33) -> 202337872 | AB33: ='合併財報(累計)'!A88 -> 國外營運機構財務報表換算之兌換差額－可重分類－OCI | AC33: ='合併財報(累計)'!B88 -> -14464353 | AD33: ='合併財報(累計)'!C88 -> 64299685 | AE33: ='合併財報(累計)'!D88 -> -60951662 | AG33: 財務比率分析-單季/單半年 | AO33: =IFRS_BS!A33 -> 負債準備－流動 | AP33: =IFRS_BS!B33 -> 0 | AQ33: =IFRS_BS!C33 -> 0 | AR33: =IFRS_BS!D33 -> 0 | AS33: =IFRS_BS!F33 -> 0 | AU33: =IF('IFRS_IS(Q)'!A33="","",'IFRS_IS(Q)'!A33) -> 採權益法之關聯企業及合資損益 | AV33: =IF('IFRS_IS(Q)'!B33="","",'IFRS_IS(Q)'!B33) -> 1288408 | AW33: =IF('IFRS_IS(Q)'!C33="","",'IFRS_IS(Q)'!C33) -> 1368307 | AX33: =IF('IFRS_IS(Q)'!D33="","",'IFRS_IS(Q)'!D33) -> 1220948 | AY33: =IF('IFRS_IS(Q)'!E33="","",'IFRS_IS(Q)'!E33) -> 1424738 | AZ33: =IF('IFRS_IS(Q)'!F33="","",'IFRS_IS(Q)'!F33) -> 1482601 | BA33: =IF('IFRS_IS(Q)'!G33="","",'IFRS_IS(Q)'!G33) ->  | BK33: =IF(IFRS_note!A41="","",IFRS_note!A41) -> 管理薪酬─其他 | BL33: =IF(IFRS_note!B41="","",IFRS_note!B41) ->  | BM33: =IF(IFRS_note!C41="","",IFRS_note!C41) ->  | BN33: =IF(IFRS_note!D41="","",IFRS_note!D41) ->  | BO33: =IF(IFRS_note!E41="","",IFRS_note!E41) ->  | BP33: =IF(IFRS_note!F41="","",IFRS_note!F41) ->  | BQ33: =IF(IFRS_note!G41="","",IFRS_note!G41) -> 
V34: ='合併財報(累計)'!$A34 -> 負債準備－流動 | W34: =IF('合併財報(累計)'!$B34="","",'合併財報(累計)'!$B34) -> 0 | X34: =IF('合併財報(累計)'!$C34="","",'合併財報(累計)'!$C34) -> 0 | Y34: =IF('合併財報(累計)'!$D34="","",'合併財報(累計)'!$D34) -> 0 | Z34: =IF('合併財報(累計)'!$F34="","",'合併財報(累計)'!$F34) -> 0 | AB34: ='合併財報(累計)'!A89 -> 與其他綜合損益組成部分相關之所得稅－可重分類－OCI_1 | AC34: ='合併財報(累計)'!B89 -> 0 | AD34: ='合併財報(累計)'!C89 -> 0 | AE34: ='合併財報(累計)'!D89 -> 0 | AG34: ='合併財報(單季)'!A34 -> 營業毛利成長率 | AH34: ='合併財報(單季)'!B34 -> 48.11 | AI34: ='合併財報(單季)'!C34 -> 54.44 | AJ34: ='合併財報(單季)'!D34 -> 56.88 | AK34: ='合併財報(單季)'!E34 -> 52.84 | AL34: ='合併財報(單季)'!F34 -> 33.96 | AM34: ='合併財報(單季)'!G34 -> 27.25 | AO34: =IFRS_BS!A34 -> 其他金融負債－流動 | AP34: =IFRS_BS!B34 -> 0 | AQ34: =IFRS_BS!C34 -> 0 | AR34: =IFRS_BS!D34 -> 0 | AS34: =IFRS_BS!F34 -> 0 | AU34: =IF('IFRS_IS(Q)'!A34="","",'IFRS_IS(Q)'!A34) -> 營業外收入及支出 | AV34: =IF('IFRS_IS(Q)'!B34="","",'IFRS_IS(Q)'!B34) -> 23085091 | AW34: =IF('IFRS_IS(Q)'!C34="","",'IFRS_IS(Q)'!C34) -> 23814604 | AX34: =IF('IFRS_IS(Q)'!D34="","",'IFRS_IS(Q)'!D34) -> 29611566 | AY34: =IF('IFRS_IS(Q)'!E34="","",'IFRS_IS(Q)'!E34) -> 24684205 | AZ34: =IF('IFRS_IS(Q)'!F34="","",'IFRS_IS(Q)'!F34) -> 27460788 | BA34: =IF('IFRS_IS(Q)'!G34="","",'IFRS_IS(Q)'!G34) ->  | BC34: 借款明細<主要觀察舉債來源> | BK34: =IF(IFRS_note!A42="","",IFRS_note!A42) -> 管理階層薪酬總額 | BL34: =IF(IFRS_note!B42="","",IFRS_note!B42) ->  | BM34: =IF(IFRS_note!C42="","",IFRS_note!C42) ->  | BN34: =IF(IFRS_note!D42="","",IFRS_note!D42) ->  | BO34: =IF(IFRS_note!E42="","",IFRS_note!E42) ->  | BP34: =IF(IFRS_note!F42="","",IFRS_note!F42) ->  | BQ34: =IF(IFRS_note!G42="","",IFRS_note!G42) -> 
V35: ='合併財報(累計)'!$A35 -> 一年內到期長期負債 | W35: =IF('合併財報(累計)'!$B35="","",'合併財報(累計)'!$B35) -> 9293266 | X35: =IF('合併財報(累計)'!$C35="","",'合併財報(累計)'!$C35) -> 59857879 | Y35: =IF('合併財報(累計)'!$D35="","",'合併財報(累計)'!$D35) -> 136925710 | Z35: =IF('合併財報(累計)'!$F35="","",'合併財報(累計)'!$F35) -> 136925710 | AB35: ='合併財報(累計)'!A91 -> 其他綜合損益－OCI | AC35: ='合併財報(累計)'!B91 -> -8813644 | AD35: ='合併財報(累計)'!C91 -> 71585646 | AE35: ='合併財報(累計)'!D91 -> -56326519 | AG35: ='合併財報(單季)'!A35 -> 營業利益成長率 | AH35: ='合併財報(單季)'!B35 -> 58.19 | AI35: ='合併財報(單季)'!C35 -> 63.61 | AJ35: ='合併財報(單季)'!D35 -> 63.47 | AK35: ='合併財報(單季)'!E35 -> 61.72 | AL35: ='合併財報(單季)'!F35 -> 38.78 | AM35: ='合併財報(單季)'!G35 -> 32.7 | AO35: =IFRS_BS!A35 -> 一年內到期長期負債 | AP35: =IFRS_BS!B35 -> 9293266 | AQ35: =IFRS_BS!C35 -> 59857879 | AR35: =IFRS_BS!D35 -> 61771648 | AS35: =IFRS_BS!F35 -> 0 | AU35: =IF('IFRS_IS(Q)'!A35="","",'IFRS_IS(Q)'!A35) -> 稅前淨利 | AV35: =IF('IFRS_IS(Q)'!B35="","",'IFRS_IS(Q)'!B35) -> 448798004 | AW35: =IF('IFRS_IS(Q)'!C35="","",'IFRS_IS(Q)'!C35) -> 430895412 | AX35: =IF('IFRS_IS(Q)'!D35="","",'IFRS_IS(Q)'!D35) -> 493035204 | AY35: =IF('IFRS_IS(Q)'!E35="","",'IFRS_IS(Q)'!E35) -> 525369023 | AZ35: =IF('IFRS_IS(Q)'!F35="","",'IFRS_IS(Q)'!F35) -> 592363201 | BA35: =IF('IFRS_IS(Q)'!G35="","",'IFRS_IS(Q)'!G35) ->  | BC35: =IF(IFRS_note!A28="","",IFRS_note!A28) -> 長期借款─銀行借款 | BD35: =IF(IFRS_note!B28="","",IFRS_note!B28) -> 0 | BE35: =IF(IFRS_note!C28="","",IFRS_note!C28) -> 0 | BF35: =IF(IFRS_note!D28="","",IFRS_note!D28) -> 0 | BG35: =IF(IFRS_note!E28="","",IFRS_note!E28) -> 0 | BH35: =IF(IFRS_note!F28="","",IFRS_note!F28) -> 0 | BI35: =IF(IFRS_note!G28="","",IFRS_note!G28) -> 
V36: ='合併財報(累計)'!$A36 -> 其他流動負債 | W36: =IF('合併財報(累計)'!$B36="","",'合併財報(累計)'!$B36) -> 241120950 | X36: =IF('合併財報(累計)'!$C36="","",'合併財報(累計)'!$C36) -> 358674518 | Y36: =IF('合併財報(累計)'!$D36="","",'合併財報(累計)'!$D36) -> 347336757 | Z36: =IF('合併財報(累計)'!$F36="","",'合併財報(累計)'!$F36) -> 347336757 | AB36: ='合併財報(累計)'!A92 -> 本期綜合損益總額 | AC36: ='合併財報(累計)'!B92 -> 828953873 | AD36: ='合併財報(累計)'!C92 -> 1244017405 | AE36: ='合併財報(累計)'!D92 -> 1659070261 | AG36: ='合併財報(單季)'!A36 -> 稅前淨利成長率 | AH36: ='合併財報(單季)'!B36 -> 58.79 | AI36: ='合併財報(單季)'!C36 -> 61.28 | AJ36: ='合併財報(單季)'!D36 -> 61.66 | AK36: ='合併財報(單季)'!E36 -> 60.96 | AL36: ='合併財報(單季)'!F36 -> 36.75 | AM36: ='合併財報(單季)'!G36 -> 31.99 | AO36: =IFRS_BS!A36 -> 其他流動負債 | AP36: =IFRS_BS!B36 -> 241120950 | AQ36: =IFRS_BS!C36 -> 358674518 | AR36: =IFRS_BS!D36 -> 370536217 | AS36: =IFRS_BS!F36 -> 0 | AU36: =IF('IFRS_IS(Q)'!A36="","",'IFRS_IS(Q)'!A36) -> 所得稅費用 | AV36: =IF('IFRS_IS(Q)'!B36="","",'IFRS_IS(Q)'!B36) -> 74329116 | AW36: =IF('IFRS_IS(Q)'!C36="","",'IFRS_IS(Q)'!C36) -> 70162751 | AX36: =IF('IFRS_IS(Q)'!D36="","",'IFRS_IS(Q)'!D36) -> 95541780 | AY36: =IF('IFRS_IS(Q)'!E36="","",'IFRS_IS(Q)'!E36) -> 73613661 | AZ36: =IF('IFRS_IS(Q)'!F36="","",'IFRS_IS(Q)'!F36) -> 86947868 | BA36: =IF('IFRS_IS(Q)'!G36="","",'IFRS_IS(Q)'!G36) ->  | BC36: =IF(IFRS_note!A29="","",IFRS_note!A29) -> 長期負債─債券 | BD36: =IF(IFRS_note!B29="","",IFRS_note!B29) -> 983752385 | BE36: =IF(IFRS_note!C29="","",IFRS_note!C29) -> 1007648067 | BF36: =IF(IFRS_note!D29="","",IFRS_note!D29) -> 940825442 | BG36: =IF(IFRS_note!E29="","",IFRS_note!E29) -> 955192812 | BH36: =IF(IFRS_note!F29="","",IFRS_note!F29) -> 992033491 | BI36: =IF(IFRS_note!G29="","",IFRS_note!G29) -> 
V37: ='合併財報(累計)'!$A37 -> 流動負債 | W37: =IF('合併財報(累計)'!$B37="","",'合併財報(累計)'!$B37) -> 913583316 | X37: =IF('合併財報(累計)'!$C37="","",'合併財報(累計)'!$C37) -> 1264524964 | Y37: =IF('合併財報(累計)'!$D37="","",'合併財報(累計)'!$D37) -> 1458019289 | Z37: =IF('合併財報(累計)'!$F37="","",'合併財報(累計)'!$F37) -> 1458019289 | AB37: ='合併財報(累計)'!A93 -> 歸屬母公司淨利（損） | AC37: ='合併財報(累計)'!B93 -> 838497664 | AD37: ='合併財報(累計)'!C93 -> 1173267703 | AE37: ='合併財報(累計)'!D93 -> 1717882627 | AG37: ='合併財報(單季)'!A37 -> 稅後淨利成長率 | AH37: ='合併財報(單季)'!B37 -> 54.22 | AI37: ='合併財報(單季)'!C37 -> 57.14 | AJ37: ='合併財報(單季)'!D37 -> 60.17 | AK37: ='合併財報(單季)'!E37 -> 60.5 | AL37: ='合併財報(單季)'!F37 -> 38.97 | AM37: ='合併財報(單季)'!G37 -> 34.97 | AO37: =IFRS_BS!A37 -> 透過損益按公允價值衡量之金融負債－非流動 | AP37: =IFRS_BS!B37 -> 0 | AQ37: =IFRS_BS!C37 -> 0 | AR37: =IFRS_BS!D37 -> 0 | AS37: =IFRS_BS!F37 -> 0 | AU37: =IF('IFRS_IS(Q)'!A37="","",'IFRS_IS(Q)'!A37) -> 合併總損益 | AV37: =IF('IFRS_IS(Q)'!B37="","",'IFRS_IS(Q)'!B37) -> 374468888 | AW37: =IF('IFRS_IS(Q)'!C37="","",'IFRS_IS(Q)'!C37) -> 360732661 | AX37: =IF('IFRS_IS(Q)'!D37="","",'IFRS_IS(Q)'!D37) -> 397493424 | AY37: =IF('IFRS_IS(Q)'!E37="","",'IFRS_IS(Q)'!E37) -> 451755362 | AZ37: =IF('IFRS_IS(Q)'!F37="","",'IFRS_IS(Q)'!F37) -> 505415333 | BA37: =IF('IFRS_IS(Q)'!G37="","",'IFRS_IS(Q)'!G37) ->  | BC37: =IF(IFRS_note!A30="","",IFRS_note!A30) -> 公司債─不可轉換債 | BD37: =IF(IFRS_note!B30="","",IFRS_note!B30) -> 983752385 | BE37: =IF(IFRS_note!C30="","",IFRS_note!C30) -> 1007648067 | BF37: =IF(IFRS_note!D30="","",IFRS_note!D30) -> 940825442 | BG37: =IF(IFRS_note!E30="","",IFRS_note!E30) -> 955192812 | BH37: =IF(IFRS_note!F30="","",IFRS_note!F30) -> 992033491 | BI37: =IF(IFRS_note!G30="","",IFRS_note!G30) -> 
V38: ='合併財報(累計)'!$A39 -> 應付公司債－非流動 | W38: =IF('合併財報(累計)'!$B39="","",'合併財報(累計)'!$B39) -> 913899843 | X38: =IF('合併財報(累計)'!$C39="","",'合併財報(累計)'!$C39) -> 926604506 | Y38: =IF('合併財報(累計)'!$D39="","",'合併財報(累計)'!$D39) -> 856227503 | Z38: =IF('合併財報(累計)'!$F39="","",'合併財報(累計)'!$F39) -> 856227503 | AB38: ='合併財報(累計)'!A94 -> 歸屬非控制權益淨利（損） | AC38: ='合併財報(累計)'!B94 -> -730147 | AD38: ='合併財報(累計)'!C94 -> -835944 | AE38: ='合併財報(累計)'!D94 -> -2485847 | AG38: ='合併財報(單季)'!A38 -> 營業毛利率 | AH38: ='合併財報(單季)'!B38 -> 57.83 | AI38: ='合併財報(單季)'!C38 -> 59 | AJ38: ='合併財報(單季)'!D38 -> 58.79 | AK38: ='合併財報(單季)'!E38 -> 58.62 | AL38: ='合併財報(單季)'!F38 -> 59.45 | AM38: ='合併財報(單季)'!G38 -> 62.33 | AO38: =IFRS_BS!A38 -> 避險之金融負債－非流動 | AP38: =IFRS_BS!B38 -> 0 | AQ38: =IFRS_BS!C38 -> 0 | AR38: =IFRS_BS!D38 -> 0 | AS38: =IFRS_BS!F38 -> 0 | AU38: =IF('IFRS_IS(Q)'!A38="","",'IFRS_IS(Q)'!A38) -> 國外機構財務報表換算之兌換差額─OCI | AV38: =IF('IFRS_IS(Q)'!B38="","",'IFRS_IS(Q)'!B38) -> 40502886 | AW38: =IF('IFRS_IS(Q)'!C38="","",'IFRS_IS(Q)'!C38) -> 30220692 | AX38: =IF('IFRS_IS(Q)'!D38="","",'IFRS_IS(Q)'!D38) -> -256492873 | AY38: =IF('IFRS_IS(Q)'!E38="","",'IFRS_IS(Q)'!E38) -> 94284256 | AZ38: =IF('IFRS_IS(Q)'!F38="","",'IFRS_IS(Q)'!F38) -> 71036263 | BA38: =IF('IFRS_IS(Q)'!G38="","",'IFRS_IS(Q)'!G38) ->  | BC38: =IF(IFRS_note!A31="","",IFRS_note!A31) -> 公司債─可轉換債 | BD38: =IF(IFRS_note!B31="","",IFRS_note!B31) -> 0 | BE38: =IF(IFRS_note!C31="","",IFRS_note!C31) -> 0 | BF38: =IF(IFRS_note!D31="","",IFRS_note!D31) -> 0 | BG38: =IF(IFRS_note!E31="","",IFRS_note!E31) -> 0 | BH38: =IF(IFRS_note!F31="","",IFRS_note!F31) -> 0 | BI38: =IF(IFRS_note!G31="","",IFRS_note!G31) -> 
V39: ='合併財報(累計)'!$A40 -> 銀行借款－非流動 | W39: =IF('合併財報(累計)'!$B40="","",'合併財報(累計)'!$B40) -> 4382965 | X39: =IF('合併財報(累計)'!$C40="","",'合併財報(累計)'!$C40) -> 31824386 | Y39: =IF('合併財報(累計)'!$D40="","",'合併財報(累計)'!$D40) -> 39834496 | Z39: =IF('合併財報(累計)'!$F40="","",'合併財報(累計)'!$F40) -> 39834496 | AB39: ='合併財報(累計)'!A95 -> 綜合損益歸屬母公司 | AC39: ='合併財報(累計)'!B95 -> 830509542 | AD39: ='合併財報(累計)'!C95 -> 1245836616 | AE39: ='合併財報(累計)'!D95 -> 1661253891 | AG39: ='合併財報(單季)'!A39 -> 營業利益率 | AH39: ='合併財報(單季)'!B39 -> 47.49 | AI39: ='合併財報(單季)'!C39 -> 49.02 | AJ39: ='合併財報(單季)'!D39 -> 48.51 | AK39: ='合併財報(單季)'!E39 -> 49.63 | AL39: ='合併財報(單季)'!F39 -> 50.58 | AM39: ='合併財報(單季)'!G39 -> 54 | AO39: =IFRS_BS!A39 -> 按攤銷後成本衡量之金融負債－非流動 | AP39: =IFRS_BS!B39 -> 0 | AQ39: =IFRS_BS!C39 -> 0 | AR39: =IFRS_BS!D39 -> 0 | AS39: =IFRS_BS!F39 -> 0 | AU39: =IF('IFRS_IS(Q)'!A39="","",'IFRS_IS(Q)'!A39) -> 權益工具投資之利益〈損失〉─OCI | AV39: =IF('IFRS_IS(Q)'!B39="","",'IFRS_IS(Q)'!B39) -> 479031 | AW39: =IF('IFRS_IS(Q)'!C39="","",'IFRS_IS(Q)'!C39) -> -373521 | AX39: =IF('IFRS_IS(Q)'!D39="","",'IFRS_IS(Q)'!D39) -> 1982349 | AY39: =IF('IFRS_IS(Q)'!E39="","",'IFRS_IS(Q)'!E39) -> -535592 | AZ39: =IF('IFRS_IS(Q)'!F39="","",'IFRS_IS(Q)'!F39) -> -327964 | BA39: =IF('IFRS_IS(Q)'!G39="","",'IFRS_IS(Q)'!G39) ->  | BC39: =IF(IFRS_note!A32="","",IFRS_note!A32) -> 長期借款─應付租賃及分期 | BD39: =IF(IFRS_note!B32="","",IFRS_note!B32) -> 0 | BE39: =IF(IFRS_note!C32="","",IFRS_note!C32) -> 0 | BF39: =IF(IFRS_note!D32="","",IFRS_note!D32) -> 0 | BG39: =IF(IFRS_note!E32="","",IFRS_note!E32) -> 0 | BH39: =IF(IFRS_note!F32="","",IFRS_note!F32) -> 0 | BI39: =IF(IFRS_note!G32="","",IFRS_note!G32) -> 
V40: ='合併財報(累計)'!$A42 -> 其他非流動負債 | W40: =IF('合併財報(累計)'!$B42="","",'合併財報(累計)'!$B42) -> 179249329 | X40: =IF('合併財報(累計)'!$C42="","",'合併財報(累計)'!$C42) -> 105083798 | Y40: =IF('合併財報(累計)'!$D42="","",'合併財報(累計)'!$D42) -> 76651234 | Z40: =IF('合併財報(累計)'!$D42="","",'合併財報(累計)'!$D42) -> 76651234 | AB40: ='合併財報(累計)'!A96 -> 綜合損益歸屬非控制權益 | AC40: ='合併財報(累計)'!B96 -> -1555669 | AD40: ='合併財報(累計)'!C96 -> -1819211 | AE40: ='合併財報(累計)'!D96 -> -2183630 | AG40: ='合併財報(單季)'!A40 -> 稅前淨利率 | AH40: ='合併財報(單季)'!B40 -> 50.57 | AI40: ='合併財報(單季)'!C40 -> 51.68 | AJ40: ='合併財報(單季)'!D40 -> 51.34 | AK40: ='合併財報(單季)'!E40 -> 52.8 | AL40: ='合併財報(單季)'!F40 -> 53.07 | AM40: ='合併財報(單季)'!G40 -> 56.63 | AO40: =IFRS_BS!A40 -> 應付公司債－非流動 | AP40: =IFRS_BS!B40 -> 913899843 | AQ40: =IFRS_BS!C40 -> 926604506 | AR40: =IFRS_BS!D40 -> 948256974 | AS40: =IFRS_BS!F40 -> 0 | AU40: =IF('IFRS_IS(Q)'!A40="","",'IFRS_IS(Q)'!A40) -> 備供出售金融資產未實現評價損益─OCI | AV40: =IF('IFRS_IS(Q)'!B40="","",'IFRS_IS(Q)'!B40) -> -3238694 | AW40: =IF('IFRS_IS(Q)'!C40="","",'IFRS_IS(Q)'!C40) -> 2053235 | AX40: =IF('IFRS_IS(Q)'!D40="","",'IFRS_IS(Q)'!D40) -> 812217 | AY40: =IF('IFRS_IS(Q)'!E40="","",'IFRS_IS(Q)'!E40) -> 1177459 | AZ40: =IF('IFRS_IS(Q)'!F40="","",'IFRS_IS(Q)'!F40) -> 646045 | BA40: =IF('IFRS_IS(Q)'!G40="","",'IFRS_IS(Q)'!G40) ->  | BC40: =IF(IFRS_note!A33="","",IFRS_note!A33) -> 長期借款─政策性借款 | BD40: =IF(IFRS_note!B33="","",IFRS_note!B33) -> 34534386 | BE40: =IF(IFRS_note!C33="","",IFRS_note!C33) -> 41107480 | BF40: =IF(IFRS_note!D33="","",IFRS_note!D33) -> 37059301 | BG40: =IF(IFRS_note!E33="","",IFRS_note!E33) -> 39261057 | BH40: =IF(IFRS_note!F33="","",IFRS_note!F33) -> 40954218 | BI40: =IF(IFRS_note!G33="","",IFRS_note!G33) -> 
V41: ='合併財報(累計)'!$A43 -> 非流動負債 | W41: =IF('合併財報(累計)'!$B43="","",'合併財報(累計)'!$B43) -> 1135525052 | X41: =IF('合併財報(累計)'!$C43="","",'合併財報(累計)'!$C43) -> 1103837171 | Y41: =IF('合併財報(累計)'!$D43="","",'合併財報(累計)'!$D43) -> 1014209306 | Z41: =IF('合併財報(累計)'!$D43="","",'合併財報(累計)'!$D43) -> 1014209306 | AB41: ='合併財報(累計)'!A97 -> 每股盈餘 | AC41: ='合併財報(累計)'!B97 -> 32.34 | AD41: ='合併財報(累計)'!C97 -> 45.25 | AE41: ='合併財報(累計)'!D97 -> 66.26 | AG41: ='合併財報(單季)'!A41 -> 稅後淨利率 | AH41: ='合併財報(單季)'!B41 -> 42.79 | AI41: ='合併財報(單季)'!C41 -> 43.12 | AJ41: ='合併財報(單季)'!D41 -> 42.98 | AK41: ='合併財報(單季)'!E41 -> 42.57 | AL41: ='合併財報(單季)'!F41 -> 45.64 | AM41: ='合併財報(單季)'!G41 -> 48.31 | AO41: =IFRS_BS!A41 -> 銀行借款－非流動 | AP41: =IFRS_BS!B41 -> 4382965 | AQ41: =IFRS_BS!C41 -> 31824386 | AR41: =IFRS_BS!D41 -> 38726925 | AS41: =IFRS_BS!F41 -> 0 | AU41: =IF('IFRS_IS(Q)'!A41="","",'IFRS_IS(Q)'!A41) -> 現金流量避險─OCI | AV41: =IF('IFRS_IS(Q)'!B41="","",'IFRS_IS(Q)'!B41) ->  | AW41: =IF('IFRS_IS(Q)'!C41="","",'IFRS_IS(Q)'!C41) ->  | AX41: =IF('IFRS_IS(Q)'!D41="","",'IFRS_IS(Q)'!D41) ->  | AY41: =IF('IFRS_IS(Q)'!E41="","",'IFRS_IS(Q)'!E41) ->  | AZ41: =IF('IFRS_IS(Q)'!F41="","",'IFRS_IS(Q)'!F41) ->  | BA41: =IF('IFRS_IS(Q)'!G41="","",'IFRS_IS(Q)'!G41) ->  | BC41: =IF(IFRS_note!A34="","",IFRS_note!A34) -> 長期借款─重整債權 | BD41: =IF(IFRS_note!B34="","",IFRS_note!B34) -> 0 | BE41: =IF(IFRS_note!C34="","",IFRS_note!C34) -> 0 | BF41: =IF(IFRS_note!D34="","",IFRS_note!D34) -> 0 | BG41: =IF(IFRS_note!E34="","",IFRS_note!E34) -> 0 | BH41: =IF(IFRS_note!F34="","",IFRS_note!F34) -> 0 | BI41: =IF(IFRS_note!G34="","",IFRS_note!G34) -> 
V42: ='合併財報(累計)'!$A44 -> 負債總額 | W42: =IF('合併財報(累計)'!$B44="","",'合併財報(累計)'!$B44) -> 2049108368 | X42: =IF('合併財報(累計)'!$C44="","",'合併財報(累計)'!$C44) -> 2368362135 | Y42: =IF('合併財報(累計)'!$D44="","",'合併財報(累計)'!$D44) -> 2472228595 | Z42: =IF('合併財報(累計)'!$D44="","",'合併財報(累計)'!$D44) -> 2472228595 | AB42: ='合併財報(累計)'!A98 -> 每股盈餘－完全稀釋 | AC42: ='合併財報(累計)'!B98 -> 32.34 | AD42: ='合併財報(累計)'!C98 -> 45.25 | AE42: ='合併財報(累計)'!D98 -> 66.25 | AO42: =IFRS_BS!A42 -> 其他長期借款－非流動 | AP42: =IFRS_BS!B42 -> 0 | AQ42: =IFRS_BS!C42 -> 0 | AR42: =IFRS_BS!D42 -> 0 | AS42: =IFRS_BS!F42 -> 0 | AU42: =IF('IFRS_IS(Q)'!A42="","",'IFRS_IS(Q)'!A42) -> 國外營運機構淨投資避險─OCI | AV42: =IF('IFRS_IS(Q)'!B42="","",'IFRS_IS(Q)'!B42) ->  | AW42: =IF('IFRS_IS(Q)'!C42="","",'IFRS_IS(Q)'!C42) ->  | AX42: =IF('IFRS_IS(Q)'!D42="","",'IFRS_IS(Q)'!D42) ->  | AY42: =IF('IFRS_IS(Q)'!E42="","",'IFRS_IS(Q)'!E42) ->  | AZ42: =IF('IFRS_IS(Q)'!F42="","",'IFRS_IS(Q)'!F42) ->  | BA42: =IF('IFRS_IS(Q)'!G42="","",'IFRS_IS(Q)'!G42) ->  | BC42: =IF(IFRS_note!A35="","",IFRS_note!A35) -> 長期借款─其他借款 | BD42: =IF(IFRS_note!B35="","",IFRS_note!B35) -> 0 | BE42: =IF(IFRS_note!C35="","",IFRS_note!C35) -> 0 | BF42: =IF(IFRS_note!D35="","",IFRS_note!D35) -> 0 | BG42: =IF(IFRS_note!E35="","",IFRS_note!E35) -> 0 | BH42: =IF(IFRS_note!F35="","",IFRS_note!F35) -> 0 | BI42: =IF(IFRS_note!G35="","",IFRS_note!G35) -> 
V43: ='合併財報(累計)'!$A45 -> 普通股股本 | W43: =IF('合併財報(累計)'!$B45="","",'合併財報(累計)'!$B45) -> 259320710 | X43: =IF('合併財報(累計)'!$C45="","",'合併財報(累計)'!$C45) -> 259327332 | Y43: =IF('合併財報(累計)'!$D45="","",'合併財報(累計)'!$D45) -> 259325245 | Z43: =IF('合併財報(累計)'!$D45="","",'合併財報(累計)'!$D45) -> 259325245 | AB43: =IFRS說明!C3 -> 0 | AO43: =IFRS_BS!A43 -> 負債準備－非流動 | AP43: =IFRS_BS!B43 -> 0 | AQ43: =IFRS_BS!C43 -> 0 | AR43: =IFRS_BS!D43 -> 0 | AS43: =IFRS_BS!F43 -> 0 | AU43: =IF('IFRS_IS(Q)'!A43="","",'IFRS_IS(Q)'!A43) -> 重估價之利益〈損失〉─OCI | AV43: =IF('IFRS_IS(Q)'!B43="","",'IFRS_IS(Q)'!B43) -> 0 | AW43: =IF('IFRS_IS(Q)'!C43="","",'IFRS_IS(Q)'!C43) -> 0 | AX43: =IF('IFRS_IS(Q)'!D43="","",'IFRS_IS(Q)'!D43) -> 0 | AY43: =IF('IFRS_IS(Q)'!E43="","",'IFRS_IS(Q)'!E43) -> 0 | AZ43: =IF('IFRS_IS(Q)'!F43="","",'IFRS_IS(Q)'!F43) -> 0 | BA43: =IF('IFRS_IS(Q)'!G43="","",'IFRS_IS(Q)'!G43) ->  | BC43: =IF(IFRS_note!A36="","",IFRS_note!A36) -> 特別股負債 | BD43: =IF(IFRS_note!B36="","",IFRS_note!B36) -> 0 | BE43: =IF(IFRS_note!C36="","",IFRS_note!C36) -> 0 | BF43: =IF(IFRS_note!D36="","",IFRS_note!D36) -> 0 | BG43: =IF(IFRS_note!E36="","",IFRS_note!E36) -> 0 | BH43: =IF(IFRS_note!F36="","",IFRS_note!F36) -> 0 | BI43: =IF(IFRS_note!G36="","",IFRS_note!G36) -> 
V44: ='合併財報(累計)'!$A46 -> 特別股股本 | W44: =IF('合併財報(累計)'!$B46="","",'合併財報(累計)'!$B46) -> 0 | X44: =IF('合併財報(累計)'!$C46="","",'合併財報(累計)'!$C46) -> 0 | Y44: =IF('合併財報(累計)'!$D46="","",'合併財報(累計)'!$D46) -> 0 | Z44: =IF('合併財報(累計)'!$D46="","",'合併財報(累計)'!$D46) -> 0 | AB44: =IF(IFRS說明!C3="","",IFRS說明!C3) ->  | AO44: =IFRS_BS!A44 -> 應計退休金負債 | AP44: =IFRS_BS!B44 -> 9257224 | AQ44: =IFRS_BS!C44 -> 7580657 | AR44: =IFRS_BS!D44 -> 5378586 | AS44: =IFRS_BS!F44 -> 0 | AU44: =IF('IFRS_IS(Q)'!A44="","",'IFRS_IS(Q)'!A44) -> 確定福利計畫精算利益〈損失〉─OCI | AV44: =IF('IFRS_IS(Q)'!B44="","",'IFRS_IS(Q)'!B44) -> 144365 | AW44: =IF('IFRS_IS(Q)'!C44="","",'IFRS_IS(Q)'!C44) -> 0 | AX44: =IF('IFRS_IS(Q)'!D44="","",'IFRS_IS(Q)'!D44) -> 0 | AY44: =IF('IFRS_IS(Q)'!E44="","",'IFRS_IS(Q)'!E44) -> 0 | AZ44: =IF('IFRS_IS(Q)'!F44="","",'IFRS_IS(Q)'!F44) -> -693271 | BA44: =IF('IFRS_IS(Q)'!G44="","",'IFRS_IS(Q)'!G44) -> 
V45: ='合併財報(累計)'!$A47 -> 股本 | W45: =IF('合併財報(累計)'!$B47="","",'合併財報(累計)'!$B47) -> 259320710 | X45: =IF('合併財報(累計)'!$C47="","",'合併財報(累計)'!$C47) -> 259327332 | Y45: =IF('合併財報(累計)'!$D47="","",'合併財報(累計)'!$D47) -> 259325245 | Z45: =IF('合併財報(累計)'!$D47="","",'合併財報(累計)'!$D47) -> 259325245 | AB45: =IF(IFRS說明!C4="","",IFRS說明!C4) ->  | AO45: =IFRS_BS!A45 -> 遞延所得稅 | AP45: =IFRS_BS!B45 -> 53856 | AQ45: =IFRS_BS!C45 -> 3988482 | AR45: =IFRS_BS!D45 -> 3968524 | AS45: =IFRS_BS!F45 -> 0 | AU45: =IF('IFRS_IS(Q)'!A45="","",'IFRS_IS(Q)'!A45) -> 採用權益法認列之關聯企業及合資之其他綜合損益之份額─OCI | AV45: =IF('IFRS_IS(Q)'!B45="","",'IFRS_IS(Q)'!B45) ->  | AW45: =IF('IFRS_IS(Q)'!C45="","",'IFRS_IS(Q)'!C45) ->  | AX45: =IF('IFRS_IS(Q)'!D45="","",'IFRS_IS(Q)'!D45) ->  | AY45: =IF('IFRS_IS(Q)'!E45="","",'IFRS_IS(Q)'!E45) ->  | AZ45: =IF('IFRS_IS(Q)'!F45="","",'IFRS_IS(Q)'!F45) ->  | BA45: =IF('IFRS_IS(Q)'!G45="","",'IFRS_IS(Q)'!G45) -> 
V46: ='合併財報(累計)'!$A48 -> 資本公積合計 | W46: =IF('合併財報(累計)'!$B48="","",'合併財報(累計)'!$B48) -> 69876381 | X46: =IF('合併財報(累計)'!$C48="","",'合併財報(累計)'!$C48) -> 73260765 | Y46: =IF('合併財報(累計)'!$D48="","",'合併財報(累計)'!$D48) -> 73445601 | Z46: =IF('合併財報(累計)'!$D48="","",'合併財報(累計)'!$D48) -> 73445601 | AB46: =IF(IFRS說明!C5="","",IFRS說明!C5) ->  | AO46: =IFRS_BS!A46 -> 其他非流動負債 | AP46: =IFRS_BS!B46 -> 179249329 | AQ46: =IFRS_BS!C46 -> 105083798 | AR46: =IFRS_BS!D46 -> 106407135 | AS46: =IFRS_BS!F46 -> 0 | AU46: =IF('IFRS_IS(Q)'!A46="","",'IFRS_IS(Q)'!A46) -> 其他綜合損益─其他─OCI | AV46: =IF('IFRS_IS(Q)'!B46="","",'IFRS_IS(Q)'!B46) ->  | AW46: =IF('IFRS_IS(Q)'!C46="","",'IFRS_IS(Q)'!C46) ->  | AX46: =IF('IFRS_IS(Q)'!D46="","",'IFRS_IS(Q)'!D46) ->  | AY46: =IF('IFRS_IS(Q)'!E46="","",'IFRS_IS(Q)'!E46) ->  | AZ46: =IF('IFRS_IS(Q)'!F46="","",'IFRS_IS(Q)'!F46) ->  | BA46: =IF('IFRS_IS(Q)'!G46="","",'IFRS_IS(Q)'!G46) -> 
A47: 十大股東 | D47: 身份別 | F47: 持股數(張) | G47: 持股率% | H47: 選任持股% | I47: 質押/持股比 | J47: 排名 | V47: ='合併財報(累計)'!$A49 -> 法定盈餘公積 | W47: =IF('合併財報(累計)'!$B49="","",'合併財報(累計)'!$B49) -> 311146899 | X47: =IF('合併財報(累計)'!$C49="","",'合併財報(累計)'!$C49) -> 311146899 | Y47: =IF('合併財報(累計)'!$D49="","",'合併財報(累計)'!$D49) -> 311146899 | Z47: =IF('合併財報(累計)'!$D49="","",'合併財報(累計)'!$D49) -> 311146899 | AB47: =IF(IFRS說明!C10="","",IFRS說明!C10) ->  | AO47: =IFRS_BS!A47 -> 普通股股本 | AP47: =IFRS_BS!B47 -> 259320710 | AQ47: =IFRS_BS!C47 -> 259327332 | AR47: =IFRS_BS!D47 -> 259326155 | AS47: =IFRS_BS!F47 -> 0 | AU47: =IF('IFRS_IS(Q)'!A47="","",'IFRS_IS(Q)'!A47) -> 與其他綜合損益組成部分相關之所得稅─OCI | AV47: =IF('IFRS_IS(Q)'!B47="","",'IFRS_IS(Q)'!B47) ->  | AW47: =IF('IFRS_IS(Q)'!C47="","",'IFRS_IS(Q)'!C47) ->  | AX47: =IF('IFRS_IS(Q)'!D47="","",'IFRS_IS(Q)'!D47) ->  | AY47: =IF('IFRS_IS(Q)'!E47="","",'IFRS_IS(Q)'!E47) ->  | AZ47: =IF('IFRS_IS(Q)'!F47="","",'IFRS_IS(Q)'!F47) ->  | BA47: =IF('IFRS_IS(Q)'!G47="","",'IFRS_IS(Q)'!G47) -> 
A48: =IF(OR(十大股東!$H3="",十大股東!$H3="-"),"",十大股東!B3) -> 花旗台積存託 花旗台積存託 | D48: =IF(ISERROR(IF(OR(十大股東!$H3="",十大股東!$H3="-"),"", IF(LEFT(十大股東!C3,3)="大股東",LEFT(十大股東!C3,4)&MID(十大股東!C3,FIND("(",十大股東!C3)+1,7),十大股東!C3))),十大股東!C3,IF(OR(十大股東!$H3="",十大股東!$H3="-"),"", IF(LEFT(十大股東!C3,3)="大股東",LEFT(十大股東!C3,4)&MID(十大股東!C3,FIND("(",十大股東!C3)+1,7),十大股東!C3))) -> 大股東 | F48: =IF(OR(十大股東!$H3="",十大股東!$H3="-"),"",十大股東!D3) -> 5313844 | G48: =IF(OR(十大股東!$H3="",十大股東!$H3="-"),"",十大股東!E3) -> 20.49 | H48: =IF(OR(十大股東!$H3="",十大股東!$H3="-"),"",十大股東!F3) -> 0 | I48: =IF(OR(十大股東!$H3="",十大股東!$H3="-"),"",十大股東!G3) -> 0 | J48: =IF(OR(十大股東!$H3="",十大股東!$H3="-"),"",十大股東!H3) -> 1 | V48: ='合併財報(累計)'!$A50 -> 特別盈餘公積 | W48: =IF('合併財報(累計)'!$B50="","",'合併財報(累計)'!$B50) -> 0 | X48: =IF('合併財報(累計)'!$C50="","",'合併財報(累計)'!$C50) -> 0 | Y48: =IF('合併財報(累計)'!$D50="","",'合併財報(累計)'!$D50) -> 87284496 | Z48: =IF('合併財報(累計)'!$D50="","",'合併財報(累計)'!$D50) -> 87284496 | AB48: =IF(IFRS說明!C11="","",IFRS說明!C11) ->  | AO48: =IFRS_BS!A48 -> 特別股股本 | AP48: =IFRS_BS!B48 -> 0 | AQ48: =IFRS_BS!C48 -> 0 | AR48: =IFRS_BS!D48 -> 0 | AS48: =IFRS_BS!F48 -> 0 | AU48: =IF('IFRS_IS(Q)'!A48="","",'IFRS_IS(Q)'!A48) -> 其他綜合損益─OCI | AV48: =IF('IFRS_IS(Q)'!B48="","",'IFRS_IS(Q)'!B48) -> 37903377 | AW48: =IF('IFRS_IS(Q)'!C48="","",'IFRS_IS(Q)'!C48) -> 31896928 | AX48: =IF('IFRS_IS(Q)'!D48="","",'IFRS_IS(Q)'!D48) -> -254501881 | AY48: =IF('IFRS_IS(Q)'!E48="","",'IFRS_IS(Q)'!E48) -> 95201936 | AZ48: =IF('IFRS_IS(Q)'!F48="","",'IFRS_IS(Q)'!F48) -> 71076498 | BA48: =IF('IFRS_IS(Q)'!G48="","",'IFRS_IS(Q)'!G48) -> 
A49: =IF(OR(十大股東!$H4="",十大股東!$H4="-"),"",十大股東!B4) -> 摩根大通歐洲 摩根大通歐洲 | D49: =IF(ISERROR(IF(OR(十大股東!$H4="",十大股東!$H4="-"),"", IF(LEFT(十大股東!C4,3)="大股東",LEFT(十大股東!C4,4)&MID(十大股東!C4,FIND("(",十大股東!C4)+1,7),十大股東!C4))),十大股東!C4,IF(OR(十大股東!$H4="",十大股東!$H4="-"),"", IF(LEFT(十大股東!C4,3)="大股東",LEFT(十大股東!C4,4)&MID(十大股東!C4,FIND("(",十大股東!C4)+1,7),十大股東!C4))) -> 大股東 | F49: =IF(OR(十大股東!$H4="",十大股東!$H4="-"),"",十大股東!D4) -> 189345 | G49: =IF(OR(十大股東!$H4="",十大股東!$H4="-"),"",十大股東!E4) -> 0.73 | H49: =IF(OR(十大股東!$H4="",十大股東!$H4="-"),"",十大股東!F4) -> 0 | I49: =IF(OR(十大股東!$H4="",十大股東!$H4="-"),"",十大股東!G4) -> 0 | J49: =IF(OR(十大股東!$H4="",十大股東!$H4="-"),"",十大股東!H4) -> 10 | V49: ='合併財報(累計)'!$A51 -> 未分配盈餘 | W49: =IF('合併財報(累計)'!$B51="","",'合併財報(累計)'!$B51) -> 2846883893 | X49: =IF('合併財報(累計)'!$C51="","",'合併財報(累計)'!$C51) -> 3606105124 | Y49: =IF('合併財報(累計)'!$D51="","",'合併財報(累計)'!$D51) -> 4705070165 | Z49: =IF('合併財報(累計)'!$D51="","",'合併財報(累計)'!$D51) -> 4705070165 | AB49: =IF(IFRS說明!C12="","",IFRS說明!C12) ->  | AO49: =IFRS_BS!A49 -> 資本公積－發行溢價 | AP49: =IFRS_BS!B49 -> 33299225 | AQ49: =IFRS_BS!C49 -> 33700961 | AR49: =IFRS_BS!D49 -> 34477418 | AS49: =IFRS_BS!F49 -> 0 | AU49: =IF('IFRS_IS(Q)'!A49="","",'IFRS_IS(Q)'!A49) -> 本期綜合損益總額 | AV49: =IF('IFRS_IS(Q)'!B49="","",'IFRS_IS(Q)'!B49) -> 412372265 | AW49: =IF('IFRS_IS(Q)'!C49="","",'IFRS_IS(Q)'!C49) -> 392629589 | AX49: =IF('IFRS_IS(Q)'!D49="","",'IFRS_IS(Q)'!D49) -> 142991543 | AY49: =IF('IFRS_IS(Q)'!E49="","",'IFRS_IS(Q)'!E49) -> 546957298 | AZ49: =IF('IFRS_IS(Q)'!F49="","",'IFRS_IS(Q)'!F49) -> 576491831 | BA49: =IF('IFRS_IS(Q)'!G49="","",'IFRS_IS(Q)'!G49) -> 
A50: =IF(OR(十大股東!$H5="",十大股東!$H5="-"),"",十大股東!B5) -> 行政院國發會 葉俊顯 | D50: =IF(ISERROR(IF(OR(十大股東!$H5="",十大股東!$H5="-"),"", IF(LEFT(十大股東!C5,3)="大股東",LEFT(十大股東!C5,4)&MID(十大股東!C5,FIND("(",十大股東!C5)+1,7),十大股東!C5))),十大股東!C5,IF(OR(十大股東!$H5="",十大股東!$H5="-"),"", IF(LEFT(十大股東!C5,3)="大股東",LEFT(十大股東!C5,4)&MID(十大股東!C5,FIND("(",十大股東!C5)+1,7),十大股東!C5))) -> 董事 | F50: =IF(OR(十大股東!$H5="",十大股東!$H5="-"),"",十大股東!D5) -> 1653710 | G50: =IF(OR(十大股東!$H5="",十大股東!$H5="-"),"",十大股東!E5) -> 6.38 | H50: =IF(OR(十大股東!$H5="",十大股東!$H5="-"),"",十大股東!F5) -> 6.38 | I50: =IF(OR(十大股東!$H5="",十大股東!$H5="-"),"",十大股東!G5) -> 0 | J50: =IF(OR(十大股東!$H5="",十大股東!$H5="-"),"",十大股東!H5) -> 2 | V50: ='合併財報(累計)'!$A52 -> 保留盈餘 | W50: =IF('合併財報(累計)'!$B52="","",'合併財報(累計)'!$B52) -> 3158030792 | X50: =IF('合併財報(累計)'!$C52="","",'合併財報(累計)'!$C52) -> 3917252023 | Y50: =IF('合併財報(累計)'!$D52="","",'合併財報(累計)'!$D52) -> 5103501560 | Z50: =IF('合併財報(累計)'!$D52="","",'合併財報(累計)'!$D52) -> 5103501560 | AB50: =IF(IFRS說明!C13="","",IFRS說明!C13) ->  | AO50: =IFRS_BS!A50 -> 法定盈餘公積 | AP50: =IFRS_BS!B50 -> 311146899 | AQ50: =IFRS_BS!C50 -> 311146899 | AR50: =IFRS_BS!D50 -> 311146899 | AS50: =IFRS_BS!F50 -> 0 | AU50: =IF('IFRS_IS(Q)'!A50="","",'IFRS_IS(Q)'!A50) -> 本期稅後淨利〈歸屬母公司股東〉 | AV50: =IF('IFRS_IS(Q)'!B50="","",'IFRS_IS(Q)'!B50) -> 374679727 | AW50: =IF('IFRS_IS(Q)'!C50="","",'IFRS_IS(Q)'!C50) -> 361564128 | AX50: =IF('IFRS_IS(Q)'!D50="","",'IFRS_IS(Q)'!D50) -> 398273102 | AY50: =IF('IFRS_IS(Q)'!E50="","",'IFRS_IS(Q)'!E50) -> 452301407 | AZ50: =IF('IFRS_IS(Q)'!F50="","",'IFRS_IS(Q)'!F50) -> 505743990 | BA50: =IF('IFRS_IS(Q)'!G50="","",'IFRS_IS(Q)'!G50) -> 
A51: =IF(OR(十大股東!$H6="",十大股東!$H6="-"),"",十大股東!B6) -> 花旗台新加坡 花旗台新加坡 | D51: =IF(ISERROR(IF(OR(十大股東!$H6="",十大股東!$H6="-"),"", IF(LEFT(十大股東!C6,3)="大股東",LEFT(十大股東!C6,4)&MID(十大股東!C6,FIND("(",十大股東!C6)+1,7),十大股東!C6))),十大股東!C6,IF(OR(十大股東!$H6="",十大股東!$H6="-"),"", IF(LEFT(十大股東!C6,3)="大股東",LEFT(十大股東!C6,4)&MID(十大股東!C6,FIND("(",十大股東!C6)+1,7),十大股東!C6))) -> 大股東 | F51: =IF(OR(十大股東!$H6="",十大股東!$H6="-"),"",十大股東!D6) -> 682007 | G51: =IF(OR(十大股東!$H6="",十大股東!$H6="-"),"",十大股東!E6) -> 2.63 | H51: =IF(OR(十大股東!$H6="",十大股東!$H6="-"),"",十大股東!F6) -> 0 | I51: =IF(OR(十大股東!$H6="",十大股東!$H6="-"),"",十大股東!G6) -> 0 | J51: =IF(OR(十大股東!$H6="",十大股東!$H6="-"),"",十大股東!H6) -> 3 | V51: ='合併財報(累計)'!$A53 -> 其他權益 | W51: =IF('合併財報(累計)'!$B53="","",'合併財報(累計)'!$B53) -> -28314256 | X51: =IF('合併財報(累計)'!$C53="","",'合併財報(累計)'!$C53) -> 38705047 | Y51: =IF('合併財報(累計)'!$D53="","",'合併財報(累計)'!$D53) -> -16676412 | Z51: =IF('合併財報(累計)'!$D53="","",'合併財報(累計)'!$D53) -> -16676412 | AB51: =IF(IFRS說明!C14="","",IFRS說明!C14) ->  | AO51: =IFRS_BS!A51 -> 特別盈餘公積 | AP51: =IFRS_BS!B51 -> 0 | AQ51: =IFRS_BS!C51 -> 0 | AR51: =IFRS_BS!D51 -> 0 | AS51: =IFRS_BS!F51 -> 0 | AU51: =IF('IFRS_IS(Q)'!A51="","",'IFRS_IS(Q)'!A51) -> 每股盈餘 | AV51: =IF('IFRS_IS(Q)'!B51="","",'IFRS_IS(Q)'!B51) -> 14.45 | AW51: =IF('IFRS_IS(Q)'!C51="","",'IFRS_IS(Q)'!C51) -> 13.95 | AX51: =IF('IFRS_IS(Q)'!D51="","",'IFRS_IS(Q)'!D51) -> 15.36 | AY51: =IF('IFRS_IS(Q)'!E51="","",'IFRS_IS(Q)'!E51) -> 17.44 | AZ51: =IF('IFRS_IS(Q)'!F51="","",'IFRS_IS(Q)'!F51) -> 19.51 | BA51: =IF('IFRS_IS(Q)'!G51="","",'IFRS_IS(Q)'!G51) -> 
A52: =IF(OR(十大股東!$H7="",十大股東!$H7="-"),"",十大股東!B7) -> 花旗託管挪威 花旗託管挪威 | D52: =IF(ISERROR(IF(OR(十大股東!$H7="",十大股東!$H7="-"),"", IF(LEFT(十大股東!C7,3)="大股東",LEFT(十大股東!C7,4)&MID(十大股東!C7,FIND("(",十大股東!C7)+1,7),十大股東!C7))),十大股東!C7,IF(OR(十大股東!$H7="",十大股東!$H7="-"),"", IF(LEFT(十大股東!C7,3)="大股東",LEFT(十大股東!C7,4)&MID(十大股東!C7,FIND("(",十大股東!C7)+1,7),十大股東!C7))) -> 大股東 | F52: =IF(OR(十大股東!$H7="",十大股東!$H7="-"),"",十大股東!D7) -> 461734 | G52: =IF(OR(十大股東!$H7="",十大股東!$H7="-"),"",十大股東!E7) -> 1.78 | H52: =IF(OR(十大股東!$H7="",十大股東!$H7="-"),"",十大股東!F7) -> 0 | I52: =IF(OR(十大股東!$H7="",十大股東!$H7="-"),"",十大股東!G7) -> 0 | J52: =IF(OR(十大股東!$H7="",十大股東!$H7="-"),"",十大股東!H7) -> 4 | V52: ='合併財報(累計)'!$A54 -> 母公司股東權益合計 | W52: =IF('合併財報(累計)'!$B54="","",'合併財報(累計)'!$B54) -> 3458913627 | X52: =IF('合併財報(累計)'!$C54="","",'合併財報(累計)'!$C54) -> 4288545167 | Y52: =IF('合併財報(累計)'!$D54="","",'合併財報(累計)'!$D54) -> 5419595994 | Z52: =IF('合併財報(累計)'!$D54="","",'合併財報(累計)'!$D54) -> 5419595994 | AB52: =IF(IFRS說明!C15="","",IFRS說明!C15) ->  | AO52: =IFRS_BS!A52 -> 國外營運機構財務報表換算之兌換差額 | AP52: =IFRS_BS!B52 -> -25316769 | AQ52: =IFRS_BS!C52 -> 40262995 | AR52: =IFRS_BS!D52 -> 68922015 | AS52: =IFRS_BS!F52 -> 0 | AU52: 財務比率
A53: =IF(OR(十大股東!$H8="",十大股東!$H8="-"),"",十大股東!B8) -> 大通先進星光 大通先進星光 | D53: =IF(ISERROR(IF(OR(十大股東!$H8="",十大股東!$H8="-"),"", IF(LEFT(十大股東!C8,3)="大股東",LEFT(十大股東!C8,4)&MID(十大股東!C8,FIND("(",十大股東!C8)+1,7),十大股東!C8))),十大股東!C8,IF(OR(十大股東!$H8="",十大股東!$H8="-"),"", IF(LEFT(十大股東!C8,3)="大股東",LEFT(十大股東!C8,4)&MID(十大股東!C8,FIND("(",十大股東!C8)+1,7),十大股東!C8))) -> 大股東 | F53: =IF(OR(十大股東!$H8="",十大股東!$H8="-"),"",十大股東!D8) -> 337168 | G53: =IF(OR(十大股東!$H8="",十大股東!$H8="-"),"",十大股東!E8) -> 1.3 | H53: =IF(OR(十大股東!$H8="",十大股東!$H8="-"),"",十大股東!F8) -> 0 | I53: =IF(OR(十大股東!$H8="",十大股東!$H8="-"),"",十大股東!G8) -> 0 | J53: =IF(OR(十大股東!$H8="",十大股東!$H8="-"),"",十大股東!H8) -> 5 | V53: ='合併財報(累計)'!$A55 -> 非控制權益 | W53: =IF('合併財報(累計)'!$B55="","",'合併財報(累計)'!$B55) -> 24349220 | X53: =IF('合併財報(累計)'!$C55="","",'合併財報(累計)'!$C55) -> 35030698 | Y53: =IF('合併財報(累計)'!$D55="","",'合併財報(累計)'!$D55) -> 41199289 | Z53: =IF('合併財報(累計)'!$D55="","",'合併財報(累計)'!$D55) -> 41199289 | AB53: =IF(IFRS說明!C16="","",IFRS說明!C16) ->  | AO53: =IFRS_BS!A53 -> 透過其他綜合損益按公允價值衡量之金融資產未實現損益 | AP53: =IFRS_BS!B53 -> -4099928 | AQ53: =IFRS_BS!C53 -> -1160176 | AR53: =IFRS_BS!D53 -> 279944 | AS53: =IFRS_BS!F53 -> 0 | AU53: =IF('IFRS_IS(Q)'!A52="","",'IFRS_IS(Q)'!A52) -> 營業毛利率 | AV53: =IF('IFRS_IS(Q)'!B52="","",'IFRS_IS(Q)'!B52) -> 59 | AW53: =IF('IFRS_IS(Q)'!C52="","",'IFRS_IS(Q)'!C52) -> 58.79 | AX53: =IF('IFRS_IS(Q)'!D52="","",'IFRS_IS(Q)'!D52) -> 58.62 | AY53: =IF('IFRS_IS(Q)'!E52="","",'IFRS_IS(Q)'!E52) -> 59.45 | AZ53: =IF('IFRS_IS(Q)'!F52="","",'IFRS_IS(Q)'!F52) -> 62.33 | BA53: =IF('IFRS_IS(Q)'!G52="","",'IFRS_IS(Q)'!G52) -> 
A54: =IF(OR(十大股東!$H9="",十大股東!$H9="-"),"",十大股東!B9) -> 摩根梵市場股 摩根梵市場股 | D54: =IF(ISERROR(IF(OR(十大股東!$H9="",十大股東!$H9="-"),"", IF(LEFT(十大股東!C9,3)="大股東",LEFT(十大股東!C9,4)&MID(十大股東!C9,FIND("(",十大股東!C9)+1,7),十大股東!C9))),十大股東!C9,IF(OR(十大股東!$H9="",十大股東!$H9="-"),"", IF(LEFT(十大股東!C9,3)="大股東",LEFT(十大股東!C9,4)&MID(十大股東!C9,FIND("(",十大股東!C9)+1,7),十大股東!C9))) -> 大股東 | F54: =IF(OR(十大股東!$H9="",十大股東!$H9="-"),"",十大股東!D9) -> 311574 | G54: =IF(OR(十大股東!$H9="",十大股東!$H9="-"),"",十大股東!E9) -> 1.2 | H54: =IF(OR(十大股東!$H9="",十大股東!$H9="-"),"",十大股東!F9) -> 0 | I54: =IF(OR(十大股東!$H9="",十大股東!$H9="-"),"",十大股東!G9) -> 0 | J54: =IF(OR(十大股東!$H9="",十大股東!$H9="-"),"",十大股東!H9) -> 6 | V54: ='合併財報(累計)'!$A56 -> 股東權益總額 | W54: =IF('合併財報(累計)'!$B56="","",'合併財報(累計)'!$B56) -> 3483262847 | X54: =IF('合併財報(累計)'!$C56="","",'合併財報(累計)'!$C56) -> 4323575865 | Y54: =IF('合併財報(累計)'!$D56="","",'合併財報(累計)'!$D56) -> 5460795283 | Z54: =IF('合併財報(累計)'!$D56="","",'合併財報(累計)'!$D56) -> 5460795283 | AB54: =IF(IFRS說明!C17="","",IFRS說明!C17) ->  | AO54: =IFRS_BS!A54 -> 指定按公允價值衡量之金融負債信用風險變動影響數 | AP54: =IFRS_BS!B54 -> 0 | AQ54: =IFRS_BS!C54 -> 0 | AR54: =IFRS_BS!D54 -> 0 | AS54: =IFRS_BS!F54 -> 0 | AU54: =IF('IFRS_IS(Q)'!A53="","",'IFRS_IS(Q)'!A53) -> 營業利益率 | AV54: =IF('IFRS_IS(Q)'!B53="","",'IFRS_IS(Q)'!B53) -> 49.02 | AW54: =IF('IFRS_IS(Q)'!C53="","",'IFRS_IS(Q)'!C53) -> 48.51 | AX54: =IF('IFRS_IS(Q)'!D53="","",'IFRS_IS(Q)'!D53) -> 49.63 | AY54: =IF('IFRS_IS(Q)'!E53="","",'IFRS_IS(Q)'!E53) -> 50.58 | AZ54: =IF('IFRS_IS(Q)'!F53="","",'IFRS_IS(Q)'!F53) -> 54 | BA54: =IF('IFRS_IS(Q)'!G53="","",'IFRS_IS(Q)'!G53) -> 
A55: =IF(OR(十大股東!$H10="",十大股東!$H10="-"),"",十大股東!B10) -> 新制勞退基金 新制勞退基金 | D55: =IF(ISERROR(IF(OR(十大股東!$H10="",十大股東!$H10="-"),"", IF(LEFT(十大股東!C10,3)="大股東",LEFT(十大股東!C10,4)&MID(十大股東!C10,FIND("(",十大股東!C10)+1,7),十大股東!C10))),十大股東!C10,IF(OR(十大股東!$H10="",十大股東!$H10="-"),"", IF(LEFT(十大股東!C10,3)="大股東",LEFT(十大股東!C10,4)&MID(十大股東!C10,FIND("(",十大股東!C10)+1,7),十大股東!C10))) -> 大股東 | F55: =IF(OR(十大股東!$H10="",十大股東!$H10="-"),"",十大股東!D10) -> 302277 | G55: =IF(OR(十大股東!$H10="",十大股東!$H10="-"),"",十大股東!E10) -> 1.17 | H55: =IF(OR(十大股東!$H10="",十大股東!$H10="-"),"",十大股東!F10) -> 0 | I55: =IF(OR(十大股東!$H10="",十大股東!$H10="-"),"",十大股東!G10) -> 0 | J55: =IF(OR(十大股東!$H10="",十大股東!$H10="-"),"",十大股東!H10) -> 7 | V55: ='合併財報(累計)'!$A57 -> 負債及股東權益總額 | W55: =IF('合併財報(累計)'!$B57="","",'合併財報(累計)'!$B57) -> 5532371215 | X55: =IF('合併財報(累計)'!$C57="","",'合併財報(累計)'!$C57) -> 6691938000 | Y55: =IF('合併財報(累計)'!$D57="","",'合併財報(累計)'!$D57) -> 7933023878 | Z55: =IF('合併財報(累計)'!$D57="","",'合併財報(累計)'!$D57) -> 7933023878 | AB55: =IF(IFRS說明!C18="","",IFRS說明!C18) ->  | AO55: =IFRS_BS!A55 -> 確定福利計畫再衡量數 | AP55: =IFRS_BS!B55 -> 0 | AQ55: =IFRS_BS!C55 -> 0 | AR55: =IFRS_BS!D55 -> 0 | AS55: =IFRS_BS!F55 -> 0 | AU55: =IF('IFRS_IS(Q)'!A54="","",'IFRS_IS(Q)'!A54) -> 稅後淨利率 | AV55: =IF('IFRS_IS(Q)'!B54="","",'IFRS_IS(Q)'!B54) -> 43.12 | AW55: =IF('IFRS_IS(Q)'!C54="","",'IFRS_IS(Q)'!C54) -> 42.98 | AX55: =IF('IFRS_IS(Q)'!D54="","",'IFRS_IS(Q)'!D54) -> 42.57 | AY55: =IF('IFRS_IS(Q)'!E54="","",'IFRS_IS(Q)'!E54) -> 45.64 | AZ55: =IF('IFRS_IS(Q)'!F54="","",'IFRS_IS(Q)'!F54) -> 48.31 | BA55: =IF('IFRS_IS(Q)'!G54="","",'IFRS_IS(Q)'!G54) -> 
A56: =IF(OR(十大股東!$H11="",十大股東!$H11="-"),"",十大股東!B11) -> 中信卓越50證 中信卓越50證 | D56: =IF(ISERROR(IF(OR(十大股東!$H11="",十大股東!$H11="-"),"", IF(LEFT(十大股東!C11,3)="大股東",LEFT(十大股東!C11,4)&MID(十大股東!C11,FIND("(",十大股東!C11)+1,7),十大股東!C11))),十大股東!C11,IF(OR(十大股東!$H11="",十大股東!$H11="-"),"", IF(LEFT(十大股東!C11,3)="大股東",LEFT(十大股東!C11,4)&MID(十大股東!C11,FIND("(",十大股東!C11)+1,7),十大股東!C11))) -> 大股東 | F56: =IF(OR(十大股東!$H11="",十大股東!$H11="-"),"",十大股東!D11) -> 233901 | G56: =IF(OR(十大股東!$H11="",十大股東!$H11="-"),"",十大股東!E11) -> 0.9 | H56: =IF(OR(十大股東!$H11="",十大股東!$H11="-"),"",十大股東!F11) -> 0 | I56: =IF(OR(十大股東!$H11="",十大股東!$H11="-"),"",十大股東!G11) -> 0 | J56: =IF(OR(十大股東!$H11="",十大股東!$H11="-"),"",十大股東!H11) -> 8 | AB56: =IF(IFRS說明!C20="","",IFRS說明!C20) ->  | AO56: =IFRS_BS!A56 -> 避險工具損益 | AP56: =IFRS_BS!B56 -> 1395875 | AQ56: =IFRS_BS!C56 -> 1310307 | AR56: =IFRS_BS!D56 -> 1305307 | AS56: =IFRS_BS!F56 -> 0 | AU56: =IF('IFRS_IS(Q)'!A55="","",'IFRS_IS(Q)'!A55) -> 營收成長率 | AV56: =IF('IFRS_IS(Q)'!B55="","",'IFRS_IS(Q)'!B55) -> 38.84 | AW56: =IF('IFRS_IS(Q)'!C55="","",'IFRS_IS(Q)'!C55) -> 41.61 | AX56: =IF('IFRS_IS(Q)'!D55="","",'IFRS_IS(Q)'!D55) -> 38.65 | AY56: =IF('IFRS_IS(Q)'!E55="","",'IFRS_IS(Q)'!E55) -> 30.31 | AZ56: =IF('IFRS_IS(Q)'!F55="","",'IFRS_IS(Q)'!F55) -> 20.45 | BA56: =IF('IFRS_IS(Q)'!G55="","",'IFRS_IS(Q)'!G55) -> 
A57: =IF(OR(十大股東!$H12="",十大股東!$H12="-"),"",十大股東!B12) -> 渣打iShare指 渣打iShare指 | D57: =IF(ISERROR(IF(OR(十大股東!$H12="",十大股東!$H12="-"),"", IF(LEFT(十大股東!C12,3)="大股東",LEFT(十大股東!C12,4)&MID(十大股東!C12,FIND("(",十大股東!C12)+1,7),十大股東!C12))),十大股東!C12,IF(OR(十大股東!$H12="",十大股東!$H12="-"),"", IF(LEFT(十大股東!C12,3)="大股東",LEFT(十大股東!C12,4)&MID(十大股東!C12,FIND("(",十大股東!C12)+1,7),十大股東!C12))) -> 大股東 | F57: =IF(OR(十大股東!$H12="",十大股東!$H12="-"),"",十大股東!D12) -> 217727 | G57: =IF(OR(十大股東!$H12="",十大股東!$H12="-"),"",十大股東!E12) -> 0.84 | H57: =IF(OR(十大股東!$H12="",十大股東!$H12="-"),"",十大股東!F12) -> 0 | I57: =IF(OR(十大股東!$H12="",十大股東!$H12="-"),"",十大股東!G12) -> 0 | J57: =IF(OR(十大股東!$H12="",十大股東!$H12="-"),"",十大股東!H12) -> 9 | AO57: =IFRS_BS!A57 -> 非控制權益 | AP57: =IFRS_BS!B57 -> 24349220 | AQ57: =IFRS_BS!C57 -> 35030698 | AR57: =IFRS_BS!D57 -> 37461877 | AS57: =IFRS_BS!F57 -> 0 | AU57: =IF('IFRS_IS(Q)'!A56="","",'IFRS_IS(Q)'!A56) -> 稅後淨利成長率 | AV57: =IF('IFRS_IS(Q)'!B56="","",'IFRS_IS(Q)'!B56) -> 57.14 | AW57: =IF('IFRS_IS(Q)'!C56="","",'IFRS_IS(Q)'!C56) -> 60.17 | AX57: =IF('IFRS_IS(Q)'!D56="","",'IFRS_IS(Q)'!D56) -> 60.5 | AY57: =IF('IFRS_IS(Q)'!E56="","",'IFRS_IS(Q)'!E56) -> 38.97 | AZ57: =IF('IFRS_IS(Q)'!F56="","",'IFRS_IS(Q)'!F56) -> 34.97 | BA57: =IF('IFRS_IS(Q)'!G56="","",'IFRS_IS(Q)'!G56) -> 
A58: =IF(OR(十大股東!$H13="",十大股東!$H13="-"),"",十大股東!B13) ->  | D58: =IF(ISERROR(IF(OR(十大股東!$H13="",十大股東!$H13="-"),"", IF(LEFT(十大股東!C13,3)="大股東",LEFT(十大股東!C13,4)&MID(十大股東!C13,FIND("(",十大股東!C13)+1,7),十大股東!C13))),十大股東!C13,IF(OR(十大股東!$H13="",十大股東!$H13="-"),"", IF(LEFT(十大股東!C13,3)="大股東",LEFT(十大股東!C13,4)&MID(十大股東!C13,FIND("(",十大股東!C13)+1,7),十大股東!C13))) ->  | F58: =IF(OR(十大股東!$H13="",十大股東!$H13="-"),"",十大股東!D13) ->  | G58: =IF(OR(十大股東!$H13="",十大股東!$H13="-"),"",十大股東!E13) ->  | H58: =IF(OR(十大股東!$H13="",十大股東!$H13="-"),"",十大股東!F13) ->  | I58: =IF(OR(十大股東!$H13="",十大股東!$H13="-"),"",十大股東!G13) ->  | J58: =IF(OR(十大股東!$H13="",十大股東!$H13="-"),"",十大股東!H13) ->  | AO58: =IFRS_BS!A58 -> 股東權益總額 | AP58: =IFRS_BS!B58 -> 3483262847 | AQ58: =IFRS_BS!C58 -> 4323575865 | AR58: =IFRS_BS!D58 -> 4601624457 | AS58: =IFRS_BS!F58 -> 0
A59: =IF(OR(十大股東!$H14="",十大股東!$H14="-"),"",十大股東!B14) ->  | D59: =IF(ISERROR(IF(OR(十大股東!$H14="",十大股東!$H14="-"),"", IF(LEFT(十大股東!C14,3)="大股東",LEFT(十大股東!C14,4)&MID(十大股東!C14,FIND("(",十大股東!C14)+1,7),十大股東!C14))),十大股東!C14,IF(OR(十大股東!$H14="",十大股東!$H14="-"),"", IF(LEFT(十大股東!C14,3)="大股東",LEFT(十大股東!C14,4)&MID(十大股東!C14,FIND("(",十大股東!C14)+1,7),十大股東!C14))) ->  | F59: =IF(OR(十大股東!$H14="",十大股東!$H14="-"),"",十大股東!D14) ->  | G59: =IF(OR(十大股東!$H14="",十大股東!$H14="-"),"",十大股東!E14) ->  | H59: =IF(OR(十大股東!$H14="",十大股東!$H14="-"),"",十大股東!F14) ->  | I59: =IF(OR(十大股東!$H14="",十大股東!$H14="-"),"",十大股東!G14) ->  | J59: =IF(OR(十大股東!$H14="",十大股東!$H14="-"),"",十大股東!H14) -> 
A60: =IF(OR(十大股東!$H15="",十大股東!$H15="-"),"",十大股東!B15) ->  | D60: =IF(ISERROR(IF(OR(十大股東!$H15="",十大股東!$H15="-"),"", IF(LEFT(十大股東!C15,3)="大股東",LEFT(十大股東!C15,4)&MID(十大股東!C15,FIND("(",十大股東!C15)+1,7),十大股東!C15))),十大股東!C15,IF(OR(十大股東!$H15="",十大股東!$H15="-"),"", IF(LEFT(十大股東!C15,3)="大股東",LEFT(十大股東!C15,4)&MID(十大股東!C15,FIND("(",十大股東!C15)+1,7),十大股東!C15))) ->  | F60: =IF(OR(十大股東!$H15="",十大股東!$H15="-"),"",十大股東!D15) ->  | G60: =IF(OR(十大股東!$H15="",十大股東!$H15="-"),"",十大股東!E15) ->  | H60: =IF(OR(十大股東!$H15="",十大股東!$H15="-"),"",十大股東!F15) ->  | I60: =IF(OR(十大股東!$H15="",十大股東!$H15="-"),"",十大股東!G15) ->  | J60: =IF(OR(十大股東!$H15="",十大股東!$H15="-"),"",十大股東!H15) -> 

Sheet 基本資料
A1: 2330 台積電
A2: 上市別 | B2: 發言人 | C2: 實收資本額(元) | D2: 上市日期 | E2: 上櫃日期 | F2: 興櫃日期 | G2: 電話 | H2: 公司地址 | I2: TSE新產業名 | J2: 主要產品比重 | K2: 員工人數
A3: TSE | B3: 黃仁昭(資深副總經理暨財務長) | C3: 259325245210 | D3: 1994-09-05 | G3: 03-5636688 | H3: 新竹科學工業園區新竹市力行六路8 號 | I3: M2324 半導體業 | J3: 2025/12:晶圓-5奈米(30.98%),晶圓-3奈米(20.85%),晶圓-7奈米(12.06%),晶圓-28奈米(5.91%),晶圓-16奈米(5.66%),晶圓-65奈米(3.16%) | K3: 70037

Sheet 法人動向
A1: 2330 台積電
A2: 年月日 | B2: 外資買賣超日數 | C2: 投信買賣超日數 | D2: 自營買賣超日數 | E2: 合計買賣超(張)
A3: 2026-05-06 | B3: -2 | C3: 9 | D3: -2 | E3: -2598
A4: 2026-05-05 | B4: -1 | C4: 8 | D4: -1 | E4: -7280
A5: 2026-05-04 | B5: 1 | C5: 7 | D5: 2 | E5: 10299
A6: 2026-04-30 | B6: -4 | C6: 6 | D6: 1 | E6: -20472
A7: 2026-04-29 | B7: -3 | C7: 5 | D7: -1 | E7: -15139
A8: 2026-04-28 | B8: -2 | C8: 4 | D8: 3 | E8: -20752
A9: 2026-04-27 | B9: -1 | C9: 3 | D9: 2 | E9: -13408
A10: 2026-04-24 | B10: 2 | C10: 2 | D10: 1 | E10: 9729
A11: 2026-04-23 | B11: 1 | C11: 1 | D11: -5 | E11: 6569
A12: 2026-04-22 | B12: -1 | C12: -1 | D12: -4 | E12: -3200
A13: 2026-04-21 | B13: 1 | C13: 2 | D13: -3 | E13: 2829
A14: 2026-04-20 | B14: -3 | C14: 1 | D14: -2 | E14: -2442
A15: 2026-04-17 | B15: -2 | C15: -1 | D15: -1 | E15: -11838
A16: 2026-04-16 | B16: -1 | C16: 1 | D16: 5 | E16: -1000
A17: 2026-04-15 | B17: 2 | C17: -1 | D17: 4 | E17: 4931
A18: 2026-04-14 | B18: 1 | C18: 1 | D18: 3 | E18: 20223
A19: 2026-04-13 | B19: -1 | C19: -3 | D19: 2 | E19: -6045
A20: 2026-04-10 | B20: 4 | C20: -2 | D20: 1 | E20: 8359
A21: 2026-04-09 | B21: 3 | C21: -1 | D21: -1 | E21: 121
A22: 2026-04-08 | B22: 2 | C22: 2 | D22: 5 | E22: 20556
A23: 2026-04-07 | B23: 1 | C23: 1 | D23: 4 | E23: 6393
A24: 2026-04-02 | B24: -1 | C24: -1 | D24: 3 | E24: -9442
A25: 2026-04-01 | B25: 1 | C25: 8 | D25: 2 | E25: 9277

Sheet 股息股利
A1: 2330 台積電
A2: 股東會年度 | B2: 股東會日期 | C2: 現金股利(元) | D2: 無償配股合計(元) | E2: 除權日(配股) | F2: 除息日
A3: 2025-12-31 | C3: 22.00006445 | D3: 0 | F3: 2026-06-11
A4: 2024-12-31 | C4: 16.9998161 | D4: 0 | F4: 2025-06-12
A5: 2023-12-29 | C5: 12.99957938 | D5: 0 | F5: 2024-06-13
A6: 2022-12-30 | C6: 10.99964144 | D6: 0 | F6: 2023-06-15
A7: 2021-12-30 | C7: 11 | D7: 0 | F7: 2022-06-16

Sheet 圖-籌碼分佈
A1: 2330 台積電 | E1: 籌碼分布圖
A2: Data Field | B2: 2026-05-06 | C2: 2026-05-05 | E2: 持股 | F2: 比例
A3: 外資總持股率％ | B3: 70.65 | C3: 70.67 | E3: 外資 | F3: =IF(B3="",C3,B3) -> 70.65
A4: 投信持股率％ | B4: 3.13 | C4: 3.13 | E4: 投信 | F4: =IF(B4="",C4,B4) -> 3.13
A5: 自營持股率％ | B5: 0.14 | C5: 0.15 | E5: 自營 | F5: =IF(B5="",C5,B5) -> 0.14
A6: 董監持股％ | B6: 6.52 | C6: 6.52 | E6: 董監 | F6: =IF(B6="",C6,B6) -> 6.52
E7: 其他 | F7: =100-SUM(F3:F6) -> 19.56

Sheet 累積報酬率
A1: 2330 台積電 | C1: Y9999 加權指數 | E1: =A1 -> 2330 台積電 | F1: =C1 -> Y9999 加權指數 | G1: =A1 -> 2330 台積電 | H1: =C1 -> Y9999 加權指數
A2: 年月日 | B2: 日報酬率 % | C2: 年月日 | D2: 日報酬率 % | E2: 計算過程 | F2: 計算過程 | G2: 累計報酬率 | H2: 累計報酬率
A3: 2025-04-25 | B3: 2.7778 | C3: 2025-04-25 | D3: 2.0223 | E3: =1+B3/100 -> 1.027778 | F3: =1+D3/100 -> 1.020223 | G3: 0 | H3: 0
A4: 2025-04-28 | B4: 1.0135 | C4: 2025-04-28 | D4: 0.8136 | E4: =1+B4/100 -> 1.010135 | F4: =1+D4/100 -> 1.008136 | G4: =PRODUCT($E$4:E4)-1 -> 0.010135 | H4: =PRODUCT($F$4:F4)-1 -> 0.008136
A5: 2025-04-29 | B5: 0.5574 | C5: 2025-04-29 | D5: 0.9894 | E5: 1.005574 | F5: 1.009894 | G5: =PRODUCT($E$4:E5)-1 -> 0.01576549249 | H5: =PRODUCT($F$4:F5)-1 -> 0.01811049758
A6: 2025-04-30 | B6: 0.6652 | C6: 2025-04-30 | D6: 0.0119 | E6: 1.006652 | F6: 1.000119 | G6: =PRODUCT($E$4:E6)-1 -> 0.02252236455 | H6: =PRODUCT($F$4:F6)-1 -> 0.01823165273
A7: 2025-05-02 | B7: 4.6256 | C7: 2025-05-02 | D7: 2.731 | E7: 1.046256 | F7: 1.02731 | G7: =PRODUCT($E$4:E7)-1 -> 0.06982015904 | H7: =PRODUCT($F$4:F7)-1 -> 0.04603955917
A8: 2025-05-05 | B8: -1.2632 | C8: 2025-05-05 | D8: -1.225 | E8: 0.987368 | F8: 0.98775 | G8: =PRODUCT($E$4:E8)-1 -> 0.05630619079 | H8: =PRODUCT($F$4:F8)-1 -> 0.03322557457
A9: 2025-05-06 | B9: -1.919 | C9: 2025-05-06 | D9: -0.0507 | E9: 0.98081 | F9: 0.999493 | G9: =PRODUCT($E$4:E9)-1 -> 0.03603567499 | H9: =PRODUCT($F$4:F9)-1 -> 0.0327017292
A10: 2025-05-07 | B10: 0.8696 | C10: 2025-05-07 | D10: 0.1165 | E10: 1.008696 | F10: 1.001165 | G10: =PRODUCT($E$4:E10)-1 -> 0.04504504122 | H10: =PRODUCT($F$4:F10)-1 -> 0.03390482672
A11: 2025-05-08 | B11: -1.0776 | C11: 2025-05-08 | D11: -0.015 | E11: 0.989224 | F11: 0.99985 | G11: =PRODUCT($E$4:E11)-1 -> 0.03378363586 | H11: =PRODUCT($F$4:F11)-1 -> 0.03374974099
A12: 2025-05-09 | B12: 3.3769 | C12: 2025-05-09 | D12: 1.809 | E12: 1.033769 | F12: 1.01809 | G12: =PRODUCT($E$4:E12)-1 -> 0.06869347545 | H12: =PRODUCT($F$4:F12)-1 -> 0.05245027381
A13: 2025-05-12 | B13: 0.843 | C13: 2025-05-12 | D13: 1.0256 | E13: 1.00843 | F13: 1.010256 | G13: =PRODUCT($E$4:E13)-1 -> 0.07770256145 | H13: =PRODUCT($F$4:F13)-1 -> 0.06324420382
A14: 2025-05-13 | B14: 1.2539 | C14: 2025-05-13 | D14: 0.9494 | E14: 1.012539 | F14: 1.009494 | G14: =PRODUCT($E$4:E14)-1 -> 0.09121587387 | H14: =PRODUCT($F$4:F14)-1 -> 0.07333864429
A15: 2025-05-14 | B15: 3.096 | C15: 2025-05-14 | D15: 2.1225 | E15: 1.03096 | F15: 1.021225 | G15: =PRODUCT($E$4:E15)-1 -> 0.1249999173 | H15: =PRODUCT($F$4:F15)-1 -> 0.09612025701
A16: 2025-05-15 | B16: -0.6006 | C16: 2025-05-15 | D16: -0.2416 | E16: 0.993994 | F16: 0.997584 | G16: =PRODUCT($E$4:E16)-1 -> 0.1182431678 | H16: =PRODUCT($F$4:F16)-1 -> 0.09347203047
A17: 2025-05-16 | B17: 0.5035 | C17: 2025-05-16 | D17: 0.522 | E17: 1.005035 | F17: 1.00522 | G17: =PRODUCT($E$4:E17)-1 -> 0.1238735222 | H17: =PRODUCT($F$4:F17)-1 -> 0.09917995447
A18: 2025-05-19 | B18: -1.4028 | C18: 2025-05-19 | D18: -1.4643 | E18: 0.985972 | F18: 0.985357 | G18: =PRODUCT($E$4:E18)-1 -> 0.1081078244 | H18: =PRODUCT($F$4:F18)-1 -> 0.0830846624
A19: 2025-05-20 | B19: -0.6098 | C19: 2025-05-20 | D19: 0.0102 | E19: 0.993902 | F19: 1.000102 | G19: =PRODUCT($E$4:E19)-1 -> 0.1013505829 | H19: =PRODUCT($F$4:F19)-1 -> 0.08319513703
A20: 2025-05-21 | B20: 1.227 | C20: 2025-05-21 | D20: 1.2909 | E20: 1.01227 | F20: 1.012909 | G20: =PRODUCT($E$4:E20)-1 -> 0.1148641545 | H20: =PRODUCT($F$4:F20)-1 -> 0.09717810306
A21: 2025-05-22 | B21: -0.8081 | C21: 2025-05-22 | D21: -0.6098 | E21: 0.991919 | F21: 0.993902 | G21: =PRODUCT($E$4:E21)-1 -> 0.1058549373 | H21: =PRODUCT($F$4:F21)-1 -> 0.09048751098
A22: 2025-05-23 | B22: 0.2037 | C22: 2025-05-23 | D22: -0.0864 | E22: 1.002037 | F22: 0.999136 | G22: =PRODUCT($E$4:E22)-1 -> 0.1081075638 | H22: =PRODUCT($F$4:F22)-1 -> 0.08954532977
A23: 2025-05-26 | B23: -0.813 | C23: 2025-05-26 | D23: -0.5342 | E23: 0.99187 | F23: 0.994658 | G23: =PRODUCT($E$4:E23)-1 -> 0.09909864932 | H23: =PRODUCT($F$4:F23)-1 -> 0.08372497862
A24: 2025-05-27 | B24: -1.127 | C24: 2025-05-27 | D24: -0.9288 | E24: 0.98873 | F24: 0.990712 | G24: =PRODUCT($E$4:E24)-1 -> 0.08671180755 | H24: =PRODUCT($F$4:F24)-1 -> 0.07365934102
A25: 2025-05-28 | B25: 0.2073 | C25: 2025-05-28 | D25: 0.0993 | E25: 1.002073 | F25: 1.000993 | G25: =PRODUCT($E$4:E25)-1 -> 0.08896456112 | H25: =PRODUCT($F$4:F25)-1 -> 0.07472548475
A26: 2025-05-29 | B26: 0 | C26: 2025-05-29 | D26: -0.0488 | E26: 1 | F26: 0.999512 | G26: =PRODUCT($E$4:E26)-1 -> 0.08896456112 | H26: =PRODUCT($F$4:F26)-1 -> 0.07420101871
A27: 2025-06-02 | B27: -2.1717 | C27: 2025-06-02 | D27: -1.6142 | E27: 0.978283 | F27: 0.983858 | G27: =PRODUCT($E$4:E27)-1 -> 0.06531551775 | H27: =PRODUCT($F$4:F27)-1 -> 0.05686126587
A28: 2025-06-03 | B28: 0.4228 | C28: 2025-06-03 | D28: 0.5914 | E28: 1.004228 | F28: 1.005914 | G28: =PRODUCT($E$4:E28)-1 -> 0.06981967176 | H28: =PRODUCT($F$4:F28)-1 -> 0.06311154339
A29: 2025-06-04 | B29: 4.2105 | C29: 2025-06-04 | D29: 2.3248 | E29: 1.042105 | F29: 1.023248 | G29: =PRODUCT($E$4:E29)-1 -> 0.114864429 | H29: =PRODUCT($F$4:F29)-1 -> 0.08782676055
A30: 2025-06-05 | B30: 0.8081 | C30: 2025-06-05 | D30: 0.2606 | E30: 1.008081 | F30: 1.002606 | G30: =PRODUCT($E$4:E30)-1 -> 0.1238736485 | H30: =PRODUCT($F$4:F30)-1 -> 0.09066163709
A31: 2025-06-06 | B31: -0.3006 | C31: 2025-06-06 | D31: -0.0635 | E31: 0.996994 | F31: 0.999365 | G31: =PRODUCT($E$4:E31)-1 -> 0.1204952843 | H31: =PRODUCT($F$4:F31)-1 -> 0.08996906695
A32: 2025-06-09 | B32: 1.005 | C32: 2025-06-09 | D32: 0.5985 | E32: 1.01005 | F32: 1.005985 | G32: =PRODUCT($E$4:E32)-1 -> 0.1317562619 | H32: =PRODUCT($F$4:F32)-1 -> 0.09649253182
A33: 2025-06-10 | B33: 3.9801 | C33: 2025-06-10 | D33: 2.0736 | E33: 1.039801 | F33: 1.020736 | G33: =PRODUCT($E$4:E33)-1 -> 0.1768012929 | H33: =PRODUCT($F$4:F33)-1 -> 0.119229401
A34: 2025-06-11 | B34: 1.9139 | C34: 2025-06-11 | D34: 1.0249 | E34: 1.019139 | F34: 1.010249 | G34: =PRODUCT($E$4:E34)-1 -> 0.1993240928 | H34: =PRODUCT($F$4:F34)-1 -> 0.1307003831
A35: 2025-06-12 | B35: -1.4554 | C35: 2025-06-12 | D35: -0.8112 | E35: 0.985446 | F35: 0.991888 | G35: =PRODUCT($E$4:E35)-1 -> 0.18186913 | H35: =PRODUCT($F$4:F35)-1 -> 0.1215281416
A36: 2025-06-13 | B36: -1.4354 | C36: 2025-06-13 | D36: -0.9641 | E36: 0.985646 | F36: 0.990359 | G36: =PRODUCT($E$4:E36)-1 -> 0.1649045805 | H36: =PRODUCT($F$4:F36)-1 -> 0.1107154888
A37: 2025-06-16 | B37: -0.4854 | C37: 2025-06-16 | D37: -0.1044 | E37: 0.995146 | F37: 0.998956 | G37: =PRODUCT($E$4:E37)-1 -> 0.1592501337 | H37: =PRODUCT($F$4:F37)-1 -> 0.1095559018
A38: 2025-06-17 | B38: 1.9512 | C38: 2025-06-17 | D38: 0.7333 | E38: 1.019512 | F38: 1.007333 | G38: =PRODUCT($E$4:E38)-1 -> 0.1818694223 | H38: =PRODUCT($F$4:F38)-1 -> 0.1176922752
A39: 2025-06-18 | B39: 0.9569 | C39: 2025-06-18 | D39: 0.6534 | E39: 1.009569 | F39: 1.006534 | G39: =PRODUCT($E$4:E39)-1 -> 0.1931787308 | H39: =PRODUCT($F$4:F39)-1 -> 0.1249952766
A40: 2025-06-19 | B40: -1.8957 | C40: 2025-06-19 | D40: -1.58 | E40: 0.981043 | F40: 0.9842 | G40: =PRODUCT($E$4:E40)-1 -> 0.1705596416 | H40: =PRODUCT($F$4:F40)-1 -> 0.1072203512
A41: 2025-06-20 | B41: 1.9324 | C41: 2025-06-20 | D41: 0.192 | E41: 1.019324 | F41: 1.00192 | G41: =PRODUCT($E$4:E41)-1 -> 0.1931795361 | H41: =PRODUCT($F$4:F41)-1 -> 0.1093462143
A42: 2025-06-23 | B42: -3.3175 | C42: 2025-06-23 | D42: -1.423 | E42: 0.966825 | F42: 0.98577 | G42: =PRODUCT($E$4:E42)-1 -> 0.153595805 | H42: =PRODUCT($F$4:F42)-1 -> 0.09356021763
A43: 2025-06-24 | B43: 2.9412 | C43: 2025-06-24 | D43: 2.1017 | E43: 1.029412 | F43: 1.021017 | G43: =PRODUCT($E$4:E43)-1 -> 0.1875253648 | H43: =PRODUCT($F$4:F43)-1 -> 0.1165435727
A44: 2025-06-25 | B44: 1.9048 | C44: 2025-06-25 | D44: 1.09 | E44: 1.019048 | F44: 1.0109 | G44: =PRODUCT($E$4:E44)-1 -> 0.2101453479 | H44: =PRODUCT($F$4:F44)-1 -> 0.1287138977
A45: 2025-06-26 | B45: 0.4673 | C45: 2025-06-26 | D45: 0.2752 | E45: 1.004673 | F45: 1.002752 | G45: =PRODUCT($E$4:E45)-1 -> 0.2158003571 | H45: =PRODUCT($F$4:F45)-1 -> 0.1318201183
A46: 2025-06-27 | B46: 0.4651 | C46: 2025-06-27 | D46: 0.3901 | E46: 1.004651 | F46: 1.003901 | G46: =PRODUCT($E$4:E46)-1 -> 0.2214550446 | H46: =PRODUCT($F$4:F46)-1 -> 0.1362353486
A47: 2025-06-30 | B47: -1.8519 | C47: 2025-06-30 | D47: -1.4352 | E47: 0.981481 | F47: 0.985648 | G47: =PRODUCT($E$4:E47)-1 -> 0.1988349186 | H47: =PRODUCT($F$4:F47)-1 -> 0.1199280989
A48: 2025-07-01 | B48: 2.3585 | C48: 2025-07-01 | D48: 1.3376 | E48: 1.023585 | F48: 1.013376 | G48: =PRODUCT($E$4:E48)-1 -> 0.2271094402 | H48: =PRODUCT($F$4:F48)-1 -> 0.1349082571
A49: 2025-07-02 | B49: 0 | C49: 2025-07-02 | D49: 0.1065 | E49: 1 | F49: 1.001065 | G49: =PRODUCT($E$4:E49)-1 -> 0.2271094402 | H49: =PRODUCT($F$4:F49)-1 -> 0.1361169344
A50: 2025-07-03 | B50: 0.4608 | C50: 2025-07-03 | D50: 0.599 | E50: 1.004608 | F50: 1.00599 | G50: =PRODUCT($E$4:E50)-1 -> 0.2327639605 | H50: =PRODUCT($F$4:F50)-1 -> 0.1429222749
A51: 2025-07-04 | B51: -0.4587 | C51: 2025-07-04 | D51: -0.7285 | E51: 0.995413 | F51: 0.992715 | G51: =PRODUCT($E$4:E51)-1 -> 0.2271092722 | H51: =PRODUCT($F$4:F51)-1 -> 0.1345960861
A52: 2025-07-07 | B52: -0.4608 | C52: 2025-07-07 | D52: -0.5268 | E52: 0.995392 | F52: 0.994732 | G52: =PRODUCT($E$4:E52)-1 -> 0.2214547527 | H52: =PRODUCT($F$4:F52)-1 -> 0.1286190339
A53: 2025-07-08 | B53: 0 | C53: 2025-07-08 | D53: -0.2963 | E53: 1 | F53: 0.997037 | G53: =PRODUCT($E$4:E53)-1 -> 0.2214547527 | H53: =PRODUCT($F$4:F53)-1 -> 0.1252749357
A54: 2025-07-09 | B54: 0.9259 | C54: 2025-07-09 | D54: 0.7367 | E54: 1.009259 | F54: 1.007367 | G54: =PRODUCT($E$4:E54)-1 -> 0.2327642022 | H54: =PRODUCT($F$4:F54)-1 -> 0.1335648362
A55: 2025-07-10 | B55: 0.9174 | C55: 2025-07-10 | D55: 0.738 | E55: 1.009174 | F55: 1.00738 | G55: =PRODUCT($E$4:E55)-1 -> 0.244073581 | H55: =PRODUCT($F$4:F55)-1 -> 0.1419305446
A56: 2025-07-11 | B56: 0 | C56: 2025-07-11 | D56: 0.2546 | E56: 1 | F56: 1.002546 | G56: =PRODUCT($E$4:E56)-1 -> 0.244073581 | H56: =PRODUCT($F$4:F56)-1 -> 0.1448378998
A57: 2025-07-14 | B57: -0.4545 | C57: 2025-07-14 | D57: -0.598 | E57: 0.995455 | F57: 0.99402 | G57: =PRODUCT($E$4:E57)-1 -> 0.2384192666 | H57: =PRODUCT($F$4:F57)-1 -> 0.1379917692
A58: 2025-07-15 | B58: 1.3699 | C58: 2025-07-15 | D58: 0.9771 | E58: 1.013699 | F58: 1.009771 | G58: =PRODUCT($E$4:E58)-1 -> 0.2553843721 | H58: =PRODUCT($F$4:F58)-1 -> 0.1491110867
A59: 2025-07-16 | B59: 1.8018 | C59: 2025-07-16 | D59: 0.9063 | E59: 1.018018 | F59: 1.009063 | G59: =PRODUCT($E$4:E59)-1 -> 0.2780038878 | H59: =PRODUCT($F$4:F59)-1 -> 0.1595254805
A60: 2025-07-17 | B60: 0 | C60: 2025-07-17 | D60: 0.3054 | E60: 1 | F60: 1.003054 | G60: =PRODUCT($E$4:E60)-1 -> 0.2780038878 | H60: =PRODUCT($F$4:F60)-1 -> 0.1630666713
A61: 2025-07-18 | B61: 2.2124 | C61: 2025-07-18 | D61: 1.1675 | E61: 1.022124 | F61: 1.011675 | G61: =PRODUCT($E$4:E61)-1 -> 0.3062784458 | H61: =PRODUCT($F$4:F61)-1 -> 0.1766454747
A62: 2025-07-21 | B62: -0.4329 | C62: 2025-07-21 | D62: -0.1821 | E62: 0.995671 | F62: 0.998179 | G62: =PRODUCT($E$4:E62)-1 -> 0.3006235664 | H62: =PRODUCT($F$4:F62)-1 -> 0.1745028033
A63: 2025-07-22 | B63: -1.7391 | C63: 2025-07-22 | D63: -1.5108 | E63: 0.982609 | F63: 0.984892 | G63: =PRODUCT($E$4:E63)-1 -> 0.2780044219 | H63: =PRODUCT($F$4:F63)-1 -> 0.156758415
A64: 2025-07-23 | B64: 1.3274 | C64: 2025-07-23 | D64: 1.4388 | E64: 1.013274 | F64: 1.014388 | G64: =PRODUCT($E$4:E64)-1 -> 0.2949686526 | H64: =PRODUCT($F$4:F64)-1 -> 0.173401855
A65: 2025-07-24 | B65: 0 | C65: 2025-07-24 | D65: 0.2361 | E65: 1 | F65: 1.002361 | G65: =PRODUCT($E$4:E65)-1 -> 0.2949686526 | H65: =PRODUCT($F$4:F65)-1 -> 0.1761722568
A66: 2025-07-25 | B66: 0 | C66: 2025-07-25 | D66: -0.04 | E66: 1 | F66: 0.9996 | G66: =PRODUCT($E$4:E66)-1 -> 0.2949686526 | H66: =PRODUCT($F$4:F66)-1 -> 0.1757017879
A67: 2025-07-28 | B67: 0 | C67: 2025-07-28 | D67: 0.208 | E67: 1 | F67: 1.00208 | G67: =PRODUCT($E$4:E67)-1 -> 0.2949686526 | H67: =PRODUCT($F$4:F67)-1 -> 0.1781472476
A68: 2025-07-29 | B68: -0.8734 | C68: 2025-07-29 | D68: -0.9032 | E68: =1+B68/100 -> 0.991266 | F68: =1+D68/100 -> 0.990968 | G68: =PRODUCT($E$4:E68)-1 -> 0.2836583964 | H68: =PRODUCT($F$4:F68)-1 -> 0.1675062217
A69: 2025-07-30 | B69: 1.7621 | C69: 2025-07-30 | D69: 1.1215 | E69: 1.017621 | F69: 1.011215 | G69: =PRODUCT($E$4:E69)-1 -> 0.306277741 | H69: =PRODUCT($F$4:F69)-1 -> 0.180599804
A70: 2025-07-31 | B70: 0.4329 | C70: 2025-07-31 | D70: 0.3444 | E70: 1.004329 | F70: 1.003444 | G70: =PRODUCT($E$4:E70)-1 -> 0.3119326174 | H70: =PRODUCT($F$4:F70)-1 -> 0.1846657897
A71: 2025-08-01 | B71: -1.7241 | C71: 2025-08-01 | D71: -0.4593 | E71: 0.982759 | F71: 0.995407 | G71: =PRODUCT($E$4:E71)-1 -> 0.2893135871 | H71: =PRODUCT($F$4:F71)-1 -> 0.1792246197
A72: 2025-08-04 | B72: -0.4386 | C72: 2025-08-04 | D72: -0.2366 | E72: 0.995614 | F72: 0.997634 | G72: =PRODUCT($E$4:E72)-1 -> 0.2836586577 | H72: =PRODUCT($F$4:F72)-1 -> 0.1764345743
A73: 2025-08-05 | B73: 1.3216 | C73: 2025-08-05 | D73: 1.2047 | E73: 1.013216 | F73: 1.012047 | G73: =PRODUCT($E$4:E73)-1 -> 0.3006234905 | H73: =PRODUCT($F$4:F73)-1 -> 0.1906070816
A74: 2025-08-06 | B74: -2.1739 | C74: 2025-08-06 | D74: -0.9012 | E74: 0.978261 | F74: 0.990988 | G74: =PRODUCT($E$4:E74)-1 -> 0.2723492365 | H74: =PRODUCT($F$4:F74)-1 -> 0.1798773306
A75: 2025-08-07 | B75: 4.8889 | C75: 2025-08-07 | D75: 2.373 | E75: 1.048889 | F75: 1.02373 | G75: =PRODUCT($E$4:E75)-1 -> 0.3345531183 | H75: =PRODUCT($F$4:F75)-1 -> 0.2078758196
A76: 2025-08-08 | B76: -0.4237 | C76: 2025-08-08 | D76: 0.0729 | E76: 0.995763 | F76: 1.000729 | G76: =PRODUCT($E$4:E76)-1 -> 0.3288986167 | H76: =PRODUCT($F$4:F76)-1 -> 0.2087563611
A77: 2025-08-11 | B77: 0.4255 | C77: 2025-08-11 | D77: 0.4756 | E77: 1.004255 | F77: 1.004756 | G77: =PRODUCT($E$4:E77)-1 -> 0.3345530803 | H77: =PRODUCT($F$4:F77)-1 -> 0.2145052064
A78: 2025-08-12 | B78: 0 | C78: 2025-08-12 | D78: 0.0947 | E78: 1 | F78: 1.000947 | G78: =PRODUCT($E$4:E78)-1 -> 0.3345530803 | H78: =PRODUCT($F$4:F78)-1 -> 0.2156553428
A79: 2025-08-13 | B79: 1.6949 | C79: 2025-08-13 | D79: 0.8761 | E79: 1.016949 | F79: 1.008761 | G79: =PRODUCT($E$4:E79)-1 -> 0.3571724205 | H79: =PRODUCT($F$4:F79)-1 -> 0.2263056992
A80: 2025-08-14 | B80: -2.0833 | C80: 2025-08-14 | D80: -0.5413 | E80: 0.979167 | F80: 0.994587 | G80: =PRODUCT($E$4:E80)-1 -> 0.3288984475 | H80: =PRODUCT($F$4:F80)-1 -> 0.2196677065
A81: 2025-08-15 | B81: 0.4255 | C81: 2025-08-15 | D81: 0.3976 | E81: 1.004255 | F81: 1.003976 | G81: =PRODUCT($E$4:E81)-1 -> 0.3345529104 | H81: =PRODUCT($F$4:F81)-1 -> 0.2245171053
A82: 2025-08-18 | B82: 0 | C82: 2025-08-18 | D82: 0.6084 | E82: 1 | F82: 1.006084 | G82: =PRODUCT($E$4:E82)-1 -> 0.3345529104 | H82: =PRODUCT($F$4:F82)-1 -> 0.2319670674
A83: 2025-08-19 | B83: 0.4237 | C83: 2025-08-19 | D83: -0.527 | E83: 1.004237 | F83: 0.99473 | G83: =PRODUCT($E$4:E83)-1 -> 0.340207411 | H83: =PRODUCT($F$4:F83)-1 -> 0.2254746009
A84: 2025-08-20 | B84: -4.2194 | C84: 2025-08-20 | D84: -2.9895 | E84: 0.957806 | F84: 0.970105 | G84: =PRODUCT($E$4:E84)-1 -> 0.2836586995 | H84: =PRODUCT($F$4:F84)-1 -> 0.1888390377
A85: 2025-08-21 | B85: 1.3216 | C85: 2025-08-21 | D85: 1.4251 | E85: 1.013216 | F85: 1.014251 | G85: =PRODUCT($E$4:E85)-1 -> 0.3006235329 | H85: =PRODUCT($F$4:F85)-1 -> 0.2057811828
A86: 2025-08-22 | B86: -1.3043 | C86: 2025-08-22 | D86: -0.8249 | E86: 0.986957 | F86: 0.991751 | G86: =PRODUCT($E$4:E86)-1 -> 0.2836595002 | H86: =PRODUCT($F$4:F86)-1 -> 0.1958346939
A87: 2025-08-25 | B87: 3.0837 | C87: 2025-08-25 | D87: 2.1583 | E87: 1.030837 | F87: 1.021583 | G87: =PRODUCT($E$4:E87)-1 -> 0.3232437082 | H87: =PRODUCT($F$4:F87)-1 -> 0.2216443941
A88: 2025-08-26 | B88: 0.4274 | C88: 2025-08-26 | D88: 0.1142 | E88: 1.004274 | F88: 1.001142 | G88: =PRODUCT($E$4:E88)-1 -> 0.3288992518 | H88: =PRODUCT($F$4:F88)-1 -> 0.223039512
A89: 2025-08-27 | B89: 1.2766 | C89: 2025-08-27 | D89: 0.8838 | E89: 1.012766 | F89: 1.008838 | G89: =PRODUCT($E$4:E89)-1 -> 0.3458639796 | H89: =PRODUCT($F$4:F89)-1 -> 0.2338487352
A90: 2025-08-28 | B90: -2.521 | C90: 2025-08-28 | D90: -1.156 | E90: 0.97479 | F90: 0.98844 | G90: =PRODUCT($E$4:E90)-1 -> 0.3119347487 | H90: =PRODUCT($F$4:F90)-1 -> 0.2195854438
A91: 2025-08-29 | B91: 0 | C91: 2025-08-29 | D91: -0.0138 | E91: 1 | F91: 0.999862 | G91: =PRODUCT($E$4:E91)-1 -> 0.3119347487 | H91: =PRODUCT($F$4:F91)-1 -> 0.219417141
A92: 2025-09-01 | B92: 0.431 | C92: 2025-09-01 | D92: -0.6659 | E92: 1.00431 | F92: 0.993341 | G92: =PRODUCT($E$4:E92)-1 -> 0.3175891875 | H92: =PRODUCT($F$4:F92)-1 -> 0.2112970423
A93: 2025-09-02 | B93: -0.4292 | C93: 2025-09-02 | D93: -0.2283 | E93: 0.995708 | F93: 0.997717 | G93: =PRODUCT($E$4:E93)-1 -> 0.3119340947 | H93: =PRODUCT($F$4:F93)-1 -> 0.2085316511
A94: 2025-09-03 | B94: 0 | C94: 2025-09-03 | D94: 0.3478 | E94: 1 | F94: 1.003478 | G94: =PRODUCT($E$4:E94)-1 -> 0.3119340947 | H94: =PRODUCT($F$4:F94)-1 -> 0.2127349242
A95: 2025-09-04 | B95: 0 | C95: 2025-09-04 | D95: 0.3301 | E95: 1 | F95: 1.003301 | G95: =PRODUCT($E$4:E95)-1 -> 0.3119340947 | H95: =PRODUCT($F$4:F95)-1 -> 0.2167381622
A96: 2025-09-05 | B96: 1.7241 | C96: 2025-09-05 | D96: 1.3016 | E96: 1.017241 | F96: 1.013016 | G96: =PRODUCT($E$4:E96)-1 -> 0.3345531504 | H96: =PRODUCT($F$4:F96)-1 -> 0.2325752261
A97: 2025-09-08 | B97: 0 | C97: 2025-09-08 | D97: 0.2156 | E97: 1 | F97: 1.002156 | G97: =PRODUCT($E$4:E97)-1 -> 0.3345531504 | H97: =PRODUCT($F$4:F97)-1 -> 0.2352326583
A98: 2025-09-09 | B98: 1.6949 | C98: 2025-09-09 | D98: 1.2539 | E98: 1.016949 | F98: 1.012539 | G98: =PRODUCT($E$4:E98)-1 -> 0.3571724918 | H98: =PRODUCT($F$4:F98)-1 -> 0.2507212406
A99: 2025-09-10 | B99: 2.0833 | C99: 2025-09-10 | D99: 1.3575 | E99: 1.020833 | F99: 1.013575 | G99: =PRODUCT($E$4:E99)-1 -> 0.3854464663 | H99: =PRODUCT($F$4:F99)-1 -> 0.2676997814
A100: 2025-09-11 | B100: 1.2245 | C100: 2025-09-11 | D100: 0.0918 | E100: 1.012245 | F100: 1.000918 | G100: =PRODUCT($E$4:E100)-1 -> 0.4024112583 | H100: =PRODUCT($F$4:F100)-1 -> 0.2688635298
A101: 2025-09-12 | B101: 1.6129 | C101: 2025-09-12 | D101: 1.0269 | E101: 1.016129 | F101: 1.010269 | G101: =PRODUCT($E$4:E101)-1 -> 0.4250307494 | H101: =PRODUCT($F$4:F101)-1 -> 0.2818934894
A102: 2025-09-15 | B102: -0.3968 | C102: 2025-09-15 | D102: -0.4612 | E102: 0.996032 | F102: 0.995388 | G102: =PRODUCT($E$4:E102)-1 -> 0.4193762274 | H102: =PRODUCT($F$4:F102)-1 -> 0.2759813966
A103: 2025-09-16 | B103: 2.3904 | C103: 2025-09-16 | D103: 1.0746 | E103: 1.023904 | F103: 1.010746 | G103: =PRODUCT($E$4:E103)-1 -> 0.4533049968 | H103: =PRODUCT($F$4:F103)-1 -> 0.2896930927
A104: 2025-09-17 | B104: -1.1719 | C104: 2025-09-17 | D104: -0.7468 | E104: 0.988281 | F104: 0.992532 | G104: =PRODUCT($E$4:E104)-1 -> 0.4362737155 | H104: =PRODUCT($F$4:F104)-1 -> 0.2800616647
A105: 2025-09-18 | B105: 1.581 | C105: 2025-09-18 | D105: 1.3016 | E105: 1.01581 | F105: 1.013016 | G105: =PRODUCT($E$4:E105)-1 -> 0.458981203 | H105: =PRODUCT($F$4:F105)-1 -> 0.2967229473
A106: 2025-09-19 | B106: -1.5564 | C106: 2025-09-19 | D106: -0.7412 | E106: 0.984436 | F106: 0.992588 | G106: =PRODUCT($E$4:E106)-1 -> 0.4362736195 | H106: =PRODUCT($F$4:F106)-1 -> 0.2871116369
A107: 2025-09-22 | B107: 2.3715 | C107: 2025-09-22 | D107: 1.1816 | E107: 1.023715 | F107: 1.011816 | G107: =PRODUCT($E$4:E107)-1 -> 0.4703348484 | H107: =PRODUCT($F$4:F107)-1 -> 0.302320148
A108: 2025-09-23 | B108: 3.4749 | C108: 2025-09-23 | D108: 1.4172 | E108: 1.034749 | F108: 1.014172 | G108: =PRODUCT($E$4:E108)-1 -> 0.521427514 | H108: =PRODUCT($F$4:F108)-1 -> 0.3207766291
A109: 2025-09-24 | B109: 0 | C109: 2025-09-24 | D109: -0.1929 | E109: 1 | F109: 0.998071 | G109: =PRODUCT($E$4:E109)-1 -> 0.521427514 | H109: =PRODUCT($F$4:F109)-1 -> 0.318228851
A110: 2025-09-25 | B110: -1.4925 | C110: 2025-09-25 | D110: -0.6599 | E110: 0.985075 | F110: 0.993401 | G110: =PRODUCT($E$4:E110)-1 -> 0.4987202084 | H110: =PRODUCT($F$4:F110)-1 -> 0.3095298588
A111: 2025-09-26 | B111: -1.5152 | C111: 2025-09-26 | D111: -1.7043 | E111: 0.984848 | F111: 0.982957 | G111: =PRODUCT($E$4:E111)-1 -> 0.4760115998 | H111: =PRODUCT($F$4:F111)-1 -> 0.2872115414
A112: 2025-09-30 | B112: 0.3846 | C112: 2025-09-30 | D112: 0.9391 | E112: 1.003846 | F112: 1.009391 | G112: =PRODUCT($E$4:E112)-1 -> 0.4816883404 | H112: =PRODUCT($F$4:F112)-1 -> 0.299299745
A113: 2025-10-01 | B113: 1.5326 | C113: 2025-10-01 | D113: 0.6288 | E113: 1.015326 | F113: 1.006288 | G113: =PRODUCT($E$4:E113)-1 -> 0.5043966959 | H113: =PRODUCT($F$4:F113)-1 -> 0.3074697418
A114: 2025-10-02 | B114: 3.0189 | C114: 2025-10-02 | D114: 1.5221 | E114: 1.030189 | F114: 1.015221 | G114: =PRODUCT($E$4:E114)-1 -> 0.5498129278 | H114: =PRODUCT($F$4:F114)-1 -> 0.3273707387
A115: 2025-10-03 | B115: 2.5641 | C115: 2025-10-03 | D115: 1.4507 | E115: 1.025641 | F115: 1.014507 | G115: =PRODUCT($E$4:E115)-1 -> 0.5895516811 | H115: =PRODUCT($F$4:F115)-1 -> 0.346626906
A116: 2025-10-07 | B116: 2.5 | C116: 2025-10-07 | D116: 1.6849 | E116: 1.025 | F116: 1.016849 | G116: =PRODUCT($E$4:E116)-1 -> 0.6292904731 | H116: =PRODUCT($F$4:F116)-1 -> 0.3693162228
A117: 2025-10-08 | B117: -1.3937 | C117: 2025-10-08 | D117: -0.5449 | E117: 0.986063 | F117: 0.994551 | G117: =PRODUCT($E$4:E117)-1 -> 0.6065830518 | H117: =PRODUCT($F$4:F117)-1 -> 0.3618548187
A118: 2025-10-09 | B118: 1.7668 | C118: 2025-10-09 | D118: 0.8803 | E118: 1.017668 | F118: 1.008803 | G118: =PRODUCT($E$4:E118)-1 -> 0.6349681611 | H118: =PRODUCT($F$4:F118)-1 -> 0.3738432266
A119: 2025-10-13 | B119: -1.7361 | C119: 2025-10-13 | D119: -1.3863 | E119: 0.982639 | F119: 0.986137 | G119: =PRODUCT($E$4:E119)-1 -> 0.6065834789 | H119: =PRODUCT($F$4:F119)-1 -> 0.354797638
A120: 2025-10-14 | B120: 0.7067 | C120: 2025-10-14 | D120: -0.4839 | E120: 1.007067 | F120: 0.995161 | G120: =PRODUCT($E$4:E120)-1 -> 0.6179372043 | H120: =PRODUCT($F$4:F120)-1 -> 0.3482417722
A121: 2025-10-15 | B121: 2.807 | C121: 2025-10-15 | D121: 1.8011 | E121: 1.02807 | F121: 1.018011 | G121: =PRODUCT($E$4:E121)-1 -> 0.6633527016 | H121: =PRODUCT($F$4:F121)-1 -> 0.3725249548
A122: 2025-10-16 | B122: 1.3652 | C122: 2025-10-16 | D122: 1.3644 | E122: 1.013652 | F122: 1.013644 | G122: =PRODUCT($E$4:E122)-1 -> 0.6860607927 | H122: =PRODUCT($F$4:F122)-1 -> 0.3912516853
A123: 2025-10-17 | B123: -2.3569 | C123: 2025-10-17 | D123: -1.2496 | E123: 0.976431 | F123: 0.987504 | G123: =PRODUCT($E$4:E123)-1 -> 0.6463220259 | H123: =PRODUCT($F$4:F123)-1 -> 0.3738666042
A124: 2025-10-20 | B124: 2.069 | C124: 2025-10-20 | D124: 1.4147 | E124: 1.02069 | F124: 1.014147 | G124: =PRODUCT($E$4:E124)-1 -> 0.6803844286 | H124: =PRODUCT($F$4:F124)-1 -> 0.3933026951
A125: 2025-10-21 | B125: 0 | C125: 2025-10-21 | D125: 0.2303 | E125: 1 | F125: 1.002303 | G125: =PRODUCT($E$4:E125)-1 -> 0.6803844286 | H125: =PRODUCT($F$4:F125)-1 -> 0.3965114712
A126: 2025-10-22 | B126: -1.3514 | C126: 2025-10-22 | D126: -0.3729 | E126: 0.986486 | F126: 0.996271 | G126: =PRODUCT($E$4:E126)-1 -> 0.6576757134 | H126: =PRODUCT($F$4:F126)-1 -> 0.3913038799
A127: 2025-10-23 | B127: -0.6849 | C127: 2025-10-23 | D127: -0.4219 | E127: 0.993151 | F127: 0.995781 | G127: =PRODUCT($E$4:E127)-1 -> 0.6463222925 | H127: =PRODUCT($F$4:F127)-1 -> 0.3854339688
A128: 2025-10-27 | B128: 2.069 | C128: 2025-10-27 | D128: 1.6757 | E128: 1.02069 | F128: 1.016757 | G128: =PRODUCT($E$4:E128)-1 -> 0.6803847007 | H128: =PRODUCT($F$4:F128)-1 -> 0.4086496858
A129: 2025-10-28 | B129: -0.3378 | C129: 2025-10-28 | D129: -0.159 | E129: 0.996622 | F129: 0.99841 | G129: =PRODUCT($E$4:E129)-1 -> 0.6747083612 | H129: =PRODUCT($F$4:F129)-1 -> 0.4064099328
A130: 2025-10-29 | B130: 2.0339 | C130: 2025-10-29 | D130: 1.2366 | E130: 1.020339 | F130: 1.012366 | G130: =PRODUCT($E$4:E130)-1 -> 0.7087702546 | H130: =PRODUCT($F$4:F130)-1 -> 0.4238015981
A131: 2025-10-30 | B131: 0 | C131: 2025-10-30 | D131: -0.0255 | E131: 1 | F131: 0.999745 | G131: =PRODUCT($E$4:E131)-1 -> 0.7087702546 | H131: =PRODUCT($F$4:F131)-1 -> 0.4234385287
A132: 2025-10-31 | B132: -0.3322 | C132: 2025-10-31 | D132: -0.1915 | E132: =1+B132/100 -> 0.996678 | F132: =1+D132/100 -> 0.998085 | G132: =PRODUCT($E$4:E132)-1 -> 0.7030937198 | H132: =PRODUCT($F$4:F132)-1 -> 0.4207126439
A133: 2025-11-03 | B133: 0.6667 | C133: 2025-11-03 | D133: 0.3586 | E133: 1.006667 | F133: 1.003586 | G133: =PRODUCT($E$4:E133)-1 -> 0.7144482456 | H133: =PRODUCT($F$4:F133)-1 -> 0.4258073194
A134: 2025-11-04 | B134: -0.3311 | C134: 2025-11-04 | D134: -0.7695 | E134: 0.996689 | F134: 0.992305 | G134: =PRODUCT($E$4:E134)-1 -> 0.7087717075 | H134: =PRODUCT($F$4:F134)-1 -> 0.4148357321
A135: 2025-11-05 | B135: -2.99 | C135: 2025-11-05 | D135: -1.4209 | E135: 0.9701 | F135: 0.985791 | G135: =PRODUCT($E$4:E135)-1 -> 0.6576794334 | H135: =PRODUCT($F$4:F135)-1 -> 0.3947323312
A136: 2025-11-06 | B136: 0.3425 | C136: 2025-11-06 | D136: 0.658 | E136: 1.003425 | F136: 1.00658 | G136: =PRODUCT($E$4:E136)-1 -> 0.6633569855 | H136: =PRODUCT($F$4:F136)-1 -> 0.4039096699
A137: 2025-11-07 | B137: -0.3413 | C137: 2025-11-07 | D137: -0.889 | E137: 0.996587 | F137: 0.99111 | G137: =PRODUCT($E$4:E137)-1 -> 0.6576799481 | H137: =PRODUCT($F$4:F137)-1 -> 0.3914289129
A138: 2025-11-10 | B138: 1.0274 | C138: 2025-11-10 | D138: 0.7887 | E138: 1.010274 | F138: 1.007887 | G138: =PRODUCT($E$4:E138)-1 -> 0.6747109519 | H138: =PRODUCT($F$4:F138)-1 -> 0.4024031128
A139: 2025-11-11 | B139: -0.678 | C139: 2025-11-11 | D139: -0.3034 | E139: 0.99322 | F139: 0.996966 | G139: =PRODUCT($E$4:E139)-1 -> 0.6633564116 | H139: =PRODUCT($F$4:F139)-1 -> 0.3981482217
A140: 2025-11-12 | B140: 0.6826 | C140: 2025-11-12 | D140: 0.5836 | E140: 1.006826 | F140: 1.005836 | G140: =PRODUCT($E$4:E140)-1 -> 0.6747104825 | H140: =PRODUCT($F$4:F140)-1 -> 0.4063078148
A141: 2025-11-13 | B141: -1.0169 | C141: 2025-11-13 | D141: -0.1558 | E141: 0.989831 | F141: 0.998442 | G141: =PRODUCT($E$4:E141)-1 -> 0.6576803516 | H141: =PRODUCT($F$4:F141)-1 -> 0.4041167872
A142: 2025-11-14 | B142: -2.0548 | C142: 2025-11-14 | D142: -1.8136 | E142: 0.979452 | F142: 0.981864 | G142: =PRODUCT($E$4:E142)-1 -> 0.6236183357 | H142: =PRODUCT($F$4:F142)-1 -> 0.3786517251
A143: 2025-11-17 | B143: 1.049 | C143: 2025-11-17 | D143: 0.1818 | E143: 1.01049 | F143: 1.001818 | G143: =PRODUCT($E$4:E143)-1 -> 0.6406500921 | H143: =PRODUCT($F$4:F143)-1 -> 0.381158114
A144: 2025-11-18 | B144: -2.7682 | C144: 2025-11-18 | D144: -2.5182 | E144: 0.972318 | F144: 0.974818 | G144: =PRODUCT($E$4:E144)-1 -> 0.5952336162 | H144: =PRODUCT($F$4:F144)-1 -> 0.3463777903
A145: 2025-11-19 | B145: -0.7117 | C145: 2025-11-19 | D145: -0.6578 | E145: 0.992883 | F145: 0.993422 | G145: =PRODUCT($E$4:E145)-1 -> 0.5838803386 | H145: =PRODUCT($F$4:F145)-1 -> 0.3375213172
A146: 2025-11-20 | B146: 4.3011 | C146: 2025-11-20 | D146: 3.1837 | E146: 1.043011 | F146: 1.031837 | G146: =PRODUCT($E$4:E146)-1 -> 0.6520046158 | H146: =PRODUCT($F$4:F146)-1 -> 0.3801039834
A147: 2025-11-21 | B147: -4.811 | C147: 2025-11-21 | D147: -3.6148 | E147: 0.95189 | F147: 0.963852 | G147: =PRODUCT($E$4:E147)-1 -> 0.5725266737 | H147: =PRODUCT($F$4:F147)-1 -> 0.3302159846
A148: 2025-11-24 | B148: -0.722 | C148: 2025-11-24 | D148: 0.2622 | E148: 0.99278 | F148: 1.002622 | G148: =PRODUCT($E$4:E148)-1 -> 0.5611730312 | H148: =PRODUCT($F$4:F148)-1 -> 0.3337038109
A149: 2025-11-25 | B149: 2.9091 | C149: 2025-11-25 | D149: 1.5391 | E149: 1.029091 | F149: 1.015391 | G149: =PRODUCT($E$4:E149)-1 -> 0.6065891158 | H149: =PRODUCT($F$4:F149)-1 -> 0.3542308463
A150: 2025-11-26 | B150: 1.7668 | C150: 2025-11-26 | D150: 1.8481 | E150: 1.017668 | F150: 1.018481 | G150: =PRODUCT($E$4:E150)-1 -> 0.6349743323 | H150: =PRODUCT($F$4:F150)-1 -> 0.3792583866
A151: 2025-11-27 | B151: -0.3472 | C151: 2025-11-27 | D151: 0.529 | E151: 0.996528 | F151: 1.00529 | G151: =PRODUCT($E$4:E151)-1 -> 0.6292977014 | H151: =PRODUCT($F$4:F151)-1 -> 0.3865546634
A152: 2025-11-28 | B152: 0.3484 | C152: 2025-11-28 | D152: 0.2611 | E152: 1.003484 | F152: 1.002611 | G152: =PRODUCT($E$4:E152)-1 -> 0.6349741746 | H152: =PRODUCT($F$4:F152)-1 -> 0.3901749577
A153: 2025-12-01 | B153: -2.0833 | C153: 2025-12-01 | D153: -1.0278 | E153: 0.979167 | F153: 0.989722 | G153: =PRODUCT($E$4:E153)-1 -> 0.6009127576 | H153: =PRODUCT($F$4:F153)-1 -> 0.3758867394
A154: 2025-12-02 | B154: 1.4184 | C154: 2025-12-02 | D154: 0.811 | E154: 1.014184 | F154: 1.00811 | G154: =PRODUCT($E$4:E154)-1 -> 0.6236201042 | H154: =PRODUCT($F$4:F154)-1 -> 0.3870451809
A155: 2025-12-03 | B155: 1.3986 | C155: 2025-12-03 | D155: 0.83 | E155: 1.013986 | F155: 1.0083 | G155: =PRODUCT($E$4:E155)-1 -> 0.646328055 | H155: =PRODUCT($F$4:F155)-1 -> 0.3985576559
A156: 2025-12-04 | B156: -0.3448 | C156: 2025-12-04 | D156: 0.0096 | E156: 0.996552 | F156: 1.000096 | G156: =PRODUCT($E$4:E156)-1 -> 0.6406515158 | H156: =PRODUCT($F$4:F156)-1 -> 0.3986919174
A157: 2025-12-05 | B157: 1.0381 | C157: 2025-12-05 | D157: 0.6662 | E157: 1.010381 | F157: 1.006662 | G157: =PRODUCT($E$4:E157)-1 -> 0.6576831192 | H157: =PRODUCT($F$4:F157)-1 -> 0.408010003
A158: 2025-12-08 | B158: 2.3973 | C158: 2025-12-08 | D158: 1.154 | E158: 1.023973 | F158: 1.01154 | G158: =PRODUCT($E$4:E158)-1 -> 0.6974227566 | H158: =PRODUCT($F$4:F158)-1 -> 0.4242584384
A159: 2025-12-09 | B159: -1.0033 | C159: 2025-12-09 | D159: -0.4281 | E159: 0.989967 | F159: 0.995719 | G159: =PRODUCT($E$4:E159)-1 -> 0.6803925141 | H159: =PRODUCT($F$4:F159)-1 -> 0.418161188
A160: 2025-12-10 | B160: 1.6892 | C160: 2025-12-10 | D160: 0.774 | E160: 1.016892 | F160: 1.00774 | G160: =PRODUCT($E$4:E160)-1 -> 0.7087777045 | H160: =PRODUCT($F$4:F160)-1 -> 0.4291377556
A161: 2025-12-11 | B161: -1.9934 | C161: 2025-12-11 | D161: -1.3238 | E161: 0.980066 | F161: 0.986762 | G161: =PRODUCT($E$4:E161)-1 -> 0.6747149297 | H161: =PRODUCT($F$4:F161)-1 -> 0.41021883
A162: 2025-12-12 | B162: 0.6803 | C162: 2025-12-12 | D162: 0.6183 | E162: 1.006803 | F162: 1.006183 | G162: =PRODUCT($E$4:E162)-1 -> 0.6861080154 | H162: =PRODUCT($F$4:F162)-1 -> 0.4189382131
A163: 2025-12-15 | B163: -2.027 | C163: 2025-12-15 | D163: -1.1741 | E163: 0.97973 | F163: 0.988259 | G163: =PRODUCT($E$4:E163)-1 -> 0.6519306059 | H163: =PRODUCT($F$4:F163)-1 -> 0.4022784595
A164: 2025-12-16 | B164: -1.0345 | C164: 2025-12-16 | D164: -1.1852 | E164: 0.989655 | F164: 0.988148 | G164: =PRODUCT($E$4:E164)-1 -> 0.6348413838 | H164: =PRODUCT($F$4:F164)-1 -> 0.3856586552
A165: 2025-12-17 | B165: -0.3484 | C165: 2025-12-17 | D165: -0.0417 | E165: 0.996516 | F165: 0.999583 | G165: =PRODUCT($E$4:E165)-1 -> 0.6291455964 | H165: =PRODUCT($F$4:F165)-1 -> 0.3850808355
A166: 2025-12-18 | B166: 0 | C166: 2025-12-18 | D166: -0.2058 | E166: 1 | F166: 0.997942 | G166: =PRODUCT($E$4:E166)-1 -> 0.6291455964 | H166: =PRODUCT($F$4:F166)-1 -> 0.3822303392
A167: 2025-12-19 | B167: 0 | C167: 2025-12-19 | D167: 0.8294 | E167: 1 | F167: 1.008294 | G167: =PRODUCT($E$4:E167)-1 -> 0.6291455964 | H167: =PRODUCT($F$4:F167)-1 -> 0.3936945576
A168: 2025-12-22 | B168: 2.4476 | C168: 2025-12-22 | D168: 1.6366 | E168: 1.024476 | F168: 1.016366 | G168: =PRODUCT($E$4:E168)-1 -> 0.669020564 | H168: =PRODUCT($F$4:F168)-1 -> 0.4165037627
A169: 2025-12-23 | B169: 1.7065 | C169: 2025-12-23 | D169: 0.5713 | E169: 1.017065 | F169: 1.005713 | G169: =PRODUCT($E$4:E169)-1 -> 0.6975023999 | H169: =PRODUCT($F$4:F169)-1 -> 0.4245962487
A170: 2025-12-24 | B170: 0.3356 | C170: 2025-12-24 | D170: 0.2173 | E170: 1.003356 | F170: 1.002173 | G170: =PRODUCT($E$4:E170)-1 -> 0.703199218 | H170: =PRODUCT($F$4:F170)-1 -> 0.4276918964
A171: 2025-12-26 | B171: 1.0033 | C171: 2025-12-26 | D171: 0.6487 | E171: 1.010033 | F171: 1.006487 | G171: =PRODUCT($E$4:E171)-1 -> 0.7202874157 | H171: =PRODUCT($F$4:F171)-1 -> 0.4369533337
A172: 2025-12-29 | B172: 1.3245 | C172: 2025-12-29 | D172: 0.8925 | E172: 1.013245 | F172: 1.008925 | G172: =PRODUCT($E$4:E172)-1 -> 0.7430726226 | H172: =PRODUCT($F$4:F172)-1 -> 0.4497781422
A173: 2025-12-30 | B173: -0.6536 | C173: 2025-12-30 | D173: -0.3601 | E173: 0.993464 | F173: 0.996399 | G173: =PRODUCT($E$4:E173)-1 -> 0.7316798999 | H173: =PRODUCT($F$4:F173)-1 -> 0.4445574911
A174: 2025-12-31 | B174: 1.9737 | C174: 2025-12-31 | D174: 0.8934 | E174: 1.019737 | F174: 1.008934 | G174: =PRODUCT($E$4:E174)-1 -> 0.7658580661 | H174: =PRODUCT($F$4:F174)-1 -> 0.4574631678
A175: 2026-01-02 | B175: 2.2581 | C175: 2026-01-02 | D175: 1.3334 | E175: 1.022581 | F175: 1.013334 | G175: =PRODUCT($E$4:E175)-1 -> 0.8057329071 | H175: =PRODUCT($F$4:F175)-1 -> 0.4768969816
A176: 2026-01-05 | B176: 5.3628 | C176: 2026-01-05 | D176: 2.5732 | E176: 1.053628 | F176: 1.025732 | G176: =PRODUCT($E$4:E176)-1 -> 0.9025707514 | H176: =PRODUCT($F$4:F176)-1 -> 0.5149004948
A177: 2026-01-06 | B177: 2.0958 | C177: 2026-01-06 | D177: 1.5654 | E177: 1.020958 | F177: 1.015654 | G177: =PRODUCT($E$4:E177)-1 -> 0.9424448292 | H177: =PRODUCT($F$4:F177)-1 -> 0.5386147471
A178: 2026-01-07 | B178: -1.7595 | C178: 2026-01-07 | D178: -0.4606 | E178: 0.982405 | F178: 0.995394 | G178: =PRODUCT($E$4:E178)-1 -> 0.9082675125 | H178: =PRODUCT($F$4:F178)-1 -> 0.5315278876
A179: 2026-01-08 | B179: 0.597 | C179: 2026-01-08 | D179: -0.2462 | E179: 1.00597 | F179: 0.997538 | G179: =PRODUCT($E$4:E179)-1 -> 0.9196598695 | H179: =PRODUCT($F$4:F179)-1 -> 0.5277572659
A180: 2026-01-09 | B180: -0.2967 | C180: 2026-01-09 | D180: -0.2358 | E180: 0.997033 | F180: 0.997642 | G180: =PRODUCT($E$4:E180)-1 -> 0.9139642387 | H180: =PRODUCT($F$4:F180)-1 -> 0.5241548143
A181: 2026-01-12 | B181: 0.5952 | C181: 2026-01-12 | D181: 0.9189 | E181: 1.005952 | F181: 1.009189 | G181: =PRODUCT($E$4:E181)-1 -> 0.9253561538 | H181: =PRODUCT($F$4:F181)-1 -> 0.5381602729
A182: 2026-01-13 | B182: 1.1834 | C182: 2026-01-13 | D182: 0.4578 | E182: 1.011834 | F182: 1.004578 | G182: =PRODUCT($E$4:E182)-1 -> 0.9481408186 | H182: =PRODUCT($F$4:F182)-1 -> 0.5452019706
A183: 2026-01-14 | B183: 0 | C183: 2026-01-14 | D183: 0.7639 | E183: 1 | F183: 1.007639 | G183: =PRODUCT($E$4:E183)-1 -> 0.9481408186 | H183: =PRODUCT($F$4:F183)-1 -> 0.5570057685
A184: 2026-01-15 | B184: -1.1696 | C184: 2026-01-15 | D184: -0.424 | E184: 0.988304 | F184: 0.99576 | G184: =PRODUCT($E$4:E184)-1 -> 0.9253553635 | H184: =PRODUCT($F$4:F184)-1 -> 0.550404064
A185: 2026-01-16 | B185: 2.9586 | C185: 2026-01-16 | D185: 1.9413 | E185: 1.029586 | F185: 1.019413 | G185: =PRODUCT($E$4:E185)-1 -> 0.9823189273 | H185: =PRODUCT($F$4:F185)-1 -> 0.5805020581
A186: 2026-01-19 | B186: 1.1494 | C186: 2026-01-19 | D186: 0.7342 | E186: 1.011494 | F186: 1.007342 | G186: =PRODUCT($E$4:E186)-1 -> 1.005103701 | H186: =PRODUCT($F$4:F186)-1 -> 0.5921061042
A187: 2026-01-20 | B187: 0.8523 | C187: 2026-01-20 | D187: 0.3815 | E187: 1.008523 | F187: 1.003815 | G187: =PRODUCT($E$4:E187)-1 -> 1.0221932 | H187: =PRODUCT($F$4:F187)-1 -> 0.598179989
A188: 2026-01-21 | B188: -1.9718 | C188: 2026-01-21 | D188: -1.6172 | E188: 0.980282 | F188: 0.983828 | G188: =PRODUCT($E$4:E188)-1 -> 0.9823195944 | H188: =PRODUCT($F$4:F188)-1 -> 0.5723342222
A189: 2026-01-22 | B189: 1.1494 | C189: 2026-01-22 | D189: 1.5993 | E189: 1.011494 | F189: 1.015993 | G189: =PRODUCT($E$4:E189)-1 -> 1.005104376 | H189: =PRODUCT($F$4:F189)-1 -> 0.5974805634
A190: 2026-01-23 | B190: 0.5682 | C190: 2026-01-23 | D190: 0.6786 | E190: 1.005682 | F190: 1.006786 | G190: =PRODUCT($E$4:E190)-1 -> 1.016497379 | H190: =PRODUCT($F$4:F190)-1 -> 0.6083210665
A191: 2026-01-26 | B191: -0.8475 | C191: 2026-01-26 | D191: 0.3223 | E191: 0.991525 | F191: 1.003223 | G191: =PRODUCT($E$4:E191)-1 -> 0.9994075636 | H191: =PRODUCT($F$4:F191)-1 -> 0.6135046853
A192: 2026-01-27 | B192: 1.4245 | C192: 2026-01-27 | D192: 0.7903 | E192: 1.014245 | F192: 1.007903 | G192: =PRODUCT($E$4:E192)-1 -> 1.027889124 | H192: =PRODUCT($F$4:F192)-1 -> 0.6262562129
A193: 2026-01-28 | B193: 2.2472 | C193: 2026-01-28 | D193: 1.5035 | E193: 1.022472 | F193: 1.015035 | G193: =PRODUCT($E$4:E193)-1 -> 1.073459849 | H193: =PRODUCT($F$4:F193)-1 -> 0.650706975
A194: 2026-01-29 | B194: -0.8242 | C194: 2026-01-29 | D194: -0.8156 | E194: 0.991758 | F194: 0.991844 | G194: =PRODUCT($E$4:E194)-1 -> 1.056370393 | H194: =PRODUCT($F$4:F194)-1 -> 0.6372438089
A195: 2026-01-30 | B195: -1.662 | C195: 2026-01-30 | D195: -1.4523 | E195: 0.98338 | F195: 0.985477 | G195: =PRODUCT($E$4:E195)-1 -> 1.022193517 | H195: =PRODUCT($F$4:F195)-1 -> 0.6134661171
A196: 2026-02-02 | B196: -0.5634 | C196: 2026-02-02 | D196: -1.3714 | E196: =1+B196/100 -> 0.994366 | F196: =1+D196/100 -> 0.986286 | G196: =PRODUCT($E$4:E196)-1 -> 1.010800478 | H196: =PRODUCT($F$4:F196)-1 -> 0.5913390428
A197: 2026-02-03 | B197: 1.983 | C197: 2026-02-03 | D197: 1.8066 | E197: 1.01983 | F197: 1.018066 | G197: =PRODUCT($E$4:E197)-1 -> 1.050674652 | H197: =PRODUCT($F$4:F197)-1 -> 0.6200881739
A198: 2026-02-04 | B198: -0.8333 | C198: 2026-02-04 | D198: 0.2934 | E198: 0.991667 | F198: 1.002934 | G198: =PRODUCT($E$4:E198)-1 -> 1.03358638 | H198: =PRODUCT($F$4:F198)-1 -> 0.6248415126
A199: 2026-02-05 | B199: -1.1204 | C199: 2026-02-05 | D199: -1.513 | E199: 0.988796 | F199: 0.98487 | G199: =PRODUCT($E$4:E199)-1 -> 1.010802078 | H199: =PRODUCT($F$4:F199)-1 -> 0.6002576605
A200: 2026-02-06 | B200: 0.8499 | C200: 2026-02-06 | D200: -0.0577 | E200: 1.008499 | F200: 0.999423 | G200: =PRODUCT($E$4:E200)-1 -> 1.027891885 | H200: =PRODUCT($F$4:F200)-1 -> 0.5993343119
... 52 more rows

Sheet 籌碼分析
A1: 2330 台積電
A2: 年月日 | B2: 外資買賣超(張) | C2: 投信買賣超(張) | D2: 自營買賣超(張) | F2: 年月日 | G2: 融資增減(張) | K2: 近20日籌碼變化
A3: 2026-04-08 | B3: 18393 | C3: 452 | D3: 1711 | F3: 2026-04-07 | G3: -598 | J3: 外資 | K3: =SUM(B3:B22) -> -31257
A4: 2026-04-09 | B4: 722 | C4: -104 | D4: -497 | F4: 2026-04-08 | G4: 604 | J4: 投信 | K4: =SUM(C3:C22) -> 8467
A5: 2026-04-10 | B5: 8160 | C5: -175 | D5: 375 | F5: 2026-04-09 | G5: 32 | J5: 自營 | K5: =SUM(D3:D22) -> 2232
A6: 2026-04-13 | B6: -1275 | C6: -4823 | D6: 53 | F6: 2026-04-10 | G6: 581 | J6: 融資 | K6: =SUM(G3:G22) -> 1700
A7: 2026-04-14 | B7: 18955 | C7: 615 | D7: 653 | F7: 2026-04-13 | G7: 924
A8: 2026-04-15 | B8: 4826 | C8: -138 | D8: 244 | F8: 2026-04-14 | G8: -843
A9: 2026-04-16 | B9: -2390 | C9: 306 | D9: 1084 | F9: 2026-04-15 | G9: -420
A10: 2026-04-17 | B10: -9383 | C10: -2186 | D10: -270 | F10: 2026-04-16 | G10: -13
A11: 2026-04-20 | B11: -3033 | C11: 661 | D11: -70 | F11: 2026-04-17 | G11: -1195
A12: 2026-04-21 | B12: 2210 | C12: 696 | D12: -77 | F12: 2026-04-20 | G12: 342
A13: 2026-04-22 | B13: -2132 | C13: -742 | D13: -326 | F13: 2026-04-21 | G13: -905
A14: 2026-04-23 | B14: 7193 | C14: 754 | D14: -1379 | F14: 2026-04-22 | G14: 148
A15: 2026-04-24 | B15: 8306 | C15: 1168 | D15: 256 | F15: 2026-04-23 | G15: -785
A16: 2026-04-27 | B16: -18940 | C16: 5284 | D16: 248 | F16: 2026-04-24 | G16: 1488
A17: 2026-04-28 | B17: -22114 | C17: 861 | D17: 500 | F17: 2026-04-27 | G17: 3001
A18: 2026-04-29 | B18: -15783 | C18: 1002 | D18: -358 | F18: 2026-04-28 | G18: -192
A19: 2026-04-30 | B19: -21183 | C19: 596 | D19: 115 | F19: 2026-04-29 | G19: 228
A20: 2026-05-04 | B20: 9112 | C20: 809 | D20: 378 | F20: 2026-04-30 | G20: -177
A21: 2026-05-05 | B21: -8581 | C21: 1496 | D21: -195 | F21: 2026-05-04 | G21: -935
A22: 2026-05-06 | B22: -4320 | C22: 1935 | D22: -213 | F22: 2026-05-05 | G22: 415

Sheet 圖-報酬率
A1: 2330 台積電
A2: Data Field | B2: 2026-05-06
A3: 未調整收盤價(元) | B3: 2250
A4: 券資比
A5: 現金股利率 | B5: 0.9778 | D5: 報酬率
A6: 股利殖利率-TSE | D6: =IF(B7="",TEXT(C2,"YYYY/MM/DD 報酬率"),TEXT(B2,"YYYY/MM/DD 報酬率")) -> 2026/05/06 報酬率
A7: 日報酬率 % | B7: 0 | D7: =IF(B7="",C7,B7) -> 0
A8: 週報酬率 % | B8: 3.2111 | D8: =IF(B8="",C8,B8) -> 3.2111
A9: 月報酬率 % | B9: 24.3094 | D9: =IF(B9="",C9,B9) -> 24.3094
A10: 季報酬率 % | B10: 26.8101 | D10: =IF(B10="",C10,B10) -> 26.8101
A11: 年報酬率 % | B11: 148.2126 | D11: =IF(B11="",C11,B11) -> 148.2126

Sheet 圖-股價.PE.PB
A1: 2330 台積電
B2: 週股價走勢－40W | F2: 月股價走勢－52M | J2: PE BAND | O2: PB BAND
A3: 年月日 | B3: 成交量(千股)_週 | C3: 收盤價(元) | E3: 年月 | F3: 收盤價(元)_月 | G3: 本益比-TEJ | H3: 股價淨值比-TEJ | J3: 5*PE | K3: 10*PE | L3: 15*PE | M3: 20*PE | O3: 0.5*PB | P3: 1*PB | Q3: 2*PB | R3: 3*PB | S3: 4*PB
A4: 2025-08-08 | B4: 162368 | C4: 1175 | E4: 2022-02-25 | F4: 604 | G4: 27.3 | H4: 7.54 | J4: =5*$F4/$G4 -> 110.6227106 | K4: =10*$F4/$G4 -> 221.2454212 | L4: =15*$F4/$G4 -> 331.8681319 | M4: =20*$F4/$G4 -> 442.4908425 | O4: =0.5*$F4/$H4 -> 40.0530504 | P4: =1*$F4/$H4 -> 80.1061008 | Q4: =2*$F4/$H4 -> 160.2122016 | R4: =3*$F4/$H4 -> 240.3183024 | S4: =4*$F4/$H4 -> 320.4244032
A5: 2025-08-15 | B5: 166127 | C5: 1180 | E5: 2022-03-31 | F5: 597 | G5: 26.99 | H5: 7.46 | J5: =5*$F5/$G5 -> 110.5965172 | K5: =10*$F5/$G5 -> 221.1930345 | L5: =15*$F5/$G5 -> 331.7895517 | M5: =20*$F5/$G5 -> 442.3860689 | O5: =0.5*$F5/$H5 -> 40.01340483 | P5: =1*$F5/$H5 -> 80.02680965 | Q5: =2*$F5/$H5 -> 160.0536193 | R5: =3*$F5/$H5 -> 240.080429 | S5: =4*$F5/$H5 -> 320.1072386
A6: 2025-08-22 | B6: 162021 | C6: 1135 | E6: 2022-04-29 | F6: 538 | G6: 24.32 | H6: 6.72 | J6: 110.6085526 | K6: 221.2171053 | L6: 331.8256579 | M6: 442.4342105 | O6: 40.0297619 | P6: 80.05952381 | Q6: 160.1190476 | R6: 240.1785714 | S6: 320.2380952
A7: 2025-08-29 | B7: 133571 | C7: 1160 | E7: 2022-05-31 | F7: 560 | G7: 25.32 | H7: 6.99 | J7: 110.5845182 | K7: 221.1690363 | L7: 331.7535545 | M7: 442.3380727 | O7: 40.05722461 | P7: 80.11444921 | Q7: 160.2288984 | R7: 240.3433476 | S7: 320.4577969
A8: 2025-09-05 | B8: 111470 | C8: 1180 | E8: 2022-06-30 | F8: 476 | G8: 18.57 | H8: 5.33 | J8: 128.1637049 | K8: 256.3274098 | L8: 384.4911147 | M8: 512.6548196 | O8: 44.65290807 | P8: 89.30581614 | Q8: 178.6116323 | R8: 267.9174484 | S8: 357.2232645
A9: 2025-09-12 | B9: 170665 | C9: 1260 | E9: 2022-07-29 | F9: 509 | G9: 19.86 | H9: 5.7 | J9: 128.1470292 | K9: 256.2940584 | L9: 384.4410876 | M9: 512.5881168 | O9: 44.64912281 | P9: 89.29824561 | Q9: 178.5964912 | R9: 267.8947368 | S9: 357.1929825
A10: 2025-09-19 | B10: 175654 | C10: 1265 | E10: 2022-08-31 | F10: 505 | G10: 19.7 | H10: 5.66 | J10: 128.1725888 | K10: 256.3451777 | L10: 384.5177665 | M10: 512.6903553 | O10: 44.61130742 | P10: 89.22261484 | Q10: 178.4452297 | R10: 267.6678445 | S10: 356.8904594
A11: 2025-09-26 | B11: 172935 | C11: 1300 | E11: 2022-09-30 | F11: 422 | G11: 16.46 | H11: 4.73 | J11: 128.1895504 | K11: 256.3791009 | L11: 384.5686513 | M11: 512.7582017 | O11: 44.60887949 | P11: 89.21775899 | Q11: 178.435518 | R11: 267.653277 | S11: 356.8710359
A12: 2025-10-03 | B12: 148110 | C12: 1400 | E12: 2022-10-31 | F12: 390 | G12: 13.04 | H12: 4.05 | J12: 149.5398773 | K12: 299.0797546 | L12: 448.6196319 | M12: 598.1595092 | O12: 48.14814815 | P12: 96.2962963 | Q12: 192.5925926 | R12: 288.8888889 | S12: 385.1851852
A13: 2025-10-09 | B13: 112640 | C13: 1440 | E13: 2022-11-30 | F13: 490 | G13: 16.38 | H13: 5.09 | J13: 149.5726496 | K13: 299.1452991 | L13: 448.7179487 | M13: 598.2905983 | O13: 48.13359528 | P13: 96.26719057 | Q13: 192.5343811 | R13: 288.8015717 | S13: 385.0687623
A14: 2025-10-17 | B14: 236931 | C14: 1450 | E14: 2022-12-30 | F14: 448.5 | G14: 13.03 | H14: 4.25 | J14: 172.1028396 | K14: 344.2056792 | L14: 516.3085188 | M14: 688.4113584 | O14: 52.76470588 | P14: 105.5294118 | Q14: 211.0588235 | R14: 316.5882353 | S14: 422.1176471
A15: 2025-10-23 | B15: 128853 | C15: 1450 | E15: 2023-01-31 | F15: 522 | G15: 15.16 | H15: 4.94 | J15: 172.1635884 | K15: 344.3271768 | L15: 516.4907652 | M15: 688.6543536 | O15: 52.8340081 | P15: 105.6680162 | Q15: 211.3360324 | R15: 317.0040486 | S15: 422.6720648
A16: 2025-10-31 | B16: 167831 | C16: 1500 | E16: 2023-02-24 | F16: 511 | G16: 14.84 | H16: 4.84 | J16: 172.1698113 | K16: 344.3396226 | L16: 516.509434 | M16: 688.6792453 | O16: 52.7892562 | P16: 105.5785124 | Q16: 211.1570248 | R16: 316.7355372 | S16: 422.3140496
A17: 2025-11-07 | B17: 183766 | C17: 1460 | E17: 2023-03-31 | F17: 533 | G17: 15.48 | H17: 5.05 | J17: 172.1576227 | K17: 344.3152455 | L17: 516.4728682 | M17: 688.630491 | O17: 52.77227723 | P17: 105.5445545 | Q17: 211.0891089 | R17: 316.6336634 | S17: 422.1782178
A18: 2025-11-14 | B18: 134134 | C18: 1430 | E18: 2023-04-28 | F18: 502 | G18: 14.58 | H18: 4.75 | J18: 172.1536351 | K18: 344.3072702 | L18: 516.4609053 | M18: 688.6145405 | O18: 52.84210526 | P18: 105.6842105 | Q18: 211.3684211 | R18: 317.0526316 | S18: 422.7368421
A19: 2025-11-21 | B19: 220359 | C19: 1385 | E19: 2023-05-31 | F19: 558 | G19: 16.21 | H19: 5.29 | J19: 172.1159778 | K19: 344.2319556 | L19: 516.3479334 | M19: 688.4639112 | O19: 52.74102079 | P19: 105.4820416 | Q19: 210.9640832 | R19: 316.4461248 | S19: 421.9281664
A20: 2025-11-28 | B20: 201861 | C20: 1440 | E20: 2023-06-30 | F20: 576 | G20: 14.64 | H20: 4.85 | J20: 196.7213115 | K20: 393.442623 | L20: 590.1639344 | M20: 786.8852459 | O20: 59.3814433 | P20: 118.7628866 | Q20: 237.5257732 | R20: 356.2886598 | S20: 475.0515464
A21: 2025-12-05 | B21: 131582 | C21: 1460 | E21: 2023-07-31 | F21: 565 | G21: 14.36 | H21: 4.76 | J21: 196.7270195 | K21: 393.454039 | L21: 590.1810585 | M21: 786.908078 | O21: 59.3487395 | P21: 118.697479 | Q21: 237.394958 | R21: 356.092437 | S21: 474.789916
A22: 2025-12-12 | B22: 137194 | C22: 1480 | E22: 2023-08-31 | F22: 549 | G22: 13.95 | H22: 4.63 | J22: 196.7741935 | K22: 393.5483871 | L22: 590.3225806 | M22: 787.0967742 | O22: 59.28725702 | P22: 118.574514 | Q22: 237.1490281 | R22: 355.7235421 | S22: 474.2980562
A23: 2025-12-19 | B23: 173733 | C23: 1430 | E23: 2023-09-28 | F23: 523 | G23: 13.29 | H23: 4.41 | J23: 196.7644846 | K23: 393.5289691 | L23: 590.2934537 | M23: 787.0579383 | O23: 59.29705215 | P23: 118.5941043 | Q23: 237.1882086 | R23: 355.7823129 | S23: 474.3764172
A24: 2025-12-26 | B24: 80770 | C24: 1510 | E24: 2023-10-31 | F24: 529 | G24: 14.34 | H24: 4.3 | J24: 184.4490934 | K24: 368.8981869 | L24: 553.3472803 | M24: 737.7963738 | O24: 61.51162791 | P24: 123.0232558 | Q24: 246.0465116 | R24: 369.0697674 | S24: 492.0930233
A25: 2025-12-31 | B25: 77219 | C25: 1550 | E25: 2023-11-30 | F25: 577 | G25: 15.65 | H25: 4.69 | J25: 184.3450479 | K25: 368.6900958 | L25: 553.0351438 | M25: 737.3801917 | O25: 61.51385928 | P25: 123.0277186 | Q25: 246.0554371 | R25: 369.0831557 | S25: 492.1108742
A26: 2026-01-02 | B26: 39836 | C26: 1585 | E26: 2023-12-29 | F26: 593 | G26: 17.27 | H26: 4.59 | J26: 171.6850029 | K26: 343.3700058 | L26: 515.0550087 | M26: 686.7400116 | O26: 64.59694989 | P26: 129.1938998 | Q26: 258.3877996 | R26: 387.5816993 | S26: 516.7755991
A27: 2026-01-09 | B27: 258741 | C27: 1680 | E27: 2024-01-31 | F27: 628 | G27: 18.29 | H27: 4.86 | J27: 171.6785128 | K27: 343.3570257 | L27: 515.0355385 | M27: 686.7140514 | O27: 64.6090535 | P27: 129.218107 | Q27: 258.436214 | R27: 387.654321 | S27: 516.872428
A28: 2026-01-16 | B28: 201687 | C28: 1740 | E28: 2024-02-29 | F28: 690 | G28: 20.1 | H28: 5.34 | J28: 171.641791 | K28: 343.2835821 | L28: 514.9253731 | M28: 686.5671642 | O28: 64.60674157 | P28: 129.2134831 | Q28: 258.4269663 | R28: 387.6404494 | S28: 516.8539326
A29: 2026-01-23 | B29: 179789 | C29: 1770 | E29: 2024-03-29 | F29: 779 | G29: 22.69 | H29: 6.03 | J29: 171.6615249 | K29: 343.3230498 | L29: 514.9845747 | M29: 686.6460996 | O29: 64.59369818 | P29: 129.1873964 | Q29: 258.3747927 | R29: 387.5621891 | S29: 516.7495854
A30: 2026-01-30 | B30: 171922 | C30: 1775 | E30: 2024-04-30 | F30: 790 | G30: 23.02 | H30: 6.12 | J30: 171.5899218 | K30: 343.1798436 | L30: 514.7697654 | M30: 686.3596872 | O30: 64.54248366 | P30: 129.0849673 | Q30: 258.1699346 | R30: 387.254902 | S30: 516.3398693
A31: 2026-02-06 | B31: 158275 | C31: 1780 | E31: 2024-05-31 | F31: 821 | G31: 23.92 | H31: 6.36 | J31: 171.6137124 | K31: 343.2274247 | L31: 514.8411371 | M31: 686.4548495 | O31: 64.54402516 | P31: 129.0880503 | Q31: 258.1761006 | R31: 387.2641509 | S31: 516.3522013
A32: 2026-02-11 | B32: 130709 | C32: 1915 | E32: 2024-06-28 | F32: 966 | G32: 29.29 | H32: 6.89 | J32: 164.9026972 | K32: 329.8053943 | L32: 494.7080915 | M32: 659.6107887 | O32: 70.10159652 | P32: 140.203193 | Q32: 280.4063861 | R32: 420.6095791 | S32: 560.8127721
A33: 2026-02-26 | B33: 246895 | C33: 1995 | E33: 2024-07-31 | F33: 934 | G33: 28.32 | H33: 6.66 | J33: 164.9011299 | K33: 329.8022599 | L33: 494.7033898 | M33: 659.6045198 | O33: 70.12012012 | P33: 140.2402402 | Q33: 280.4804805 | R33: 420.7207207 | S33: 560.960961
A34: 2026-03-06 | B34: 287426 | C34: 1890 | E34: 2024-08-30 | F34: 944 | G34: 28.62 | H34: 6.73 | J34: 164.9196366 | K34: 329.8392732 | L34: 494.7589099 | M34: 659.6785465 | O34: 70.13372957 | P34: 140.2674591 | Q34: 280.5349183 | R34: 420.8023774 | S34: 561.0698366
A35: 2026-03-13 | B35: 257586 | C35: 1865 | E35: 2024-09-30 | F35: 957 | G35: 29.01 | H35: 6.83 | J35: 164.9431231 | K35: 329.8862461 | L35: 494.8293692 | M35: 659.7724922 | O35: 70.05856515 | P35: 140.1171303 | Q35: 280.2342606 | R35: 420.3513909 | S35: 560.4685212
A36: 2026-03-20 | B36: 180306 | C36: 1840 | E36: 2024-10-30 | F36: 1030 | G36: 28.87 | H36: 7.05 | J36: 178.3858677 | K36: 356.7717354 | L36: 535.157603 | M36: 713.5434707 | O36: 73.04964539 | P36: 146.0992908 | Q36: 292.1985816 | R36: 438.2978723 | S36: 584.3971631
A37: 2026-03-27 | B37: 177702 | C37: 1820 | E37: 2024-11-29 | F37: 996 | G37: 27.92 | H37: 6.81 | J37: 178.3667622 | K37: 356.7335244 | L37: 535.1002865 | M37: 713.4670487 | O37: 73.1277533 | P37: 146.2555066 | Q37: 292.5110132 | R37: 438.7665198 | S37: 585.0220264
A38: 2026-04-02 | B38: 197894 | C38: 1810 | E38: 2024-12-31 | F38: 1075 | G38: 26.83 | H38: 6.99 | J38: 200.3354454 | K38: 400.6708908 | L38: 601.0063362 | M38: 801.3417816 | O38: 76.89556509 | P38: 153.7911302 | Q38: 307.5822604 | R38: 461.3733906 | S38: 615.1645207
A39: 2026-04-10 | B39: 148859 | C39: 2000 | E39: 2025-01-22 | F39: 1135 | G39: 28.33 | H39: 7.38 | J39: 200.3176844 | K39: 400.6353689 | L39: 600.9530533 | M39: 801.2707377 | O39: 76.89701897 | P39: 153.7940379 | Q39: 307.5880759 | R39: 461.3821138 | S39: 615.1761518
A40: 2026-04-17 | B40: 205303 | C40: 2030 | E40: 2025-02-27 | F40: 1040 | G40: 25.96 | H40: 6.76 | J40: 200.3081664 | K40: 400.6163328 | L40: 600.9244992 | M40: 801.2326656 | O40: 76.92307692 | P40: 153.8461538 | Q40: 307.6923077 | R40: 461.5384615 | S40: 615.3846154
A41: 2026-04-24 | B41: 193388 | C41: 2185 | E41: 2025-03-31 | F41: 910 | G41: 22.72 | H41: 5.91 | J41: 200.2640845 | K41: 400.528169 | L41: 600.7922535 | M41: 801.056338 | O41: 76.98815567 | P41: 153.9763113 | Q41: 307.9526227 | R41: 461.928934 | S41: 615.9052453
A42: 2026-04-30 | B42: 245845 | C42: 2135 | E42: 2025-04-30 | F42: 908 | G42: 22.67 | H42: 5.9 | J42: 200.264667 | K42: 400.5293339 | L42: 600.7940009 | M42: 801.0586678 | O42: 76.94915254 | P42: 153.8983051 | Q42: 307.7966102 | R42: 461.6949153 | S42: 615.5932203
A43: 2026-05-08 | B43: 109130 | C43: 2250 | E43: 2025-05-29 | F43: 967 | G43: 24.14 | H43: 6.28 | J43: 200.2899751 | K43: 400.5799503 | L43: 600.8699254 | M43: 801.1599006 | O43: 76.99044586 | P43: 153.9808917 | Q43: 307.9617834 | R43: 461.9426752 | S43: 615.9235669
E44: 2025-06-30 | F44: 1060 | G44: 20.85 | H44: 6.02 | J44: 254.1966427 | K44: 508.3932854 | L44: 762.5899281 | M44: 1016.786571 | O44: 88.03986711 | P44: 176.0797342 | Q44: 352.1594684 | R44: 528.2392027 | S44: 704.3189369
E45: 2025-07-31 | F45: 1160 | G45: 22.82 | H45: 6.59 | J45: 254.1630149 | K45: 508.3260298 | L45: 762.4890447 | M45: 1016.65206 | O45: 88.01213961 | P45: 176.0242792 | Q45: 352.0485584 | R45: 528.0728376 | S45: 704.0971168
E46: 2025-08-29 | F46: 1160 | G46: 22.82 | H46: 6.59 | J46: 254.1630149 | K46: 508.3260298 | L46: 762.4890447 | M46: 1016.65206 | O46: 88.01213961 | P46: 176.0242792 | Q46: 352.0485584 | R46: 528.0728376 | S46: 704.0971168
E47: 2025-09-30 | F47: 1305 | G47: 25.68 | H47: 7.41 | J47: 254.088785 | K47: 508.1775701 | L47: 762.2663551 | M47: 1016.35514 | O47: 88.05668016 | P47: 176.1133603 | Q47: 352.2267206 | R47: 528.340081 | S47: 704.4534413
E48: 2025-10-31 | F48: 1500 | G48: 26.73 | H48: 8.49 | J48: 280.5836139 | K48: 561.1672278 | L48: 841.7508418 | M48: 1122.334456 | O48: 88.33922261 | P48: 176.6784452 | Q48: 353.3568905 | R48: 530.0353357 | S48: 706.7137809
E49: 2025-11-28 | F49: 1440 | G49: 25.66 | H49: 8.15 | J49: 280.5923617 | K49: 561.1847233 | L49: 841.777085 | M49: 1122.369447 | O49: 88.34355828 | P49: 176.6871166 | Q49: 353.3742331 | R49: 530.0613497 | S49: 706.7484663
E50: 2025-12-31 | F50: 1550 | G50: 25.26 | H50: 8.04 | J50: 306.8091845 | K50: 613.618369 | L50: 920.4275534 | M50: 1227.236738 | O50: 96.39303483 | P50: 192.7860697 | Q50: 385.5721393 | R50: 578.358209 | S50: 771.1442786
E51: 2026-01-30 | F51: 1775 | G51: 28.93 | H51: 9.21 | J51: 306.7749741 | K51: 613.5499482 | L51: 920.3249222 | M51: 1227.099896 | O51: 96.36264929 | P51: 192.7252986 | Q51: 385.4505972 | R51: 578.1758958 | S51: 770.9011944
E52: 2026-02-26 | F52: 1995 | G52: 32.52 | H52: 10.35 | J52: 306.7343173 | K52: 613.4686347 | L52: 920.202952 | M52: 1226.937269 | O52: 96.37681159 | P52: 192.7536232 | Q52: 385.5072464 | R52: 578.2608696 | S52: 771.0144928
E53: 2026-03-31 | F53: 1760 | G53: 28.69 | H53: 9.13 | J53: 306.7270826 | K53: 613.4541652 | L53: 920.1812478 | M53: 1226.90833 | O53: 96.38554217 | P53: 192.7710843 | Q53: 385.5421687 | R53: 578.313253 | S53: 771.0843373
E54: 2026-04-30 | F54: 2135 | G54: 34.8 | H54: 11.08 | J54: 306.7528736 | K54: 613.5057471 | L54: 920.2586207 | M54: 1227.011494 | O54: 96.34476534 | P54: 192.6895307 | Q54: 385.3790614 | R54: 578.0685921 | S54: 770.7581227
E55: 2026-05-29 | F55: 2250 | G55: 36.67 | H55: 11.67 | J55: 306.7902918 | K55: 613.5805836 | L55: 920.3708754 | M55: 1227.161167 | O55: 96.40102828 | P55: 192.8020566 | Q55: 385.6041131 | R55: 578.4061697 | S55: 771.2082262

Sheet 月營收
A1: 2330 台積電 | B1: 單位:佰萬
A2: 年月 | B2: 以合併為主單月營收(千元) | C2: 以合併為主累計營收(千元) | D2: 以合併為主單月營收與上月比％ | E2: 以合併為主單月營收成長率％ | F2: 合併營收(Y/N)
A3: 2026-03-31 | B3: 415191.699 | C3: 1134103.44 | D3: 30.7 | E3: 45.19 | H3: =IF(A3="","",YEAR(A3)&MONTH(A3)) -> 20263 | I3: =IF(B3="","",B3) -> 415191.699 | L3: =YEAR(A39) -> 2023 | M3: =YEAR(A27) -> 2024 | N3: =YEAR(A15) -> 2025 | O3: =YEAR(A3) -> 2026
A4: 2026-02-26 | B4: 317656.613 | C4: 718911.741 | D4: -20.83 | E4: 22.17 | H4: =IF(A4="","",YEAR(A4)&MONTH(A4)) -> 20262 | I4: =IF(B4="","",B4) -> 317656.613 | K4: 1 | L4: =IF(ISERROR(VLOOKUP($L$3&K4,$H:$I,2,0)),"",VLOOKUP($L$3&K4,$H:$I,2,0)) -> 200050.544 | M4: =IF(ISERROR(VLOOKUP($M$3&K4,$H:$I,2,0)),"",VLOOKUP($M$3&K4,$H:$I,2,0)) -> 215785.127 | N4: =IF(ISERROR(VLOOKUP($N$3&K4,$H:$I,2,0)),"",VLOOKUP($N$3&K4,$H:$I,2,0)) -> 293288.038 | O4: =IF(ISERROR(VLOOKUP($O$3&K4,$H:$I,2,0)),"",VLOOKUP($O$3&K4,$H:$I,2,0)) -> 401255.128
A5: 2026-01-30 | B5: 401255.128 | C5: 401255.128 | D5: 19.78 | E5: 36.81 | H5: 20261 | I5: 401255.128 | K5: 2 | L5: 163174.097 | M5: 181648.27 | N5: 260008.796 | O5: 317656.613
A6: 2025-12-31 | B6: 335003.568 | C6: 3809054.272 | D6: -2.51 | E6: 20.43 | H6: 202512 | I6: 335003.568 | K6: 3 | L6: 145408.332 | M6: 195210.804 | N6: 285956.83 | O6: 415191.699
A7: 2025-11-28 | B7: 343613.802 | C7: 3474050.704 | D7: -6.49 | E7: 24.47 | H7: 202511 | I7: 343613.802 | K7: 4 | L7: 147899.735 | M7: 236021.112 | N7: 349566.94
A8: 2025-10-31 | B8: 367473.051 | C8: 3130436.902 | D8: 11.03 | E8: 16.94 | H8: 202510 | I8: 367473.051 | K8: 5 | L8: 176537.345 | M8: 229620.372 | N8: 320515.951
A9: 2025-09-30 | B9: 330980.92 | C9: 2762963.851 | D9: -1.43 | E9: 31.41 | H9: 20259 | I9: 330980.92 | K9: 6 | L9: 156404.174 | M9: 207868.693 | N9: 263708.978
A10: 2025-08-29 | B10: 335771.691 | C10: 2431982.931 | D10: 3.9 | E10: 33.84 | H10: 20258 | I10: 335771.691 | K10: 7 | L10: 177616.22 | M10: 256953.058 | N10: 323165.707
A11: 2025-07-31 | B11: 323165.707 | C11: 2096211.24 | D11: 22.55 | E11: 25.77 | H11: 20257 | I11: 323165.707 | K11: 8 | L11: 188686.256 | M11: 250866.368 | N11: 335771.691
A12: 2025-06-30 | B12: 263708.978 | C12: 1773045.533 | D12: -17.72 | E12: 26.86 | H12: 20256 | I12: 263708.978 | K12: 9 | L12: 180430.282 | M12: 251872.717 | N12: 330980.92
A13: 2025-05-29 | B13: 320515.951 | C13: 1509336.555 | D13: -8.31 | E13: 39.59 | H13: 20255 | I13: 320515.951 | K13: 10 | L13: 243202.811 | M13: 314239.713 | N13: 367473.051
A14: 2025-04-30 | B14: 349566.94 | C14: 1188820.604 | D14: 22.24 | E14: 48.11 | H14: 20254 | I14: 349566.94 | K14: 11 | L14: 206026.179 | M14: 276058.358 | N14: 343613.802
A15: 2025-03-31 | B15: 285956.83 | C15: 839253.664 | D15: 9.98 | E15: 46.49 | H15: 20253 | I15: 285956.83 | K15: 12 | L15: 176299.866 | M15: 278163.107 | N15: 335003.568
A16: 2025-02-27 | B16: 260008.796 | C16: 553296.834 | D16: -11.35 | E16: 43.14 | H16: 20252 | I16: 260008.796
A17: 2025-01-22 | B17: 293288.038 | C17: 293288.038 | D17: 5.44 | E17: 35.92 | H17: 20251 | I17: 293288.038
A18: 2024-12-31 | B18: 278163.107 | C18: 2894307.699 | D18: 0.76 | E18: 57.78 | H18: 202412 | I18: 278163.107
A19: 2024-11-29 | B19: 276058.358 | C19: 2616144.592 | D19: -12.15 | E19: 33.99 | H19: 202411 | I19: 276058.358
A20: 2024-10-30 | B20: 314239.713 | C20: 2340086.234 | D20: 24.76 | E20: 29.21 | H20: 202410 | I20: 314239.713
A21: 2024-09-30 | B21: 251872.717 | C21: 2025846.521 | D21: 0.4 | E21: 39.6 | H21: 20249 | I21: 251872.717
A22: 2024-08-30 | B22: 250866.368 | C22: 1773973.804 | D22: -2.37 | E22: 32.95 | H22: 20248 | I22: 250866.368
A23: 2024-07-31 | B23: 256953.058 | C23: 1523107.436 | D23: 23.61 | E23: 44.67 | H23: 20247 | I23: 256953.058
A24: 2024-06-28 | B24: 207868.693 | C24: 1266154.378 | D24: -9.47 | E24: 32.9 | H24: 20246 | I24: 207868.693
A25: 2024-05-31 | B25: 229620.372 | C25: 1058285.685 | D25: -2.71 | E25: 30.07 | H25: 20245 | I25: 229620.372
A26: 2024-04-30 | B26: 236021.112 | C26: 828665.313 | D26: 20.91 | E26: 59.58 | H26: 20244 | I26: 236021.112
A27: 2024-03-29 | B27: 195210.804 | C27: 592644.201 | D27: 7.47 | E27: 34.25 | H27: 20243 | I27: 195210.804
A28: 2024-02-29 | B28: 181648.27 | C28: 397433.397 | D28: -15.82 | E28: 11.32 | H28: 20242 | I28: 181648.27
A29: 2024-01-31 | B29: 215785.127 | C29: 215785.127 | D29: 22.4 | E29: 7.87 | H29: 20241 | I29: 215785.127
A30: 2023-12-29 | B30: 176299.866 | C30: 2161735.841 | D30: -14.43 | E30: -8.44 | H30: 202312 | I30: 176299.866
A31: 2023-11-30 | B31: 206026.179 | C31: 1985435.975 | D31: -15.29 | E31: -7.49 | H31: 202311 | I31: 206026.179
A32: 2023-10-31 | B32: 243202.811 | C32: 1779409.796 | D32: 34.79 | E32: 15.66 | H32: 202310 | I32: 243202.811
A33: 2023-09-28 | B33: 180430.282 | C33: 1536206.985 | D33: -4.38 | E33: -13.36 | H33: 20239 | I33: 180430.282
A34: 2023-08-31 | B34: 188686.256 | C34: 1355776.703 | D34: 6.23 | E34: -13.5 | H34: 20238 | I34: 188686.256
A35: 2023-07-31 | B35: 177616.22 | C35: 1167090.447 | D35: 13.56 | E35: -4.9 | H35: 20237 | I35: 177616.22
A36: 2023-06-30 | B36: 156404.174 | C36: 989474.227 | D36: -11.4 | E36: -11.07 | H36: 20236 | I36: 156404.174
A37: 2023-05-31 | B37: 176537.345 | C37: 833070.053 | D37: 19.36 | E37: -4.94 | H37: 20235 | I37: 176537.345
A38: 2023-04-28 | B38: 147899.735 | C38: 656532.708 | D38: 1.71 | E38: -14.29 | H38: 20234 | I38: 147899.735
A39: 2023-03-31 | B39: 145408.332 | C39: 508632.973 | D39: -10.89 | E39: -15.44 | H39: 20233 | I39: 145408.332
A40: 2023-02-24 | B40: 163174.097 | C40: 363224.641 | D40: -18.43 | E40: 11.05 | H40: 20232 | I40: 163174.097
A41: 2023-01-31 | B41: 200050.544 | C41: 200050.544 | D41: 3.89 | E41: 16.19 | H41: 20231 | I41: 200050.544
I44: =IF(B44="","",B44) -> 

Sheet 十大股東
A1: 2330 台積電
A2: 年月日 | B2: 持股人姓名 | C2: 身份別 | D2: 持股數 | E2: 持股率 | F2: 選任持股比率 | G2: 質押比率% | H2: 十大股東
A3: 2026-03-31 | B3: 花旗台積存託 花旗台積存託 | C3: 大股東 | D3: 5313844 | E3: 20.49 | F3: 0 | G3: 0 | H3: 1
A4: 2026-03-31 | B4: 摩根大通歐洲 摩根大通歐洲 | C4: 大股東 | D4: 189345 | E4: 0.73 | F4: 0 | G4: 0 | H4: 10
A5: 2026-03-31 | B5: 行政院國發會 葉俊顯 | C5: 董事 | D5: 1653710 | E5: 6.38 | F5: 6.38 | G5: 0 | H5: 2
A6: 2026-03-31 | B6: 花旗台新加坡 花旗台新加坡 | C6: 大股東 | D6: 682007 | E6: 2.63 | F6: 0 | G6: 0 | H6: 3
A7: 2026-03-31 | B7: 花旗託管挪威 花旗託管挪威 | C7: 大股東 | D7: 461734 | E7: 1.78 | F7: 0 | G7: 0 | H7: 4
A8: 2026-03-31 | B8: 大通先進星光 大通先進星光 | C8: 大股東 | D8: 337168 | E8: 1.3 | F8: 0 | G8: 0 | H8: 5
A9: 2026-03-31 | B9: 摩根梵市場股 摩根梵市場股 | C9: 大股東 | D9: 311574 | E9: 1.2 | F9: 0 | G9: 0 | H9: 6
A10: 2026-03-31 | B10: 新制勞退基金 新制勞退基金 | C10: 大股東 | D10: 302277 | E10: 1.17 | F10: 0 | G10: 0 | H10: 7
A11: 2026-03-31 | B11: 中信卓越50證 中信卓越50證 | C11: 大股東 | D11: 233901 | E11: 0.9 | F11: 0 | G11: 0 | H11: 8
A12: 2026-03-31 | B12: 渣打iShare指 渣打iShare指 | C12: 大股東 | D12: 217727 | E12: 0.84 | F12: 0 | G12: 0 | H12: 9

Sheet 合併財報(累計)
A1: 2330 台積電
A2: Data Field | B2: 2023-12-29 | C2: 2024-12-31 | D2: 2025-12-31 | E2: Data Field | F2: 2025-12-31
A3: 合併(Y/N) | B3: Y | C3: Y | D3: Y | E3: 合併(Y/N) | F3: Y
A4: 現金及約當現金 | B4: 1465427753 | C4: 2127627043 | D4: 2767856402 | E4: 現金及約當現金 | F4: 2767856402
A5: 透過損益按公允價值衡量之金融資產－流動 | B5: 924636 | C5: 207700 | D5: 100200 | E5: 透過損益按公允價值衡量之金融資產－流動 | F5: 100200
A6: 透過其他綜合損益按公允價值衡量之金融資產－流動 | B6: 154530830 | C6: 192202657 | D6: 175692690 | E6: 透過其他綜合損益按公允價值衡量之金融資產－流動 | F6: 175692690
A7: 按攤銷後成本衡量之金融資產－流動 | B7: 66761221 | C7: 101971322 | D7: 124945519 | E7: 按攤銷後成本衡量之金融資產－流動 | F7: 124945519
A8: 避險之金融資產－流動 | B8: 0 | C8: 10959 | D8: 0 | E8: 避險之金融資產－流動 | F8: 0
A9: 應收帳款及票據 | B9: 201938365 | C9: 272087708 | D9: 281791053 | E9: 應收帳款及票據 | F9: 281791053
A10: 其他應收款 | B10: 71871 | C10: 251 | D10: 268115 | E10: 其他應收款 | F10: 268115
A11: 存貨 | B11: 250997088 | C11: 287868810 | D11: 288109485 | E11: 存貨 | F11: 288109485
A12: 其他金融資產－流動 | B12: 27158766 | C12: 63138316 | D12: 59702922 | E12: 其他金融資產－流動 | F12: 59702922
A13: 其他流動資產 | B13: 26222380 | C13: 43237354 | D13: 118664431 | E13: 其他流動資產 | F13: 118664431
A14: 流動資產 | B14: 2194032910 | C14: 3088352120 | D14: 3817130817 | E14: 流動資產 | F14: 3817130817
A15: 透過損益按公允價值衡量之金融資產－非流動 | B15: 13417457 | C15: 15199842 | D15: 15032128 | E15: 透過損益按公允價值衡量之金融資產－非流動 | F15: 15032128
A16: 透過其他綜合損益按公允價值衡量之金融資產－非流動 | B16: 7208655 | C16: 7822884 | D16: 8797170 | E16: 透過其他綜合損益按公允價值衡量之金融資產－非流動 | F16: 8797170
A17: 按攤銷後成本衡量之金融資產－非流動 | B17: 79199367 | C17: 88596542 | D17: 110507804 | E17: 按攤銷後成本衡量之金融資產－非流動 | F17: 110507804
A18: 避險之金融資產－非流動 | B18: 0 | C18: 0 | D18: 0 | E18: 避險之金融資產－非流動 | F18: 0
A19: 採權益法之長期股權投資 | B19: 29616638 | C19: 37421105 | D19: 38033271 | E19: 採權益法之長期股權投資 | F19: 38033271
A20: 不動產廠房及設備 | B20: 3064474984 | C20: 3234980070 | D20: 3691840916 | E20: 不動產廠房及設備 | F20: 3691840916
A21: 商譽及無形資產合計 | B21: 22766744 | C21: 26282520 | D21: 24952615 | E21: 商譽及無形資產合計 | F21: 24952615
A22: 遞延所得稅資產 | B22: 64175787 | C22: 65943300 | D22: 62940253 | E22: 遞延所得稅資產 | F22: 62940253
A23: 其他非流動資產 | B23: 57478673 | C23: 127339617 | D23: 163788904 | E23: 其他非流動資產 | F23: 163788904
A24: 非流動資產 | B24: 3338338305 | C24: 3603585880 | D24: 4115893061 | E24: 非流動資產 | F24: 4115893061
A25: 資產總額 | B25: 5532371215 | C25: 6691938000 | D25: 7933023878 | E25: 資產總額 | F25: 7933023878
A26: 短期借款 | B26: 0 | C26: 0 | D26: 0 | E26: 短期借款 | F26: 0
A27: 透過損益按公允價值衡量之金融負債－流動 | B27: 121412 | C27: 466539 | D27: 3083883 | E27: 透過損益按公允價值衡量之金融負債－流動 | F27: 3083883
A28: 應付公司債－非流動 | B28: 913899843 | C28: 926604506 | D28: 856227503 | E28: 應付公司債－非流動 | F28: 856227503
A29: 避險之金融負債－流動 | B29: 27334164 | C29: 0 | D29: 817 | E29: 避險之金融負債－流動 | F29: 817
A30: 合約負債－流動 | B30: 52736430 | C30: 89435361 | D30: 49954384 | E30: 合約負債－流動 | F30: 49954384
A31: 應付帳款及票據 | B31: 57293057 | C31: 74226559 | D31: 84330325 | E31: 應付帳款及票據 | F31: 84330325
A32: 其他應付款 | B32: 423960584 | C32: 531376653 | D32: 630216526 | E32: 其他應付款 | F32: 630216526
A33: 當期所得稅負債 | B33: 98912902 | C33: 147438423 | D33: 202337872 | E33: 當期所得稅負債 | F33: 202337872
A34: 負債準備－流動 | B34: 0 | C34: 0 | D34: 0 | E34: 負債準備－流動 | F34: 0
A35: 一年內到期長期負債 | B35: 9293266 | C35: 59857879 | D35: 136925710 | E35: 一年內到期長期負債 | F35: 136925710
A36: 其他流動負債 | B36: 241120950 | C36: 358674518 | D36: 347336757 | E36: 其他流動負債 | F36: 347336757
A37: 流動負債 | B37: 913583316 | C37: 1264524964 | D37: 1458019289 | E37: 流動負債 | F37: 1458019289
A38: Data Field | B38: 2023-12-29 | C38: 2024-12-31 | D38: 2025-12-31 | E38: Data Field | F38: 2025-12-31
A39: 應付公司債－非流動 | B39: 913899843 | C39: 926604506 | D39: 856227503 | E39: 應付公司債－非流動 | F39: 856227503
A40: 銀行借款－非流動 | B40: 4382965 | C40: 31824386 | D40: 39834496 | E40: 銀行借款－非流動 | F40: 39834496
A41: 遞延所得稅 | B41: 53856 | C41: 3988482 | D41: 3888795 | E41: 遞延所得稅 | F41: 3888795
A42: 其他非流動負債 | B42: 179249329 | C42: 105083798 | D42: 76651234 | E42: 其他非流動負債 | F42: 76651234
A43: 非流動負債 | B43: 1135525052 | C43: 1103837171 | D43: 1014209306 | E43: 非流動負債 | F43: 1014209306
A44: 負債總額 | B44: 2049108368 | C44: 2368362135 | D44: 2472228595 | E44: 負債總額 | F44: 2472228595
A45: 普通股股本 | B45: 259320710 | C45: 259327332 | D45: 259325245 | E45: 普通股股本 | F45: 259325245
A46: 特別股股本 | B46: 0 | C46: 0 | D46: 0 | E46: 特別股股本 | F46: 0
A47: 股本 | B47: 259320710 | C47: 259327332 | D47: 259325245 | E47: 股本 | F47: 259325245
A48: 資本公積合計 | B48: 69876381 | C48: 73260765 | D48: 73445601 | E48: 資本公積合計 | F48: 73445601
A49: 法定盈餘公積 | B49: 311146899 | C49: 311146899 | D49: 311146899 | E49: 法定盈餘公積 | F49: 311146899
A50: 特別盈餘公積 | B50: 0 | C50: 0 | D50: 87284496 | E50: 特別盈餘公積 | F50: 87284496
A51: 未分配盈餘 | B51: 2846883893 | C51: 3606105124 | D51: 4705070165 | E51: 未分配盈餘 | F51: 4705070165
A52: 保留盈餘 | B52: 3158030792 | C52: 3917252023 | D52: 5103501560 | E52: 保留盈餘 | F52: 5103501560
A53: 其他權益 | B53: -28314256 | C53: 38705047 | D53: -16676412 | E53: 其他權益 | F53: -16676412
A54: 母公司股東權益合計 | B54: 3458913627 | C54: 4288545167 | D54: 5419595994 | E54: 母公司股東權益合計 | F54: 5419595994
A55: 非控制權益 | B55: 24349220 | C55: 35030698 | D55: 41199289 | E55: 非控制權益 | F55: 41199289
A56: 股東權益總額 | B56: 3483262847 | C56: 4323575865 | D56: 5460795283 | E56: 股東權益總額 | F56: 5460795283
A57: 負債及股東權益總額 | B57: 5532371215 | C57: 6691938000 | D57: 7933023878 | E57: 負債及股東權益總額 | F57: 7933023878
A58: Data Field | B58: 2023-12-29 | C58: 2024-12-31 | D58: 2025-12-31
A59: 營業收入淨額 | B59: 2161735841 | C59: 2894307699 | D59: 3809054272
A60: 營業成本 | B60: 986625213 | C60: 1269954135 | D60: 1527760293
A61: 營業毛利 | B61: 1175110628 | C61: 1624353564 | D61: 2281293979
A62: 聯屬公司已（未）實現銷貨利益 | B62: 0 | C62: 0 | D62: 0
A63: 已實現銷貨毛利 | B63: 1175110628 | C63: 1624353564 | D63: 2281293979
A64: 營業費用 | B64: 253833716 | C64: 301070315 | D64: 345649630
A65: 推銷費用 | B65: 10590705 | C65: 13143524 | D65: 16918076
A66: 管理費用 | B66: 60872841 | C66: 83744968 | D66: 82304290
A67: 研究發展費 | B67: 182370170 | C67: 204181823 | D67: 246427264
A68: 其他費用 | B68: 0 | C68: 0 | D68: 0
A69: 其他收益及費損淨額 | B69: 188694 | C69: -1230199 | D69: 447328
A70: 營業利益 | B70: 921465606 | C70: 1322053050 | D70: 1936091677
A71: 採權益法之關聯企業及合資損益之份額 | B71: 4655098 | C71: 4879367 | D71: 5496594
A72: 其他收入 | B72: 60773885 | C72: 87780278 | D72: 106330810
A73: 其他利益及損失 | B73: 4311840 | C73: 1671167 | D73: 6110200
A74: 財務成本 | B74: 11999360 | C74: 10495320 | D74: 12370387
A75: 採用權益法認列之關聯企業及合資損失之份額
A76: 採用權益法認列之關聯企業及合資利益之份額 | B76: 4655098 | C76: 4879367 | D76: 5496594
A77: 預期信用減損（損失）利益 | B77: -35745 | C77: -49907 | D77: 3946
A78: 營業外收入及支出 | B78: 57705718 | C78: 83785585 | D78: 105571163
A79: 稅前淨利 | B79: 979171324 | C79: 1405838635 | D79: 2041662840
A80: 所得稅費用 | B80: 141403807 | C80: 233406876 | D80: 326266060
A81: 繼續營業單位損益 | B81: 837767517 | C81: 1172431759 | D81: 1715396780
A82: 確定福利計畫之再衡量數－不重分類－OCI | B82: -623356 | C82: 144365 | D82: -693271
A83: 透過FVOCI衡量權益工具投資未實現評價損益－不重分類－OCI | B83: 1954563 | C83: 5091916 | D83: 745272
A84: 避險工具之損益－不重分類－OCI | B84: 39898 | C84: 5041 | D84: -31030
A85: 採權益法認列關聯企業及合資其他綜合損益份額－不重分－OCI | B85: 42554 | C85: -69435 | D85: -113192
A86: 與其他綜合損益組成部分相關之所得稅－可重分類－OCI | B86: 0 | C86: 0 | D86: 0
A87: 後續可能重分類至損益之項目－OCI | B87: -10351949 | C87: 66452628 | D87: -56372952
A88: 國外營運機構財務報表換算之兌換差額－可重分類－OCI | B88: -14464353 | C88: 64299685 | D88: -60951662
A89: 與其他綜合損益組成部分相關之所得稅－可重分類－OCI_1 | B89: 0 | C89: 0 | D89: 0
A90: Data Field | B90: 2023-12-29 | C90: 2024-12-31 | D90: 2025-12-31
A91: 其他綜合損益－OCI | B91: -8813644 | C91: 71585646 | D91: -56326519
A92: 本期綜合損益總額 | B92: 828953873 | C92: 1244017405 | D92: 1659070261
A93: 歸屬母公司淨利（損） | B93: 838497664 | C93: 1173267703 | D93: 1717882627
A94: 歸屬非控制權益淨利（損） | B94: -730147 | C94: -835944 | D94: -2485847
A95: 綜合損益歸屬母公司 | B95: 830509542 | C95: 1245836616 | D95: 1661253891
A96: 綜合損益歸屬非控制權益 | B96: -1555669 | C96: -1819211 | D96: -2183630
A97: 每股盈餘 | B97: 32.34 | C97: 45.25 | D97: 66.26
A98: 每股盈餘－完全稀釋 | B98: 32.34 | C98: 45.25 | D98: 66.25

Sheet 合併財報(單季)
A1: 2330 台積電
A2: Data Field | B2: 2024-09-30 | C2: 2024-12-31 | D2: 2025-03-31 | E2: 2025-06-30 | F2: 2025-09-30 | G2: 2025-12-31
A3: 營業收入淨額 | B3: 759692143 | C3: 868461178 | D3: 839253664 | E3: 933791869 | F3: 989918318 | G3: 1046090421
A4: 營業成本 | B4: 320346477 | C4: 356083027 | D4: 345858588 | E4: 386422631 | F4: 401375489 | G4: 394103585
A5: 營業毛利 | B5: 439345666 | C5: 512378151 | D5: 493395076 | E5: 547369238 | F5: 588542829 | G5: 651986836
A6: 營業費用 | B6: 79078904 | C6: 86338820 | D6: 85186056 | E6: 84508339 | F6: 87764445 | G6: 88190790
A7: 營業利益 | B7: 360766289 | C7: 425712913 | D7: 407080808 | E7: 463423638 | F7: 500684818 | G7: 564902413
A8: 採權益法之關聯企業及合資損益之份額 | B8: 1560733 | C8: 1288408 | D8: 1368307 | E8: 1220948 | F8: 1424738 | G8: 1482601
A9: 其他收入 | B9: 22642575 | C9: 24524163 | D9: 24910821 | E9: 25604041 | F9: 26260563 | G9: 29555385
A10: 其他利益及損失 | B10: 1869558 | C10: -189706 | D10: 204390 | E10: 6460812 | F10: -42790 | G10: -512212
A11: 財務成本 | B11: 2635790 | C11: 2523135 | D11: 2677274 | E11: 3691095 | F11: 2958568 | G11: 3043450
A12: 預期信用減損（損失）利益 | B12: -16513 | C12: -14639 | D12: 8360 | E12: 16860 | F12: 262 | G12: -21536
A13: 營業外收入及支出 | B13: 23420563 | C13: 23085091 | D13: 23814604 | E13: 29611566 | F13: 24684205 | G13: 27460788
A14: 稅前淨利 | B14: 384186852 | C14: 448798004 | D14: 430895412 | E14: 493035204 | F14: 525369023 | G14: 592363201
A15: 所得稅費用 | B15: 59106682 | C15: 74329116 | D15: 70162751 | E15: 95541780 | F15: 73613661 | G15: 86947868
A16: 繼續營業單位損益 | B16: 325080170 | C16: 374468888 | D16: 360732661 | E16: 397493424 | F16: 451755362 | G16: 505415333
A17: 其他綜合損益－OCI | B17: -21056278 | C17: 37903377 | D17: 31896928 | E17: -254501881 | F17: 95201936 | G17: 71076498
A18: 本期綜合損益總額 | B18: 304023892 | C18: 412372265 | D18: 392629589 | E18: 142991543 | F18: 546957298 | G18: 576491831
A19: 歸屬母公司淨利（損） | B19: 325257571 | C19: 374679727 | D19: 361564128 | E19: 398273102 | F19: 452301407 | G19: 505743990
A20: 歸屬非控制權益淨利（損） | B20: -177401 | C20: -210839 | D20: -831467 | E20: -779678 | F20: -546045 | G20: -328657
A21: 綜合損益歸屬母公司 | B21: 302100323 | C21: 414072301 | D21: 391813092 | E21: 146202878 | F21: 546571990 | G21: 576665931
A22: 綜合損益歸屬非控制權益 | B22: 1923569 | C22: -1700036 | D22: 816497 | E22: -3211335 | F22: 385308 | G22: -174100
A23: 每股盈餘 | B23: 12.55 | C23: 14.45 | D23: 13.95 | E23: 15.36 | F23: 17.44 | G23: 19.51
A24: 每股盈餘－完全稀釋 | B24: 12.54 | D24: 13.94 | E24: 15.36 | F24: 17.44
A25: Data Field | B25: 2024-09-30 | C25: 2024-12-31 | D25: 2025-03-31 | E25: 2025-06-30 | F25: 2025-09-30 | G25: 2025-12-31
A26: 來自營運之現金流量 | B26: 391992467 | C26: 620205283 | D26: 625573672 | E26: 497064085 | F26: 426829081 | G26: 725508787
A27: 投資活動之現金流量 | B27: -195509921 | C27: -311918527 | D27: -290192426 | E27: -228488307 | F27: -259752617 | G27: -365960057
A28: 籌資活動之現金流量 | B28: -83638287 | C28: -100732423 | D28: -84665592 | E28: -119700601 | F28: -128293126 | G28: -107685373
A29: 匯率影響數 | B29: -25191055 | C29: 33292155 | D29: 16461553 | E29: -179155087 | F29: 67451706 | G29: 45233661
A30: 本期產生現金流量 | B30: 87653204 | C30: 240846488 | D30: 267177207 | E30: -30279910 | F30: 106235044 | G30: 297097018
A31: 期初現金及約當現金 | B31: 1799127351 | C31: 1886780555 | D31: 2127627043 | E31: 2394804250 | F31: 2364524340 | G31: 2470759384
A32: 期末現金及約當現金 | B32: 1886780555 | C32: 2127627043 | D32: 2394804250 | E32: 2364524340 | F32: 2470759384 | G32: 2767856402
A33: 營收成長率 | B33: 1900-02-07T22:48:00 | C33: 1900-02-07T20:09:36 | D33: 1900-02-10T14:38:24 | E33: 1900-02-07T15:36:00 | F33: 1900-01-30T07:26:24 | G33: 1900-01-20T10:48:00
A34: 營業毛利成長率 | B34: 48.11 | C34: 54.44 | D34: 56.88 | E34: 52.84 | F34: 33.96 | G34: 27.25
A35: 營業利益成長率 | B35: 58.19 | C35: 63.61 | D35: 63.47 | E35: 61.72 | F35: 38.78 | G35: 32.7
A36: 稅前淨利成長率 | B36: 58.79 | C36: 61.28 | D36: 61.66 | E36: 60.96 | F36: 36.75 | G36: 31.99
A37: 稅後淨利成長率 | B37: 54.22 | C37: 57.14 | D37: 60.17 | E37: 60.5 | F37: 38.97 | G37: 34.97
A38: 營業毛利率 | B38: 57.83 | C38: 59 | D38: 58.79 | E38: 58.62 | F38: 59.45 | G38: 62.33
A39: 營業利益率 | B39: 47.49 | C39: 49.02 | D39: 48.51 | E39: 49.63 | F39: 50.58 | G39: 54
A40: 稅前淨利率 | B40: 50.57 | C40: 51.68 | D40: 51.34 | E40: 52.8 | F40: 53.07 | G40: 56.63
A41: 稅後淨利率 | B41: 42.79 | C41: 43.12 | D41: 42.98 | E41: 42.57 | F41: 45.64 | G41: 48.31
A42: 稅後淨利率 | B42: 39.39 | C42: 40.51 | D42: 42.98 | E42: 42.76 | F42: 43.79 | G42: 45.03

Sheet IFRS說明
A1: 2330
A2: 年月 | B2: 序碼 | C2: 內文 | D2: 說明日
A3: 2012-12-28

Sheet IFRS_BS
A1: 2330 台積電
A2: Data Field | B2: 2023-12-29 | C2: 2024-12-31 | D2: 2025-03-31 | E2: Data Field | F2: 2020-12-31
A3: 現金及約當現金 | B3: 1465427753 | C3: 2127627043 | D3: 2394804250 | E3: 現金及約當現金
A4: 透過損益按公允價值衡量之金融資產－流動 | B4: 924636 | C4: 207700 | D4: 54369 | E4: 透過損益按公允價值衡量之金融資產－流動
A5: 透過其他綜合損益按公允價值衡量之金融資產－流動 | B5: 154530830 | C5: 192202657 | D5: 189928311 | E5: 透過其他綜合損益按公允價值衡量之金融資產－流動
A6: 按攤銷後成本衡量之金融資產－流動 | B6: 66761221 | C6: 101971322 | D6: 118298376 | E6: 按攤銷後成本衡量之金融資產－流動
A7: 避險之金融資產－流動 | B7: 0 | C7: 10959 | D7: 0 | E7: 避險之金融資產－流動
A8: 合約資產－流動 | B8: 0 | C8: 0 | D8: 0 | E8: 合約資產－流動
A9: 應收帳款及票據 | B9: 201938365 | C9: 272087708 | D9: 243949322 | E9: 應收帳款及票據
A10: 其他應收款 | B10: 71871 | C10: 251 | D10: 252 | E10: 其他應收款
A11: 存貨 | B11: 250997088 | C11: 287868810 | D11: 293387615 | E11: 存貨
A12: 預付費用及預付款 | B12: 0 | C12: 0 | D12: 0 | E12: 預付費用及預付款
A13: 待出售非流動資產 | B13: 0 | C13: 0 | D13: 0 | E13: 待出售非流動資產
A14: 其他流動資產 | B14: 26222380 | C14: 43237354 | D14: 45703772 | E14: 其他流動資產
A15: 透過損益按公允價值衡量之金融資產－非流動 | B15: 13417457 | C15: 15199842 | D15: 15485300 | E15: 透過損益按公允價值衡量之金融資產－非流動
A16: 透過其他綜合損益按公允價值衡量之金融資產－非流動 | B16: 7208655 | C16: 7822884 | D16: 8337662 | E16: 透過其他綜合損益按公允價值衡量之金融資產－非流動
A17: 按攤銷後成本衡量之金融資產－非流動 | B17: 79199367 | C17: 88596542 | D17: 98203676 | E17: 按攤銷後成本衡量之金融資產－非流動
A18: 合約資產－非流動 | B18: 0 | C18: 0 | D18: 0 | E18: 合約資產－非流動
A19: 採權益法之長期股權投資 | B19: 29616638 | C19: 37421105 | D19: 38766658 | E19: 採權益法之長期股權投資
A20: 不動產廠房及設備 | B20: 3064474984 | C20: 3234980070 | D20: 3400806154 | E20: 不動產廠房及設備
A21: 商譽淨額 | B21: 5796438 | C21: 6070864 | D21: 6130203 | E21: 商譽淨額
A22: 遞延所得稅資產 | B22: 64175787 | C22: 65943300 | D22: 66666777 | E22: 遞延所得稅資產
A23: 投資性不動產淨額 | B23: 0 | C23: 0 | D23: 0 | E23: 投資性不動產淨額
A24: 其他非流動資產－其他 | B24: 17053843 | C24: 87211226 | D24: 92603552 | E24: 其他非流動資產－其他
A25: 非流動資產 | B25: 3338338305 | C25: 3603585880 | D25: 3787623538 | E25: 非流動資產
A26: 短期借款 | B26: 0 | C26: 0 | D26: 0 | E26: 短期借款
A27: 透過損益按公允價值衡量之金融負債－流動 | B27: 121412 | C27: 466539 | D27: 2069289 | E27: 透過損益按公允價值衡量之金融負債－流動
A28: 避險之金融負債－流動 | B28: 27334164 | C28: 0 | D28: 3462 | E28: 避險之金融負債－流動
A29: 按攤銷後成本衡量之金融負債－流動 | B29: 0 | C29: 0 | D29: 0 | E29: 按攤銷後成本衡量之金融負債－流動
A30: 合約負債－流動 | B30: 52736430 | C30: 89435361 | D30: 102047887 | E30: 合約負債－流動
A31: 應付帳款及票據 | B31: 57293057 | C31: 74226559 | D31: 76853628 | E31: 應付帳款及票據
A32: 其他應付款 | B32: 423960584 | C32: 531376653 | D32: 566040343 | E32: 其他應付款
A33: 負債準備－流動 | B33: 0 | C33: 0 | D33: 0 | E33: 負債準備－流動
A34: 其他金融負債－流動 | B34: 0 | C34: 0 | D34: 0 | E34: 其他金融負債－流動
A35: 一年內到期長期負債 | B35: 9293266 | C35: 59857879 | D35: 61771648 | E35: 一年內到期長期負債
A36: 其他流動負債 | B36: 241120950 | C36: 358674518 | D36: 370536217 | E36: 其他流動負債
A37: 透過損益按公允價值衡量之金融負債－非流動 | B37: 0 | C37: 0 | D37: 0 | E37: 透過損益按公允價值衡量之金融負債－非流動
A38: 避險之金融負債－非流動 | B38: 0 | C38: 0 | D38: 0 | E38: 避險之金融負債－非流動
A39: 按攤銷後成本衡量之金融負債－非流動 | B39: 0 | C39: 0 | D39: 0 | E39: 按攤銷後成本衡量之金融負債－非流動
A40: 應付公司債－非流動 | B40: 913899843 | C40: 926604506 | D40: 948256974 | E40: 應付公司債－非流動
A41: 銀行借款－非流動 | B41: 4382965 | C41: 31824386 | D41: 38726925 | E41: 銀行借款－非流動
A42: 其他長期借款－非流動 | B42: 0 | C42: 0 | D42: 0 | E42: 其他長期借款－非流動
A43: 負債準備－非流動 | B43: 0 | C43: 0 | D43: 0 | E43: 負債準備－非流動
A44: 應計退休金負債 | B44: 9257224 | C44: 7580657 | D44: 5378586 | E44: 應計退休金負債
A45: 遞延所得稅 | B45: 53856 | C45: 3988482 | D45: 3968524 | E45: 遞延所得稅
A46: 其他非流動負債 | B46: 179249329 | C46: 105083798 | D46: 106407135 | E46: 其他非流動負債
A47: 普通股股本 | B47: 259320710 | C47: 259327332 | D47: 259326155 | E47: 普通股股本
A48: 特別股股本 | B48: 0 | C48: 0 | D48: 0 | E48: 特別股股本
A49: 資本公積－發行溢價 | B49: 33299225 | C49: 33700961 | D49: 34477418 | E49: 資本公積－發行溢價
A50: 法定盈餘公積 | B50: 311146899 | C50: 311146899 | D50: 311146899 | E50: 法定盈餘公積
A51: 特別盈餘公積 | B51: 0 | C51: 0 | D51: 0 | E51: 特別盈餘公積
A52: 國外營運機構財務報表換算之兌換差額 | B52: -25316769 | C52: 40262995 | D52: 68922015 | E52: 國外營運機構財務報表換算之兌換差額
A53: 透過其他綜合損益按公允價值衡量之金融資產未實現損益 | B53: -4099928 | C53: -1160176 | D53: 279944 | E53: 透過其他綜合損益按公允價值衡量之金融資產未實現損益
A54: 指定按公允價值衡量之金融負債信用風險變動影響數 | B54: 0 | C54: 0 | D54: 0 | E54: 指定按公允價值衡量之金融負債信用風險變動影響數
A55: 確定福利計畫再衡量數 | B55: 0 | C55: 0 | D55: 0 | E55: 確定福利計畫再衡量數
A56: 避險工具損益 | B56: 1395875 | C56: 1310307 | D56: 1305307 | E56: 避險工具損益
A57: 非控制權益 | B57: 24349220 | C57: 35030698 | D57: 37461877 | E57: 非控制權益
A58: 股東權益總額 | B58: 3483262847 | C58: 4323575865 | D58: 4601624457 | E58: 股東權益總額
G74: =83-55 -> 28

Sheet IFRS_note
A1: 2330 台積電
A2: Data Field | B2: 2024-12-31 | C2: 2025-03-31 | D2: 2025-06-30 | E2: 2025-09-30 | F2: 2025-12-31
A3: 財報附註TEJ是否完成Y/N | B3: Y | C3: Y | D3: Y | E3: Y | F3: Y
A4: 存貨費損─呆滯損失 | B4: 0 | C4: 0 | D4: 0 | E4: 0 | F4: 0
A5: 存貨費損─少/多分攤 | B5: 0 | C5: 0 | D5: 0 | E5: 0 | F5: 0
A6: 存貨費損─盤盈/虧 | B6: 0 | C6: 0 | D6: 0 | E6: 0 | F6: 0
A7: 存貨費損─報廢 | B7: 0 | C7: 0 | D7: 0 | E7: 0 | F7: 0
A8: 存貨費損─進貨合約損失 | B8: 0 | C8: 0 | D8: 0 | E8: 0 | F8: 0
A9: 存貨費損─下腳及癈料收 | B9: 0 | C9: 0 | D9: 0 | E9: 0 | F9: 0
A10: 存貨費損─其他 | B10: 0 | C10: 0 | D10: 0 | E10: 0 | F10: 0
A11: 存貨相關費損合計 | B11: 0 | C11: 0 | D11: 0 | E11: 0 | F11: 0
A12: 投資性不動產淨額 | B12: 0 | C12: 0 | D12: 0 | E12: 0 | F12: 0
A13: 投資性不動產─成本 | B13: 0 | C13: 0 | D13: 0 | E13: 0 | F13: 0
A14: 投資性不動產─重估增值 | B14: 0 | C14: 0 | D14: 0 | E14: 0 | F14: 0
A15: 投資性不動產-累計公允價值變動數 | B15: 0 | C15: 0 | D15: 0 | E15: 0 | F15: 0
A16: 投資性不動產─累計折舊 | B16: 0 | C16: 0 | D16: 0 | E16: 0 | F16: 0
A17: 投資性不動產─累計減損 | B17: 0 | C17: 0 | D17: 0 | E17: 0 | F17: 0
A18: 投資性不動產公允價值
A19: 員工福利負債準備─流動 | B19: 0 | C19: 0 | D19: 0 | E19: 0 | F19: 0
A20: 保固之短期負債準備 | B20: 0 | C20: 0 | D20: 0 | E20: 0 | F20: 0
A21: 重組之短期負債準備 | B21: 0 | C21: 0 | D21: 0 | E21: 0 | F21: 0
A22: 有待法律程序決定之短期負債準備 | B22: 0 | C22: 0 | D22: 0 | E22: 0 | F22: 0
A23: 虧損性合約之短期負債準備 | B23: 0 | C23: 0 | D23: 0 | E23: 0 | F23: 0
A24: 除役、復原及修復成本之短期負債準備 | B24: 0 | C24: 0 | D24: 0 | E24: 0 | F24: 0
A25: 銷貨退回及折讓之短期負債準備 | B25: 0 | C25: 0 | D25: 0 | E25: 0 | F25: 0
A26: 保證合約之短期負債準備 | B26: 0 | C26: 0 | D26: 0 | E26: 0 | F26: 0
A27: 其他短期負債準備 | B27: 0 | C27: 0 | D27: 0 | E27: 0 | F27: 0
A28: 長期借款─銀行借款 | B28: 0 | C28: 0 | D28: 0 | E28: 0 | F28: 0
A29: 長期負債─債券 | B29: 983752385 | C29: 1007648067 | D29: 940825442 | E29: 955192812 | F29: 992033491
A30: 公司債─不可轉換債 | B30: 983752385 | C30: 1007648067 | D30: 940825442 | E30: 955192812 | F30: 992033491
A31: 公司債─可轉換債 | B31: 0 | C31: 0 | D31: 0 | E31: 0 | F31: 0
A32: 長期借款─應付租賃及分期 | B32: 0 | C32: 0 | D32: 0 | E32: 0 | F32: 0
A33: 長期借款─政策性借款 | B33: 34534386 | C33: 41107480 | D33: 37059301 | E33: 39261057 | F33: 40954218
A34: 長期借款─重整債權 | B34: 0 | C34: 0 | D34: 0 | E34: 0 | F34: 0
A35: 長期借款─其他借款 | B35: 0 | C35: 0 | D35: 0 | E35: 0 | F35: 0
A36: 特別股負債 | B36: 0 | C36: 0 | D36: 0 | E36: 0 | F36: 0
A37: 管理薪酬─薪資獎金等 | B37: 0 | C37: 0 | D37: 0 | E37: 0 | F37: 0
A38: 管理薪酬─業務執行費 | B38: 0 | C38: 0 | D38: 0 | E38: 0 | F38: 0
A39: 管理薪酬─酬勞 (盈餘分 | B39: 0 | C39: 0 | D39: 0 | E39: 0 | F39: 0
A40: 管理薪酬─紅利 | B40: 0 | C40: 0 | D40: 0 | E40: 0 | F40: 0
A41: 管理薪酬─其他
A42: 管理階層薪酬總額
A43: 國外機構財務報表換算之兌換差額─OCI | B43: 64299685 | C43: 30220692 | D43: -226272181 | E43: -131987925 | F43: -60951662
A44: 權益工具投資之利益〈損失〉─OCI | B44: 5091916 | C44: -373521 | D44: 1608828 | E44: 1073236 | F44: 745272
A45: 備供出售金融資產未實現評價損益─OCI | B45: 1949865 | C45: 2053235 | D45: 2865452 | E45: 4042911 | F45: 4688956
A46: 現金流量避險─OCI
A47: 國外營運機構淨投資避險─OCI
A48: 重估價之利益〈損失〉─OCI | B48: 0 | C48: 0 | D48: 0 | E48: 0 | F48: 0
A49: 確定福利計畫精算利益〈損失〉─OCI | B49: 144365 | C49: 0 | D49: 0 | E49: 0 | F49: -693271
A50: 採用權益法認列之關聯企業及合資之其他綜合損益之份額─OCI
A51: 其他綜合損益─其他─OCI
A52: 與其他綜合損益組成部分相關之所得稅─OCI
A53: 其他綜合損益─OCI | B53: 71585646 | C53: 31896928 | D53: -222604953 | E53: -127403017 | F53: -56326519
A54: ROA(A)稅後息前 | B54: 19.32 | C54: 5.25 | D54: 11.14 | E54: 17.34 | F54: 23.59
A55: ROE(A)－稅後 | B55: 30.04 | C55: 8.08 | D55: 16.96 | E55: 25.86 | F55: 35.06
A56: ROA-綜合損益 | B56: 20.35 | C56: 5.68 | D56: 7.82 | E56: 15.41 | F56: 22.69
A57: ROE-綜合損益 | B57: 31.87 | C57: 8.8 | D57: 11.98 | E57: 23.13 | F57: 33.91

Sheet IFRS_IS(Q)
A1: 2330 台積電
A2: Data Field | B2: 2024-12-31 | C2: 2025-03-31 | D2: 2025-06-30 | E2: 2025-09-30 | F2: 2025-12-31
A3: 合併(Y/N) | B3: Y | C3: Y | D3: Y | E3: Y | F3: Y
A4: 營業收入淨額 | B4: 868461178 | C4: 839253664 | D4: 933791869 | E4: 989918318 | F4: 1046090421
A5: 營業成本 | B5: 356083027 | C5: 345858588 | D5: 386422631 | E5: 401375489 | F5: 394103585
A6: 營業毛利 | B6: 512378151 | C6: 493395076 | D6: 547369238 | E6: 588542829 | F6: 651986836
A7: 營業費用 | B7: 86338820 | C7: 85186056 | D7: 84508339 | E7: 87764445 | F7: 88190790
A8: 其他收益及費損淨額 | B8: -326418 | C8: -1128212 | D8: 562739 | E8: -93566 | F8: 1106367
A9: 營業利益 | B9: 425712913 | C9: 407080808 | D9: 463423638 | E9: 500684818 | F9: 564902413
A10: 利息收入 | B10: 24273340 | C10: 24859312 | D10: 25191998 | E10: 26180345 | F10: 29507426
A11: 租金收入 | B11: 0 | C11: 0 | D11: 0 | E11: 0 | F11: 0
A12: 其他收入-其他 | B12: 250823 | C12: 0 | D12: 0 | E12: 543770 | F12: 47959
A13: 其他收入 | B13: 24524163 | C13: 24910821 | D13: 25604041 | E13: 26260563 | F13: 29555385
A14: 處分不動產、廠房及設備利益 | B14: 0 | C14: 0 | D14: 0 | E14: 0 | F14: 0
A15: 處分投資利益 | B15: 7126 | C15: 0 | D15: 0 | E15: 0 | F15: 0
A16: 外幣兌換利益 | B16: 4416025 | C16: 3538319 | D16: -3538319 | E16: 5516800 | F16: 8314551
A17: 透過損益按公允價值衡量之金融資產（負債）利益 | B17: 0 | C17: 0 | D17: 8052726 | E17: -7059168 | F17: -993558
A18: 資產評價利益 | B18: 0 | C18: 0 | D18: 0 | E18: 0 | F18: 0
A19: 金融資產減損迴轉利益 | B19: 0 | C19: 0 | D19: 0 | E19: 0 | F19: 0
A20: 資產減損迴轉利益 | B20: 0 | C20: 0 | D20: 0 | E20: 0 | F20: 0
A21: 不動產、廠房及設備減損迴轉利益 | B21: 0 | C21: 0 | D21: 0 | E21: 0 | F21: 0
A22: 其他減損迴轉利益 | B22: 0 | C22: 0 | D22: 0 | E22: 0 | F22: 0
A23: 處分不動產、廠房及設備損失 | B23: 0 | C23: 0 | D23: 0 | E23: 0 | F23: 0
A24: 處分投資損失 | B24: 396615 | C24: 218226 | D24: 32605 | E24: 16770 | F24: 100579
A25: 外幣兌換損失 | B25: 0 | C25: 0 | D25: 1244213 | E25: -1244213 | F25: 0
A26: 透過損益按公允價值衡量之金融資產（負債）損失 | B26: 4473935 | C26: 3091058 | D26: -3091058 | E26: 0 | F26: 8083154
A27: 資產減損損失 | B27: 0 | C27: 0 | D27: 0 | E27: 0 | F27: 0
A28: 金融資產減損損失 | B28: 0 | C28: 0 | D28: 0 | E28: 0 | F28: 0
A29: 不動產、廠房及設備減損損失 | B29: 0 | C29: 0 | D29: 0 | E29: 0 | F29: 0
A30: 其他利益及損失-其他 | B30: 257693 | C30: -24645 | D30: 132165 | E30: 272135 | F30: 350528
A31: 其他利益及損失 | B31: -189706 | C31: 204390 | D31: 6460812 | E31: -42790 | F31: -512212
A32: 財務成本 | B32: 2523135 | C32: 2677274 | D32: 3691095 | E32: 2958568 | F32: 3043450
A33: 採權益法之關聯企業及合資損益 | B33: 1288408 | C33: 1368307 | D33: 1220948 | E33: 1424738 | F33: 1482601
A34: 營業外收入及支出 | B34: 23085091 | C34: 23814604 | D34: 29611566 | E34: 24684205 | F34: 27460788
A35: 稅前淨利 | B35: 448798004 | C35: 430895412 | D35: 493035204 | E35: 525369023 | F35: 592363201
A36: 所得稅費用 | B36: 74329116 | C36: 70162751 | D36: 95541780 | E36: 73613661 | F36: 86947868
A37: 合併總損益 | B37: 374468888 | C37: 360732661 | D37: 397493424 | E37: 451755362 | F37: 505415333
A38: 國外機構財務報表換算之兌換差額─OCI | B38: 40502886 | C38: 30220692 | D38: -256492873 | E38: 94284256 | F38: 71036263
A39: 權益工具投資之利益〈損失〉─OCI | B39: 479031 | C39: -373521 | D39: 1982349 | E39: -535592 | F39: -327964
A40: 備供出售金融資產未實現評價損益─OCI | B40: -3238694 | C40: 2053235 | D40: 812217 | E40: 1177459 | F40: 646045
A41: 現金流量避險─OCI
A42: 國外營運機構淨投資避險─OCI
A43: 重估價之利益〈損失〉─OCI | B43: 0 | C43: 0 | D43: 0 | E43: 0 | F43: 0
A44: 確定福利計畫精算利益〈損失〉─OCI | B44: 144365 | C44: 0 | D44: 0 | E44: 0 | F44: -693271
A45: 採用權益法認列之關聯企業及合資之其他綜合損益之份額─OCI
A46: 其他綜合損益─其他─OCI
A47: 與其他綜合損益組成部分相關之所得稅─OCI
A48: 其他綜合損益─OCI | B48: 37903377 | C48: 31896928 | D48: -254501881 | E48: 95201936 | F48: 71076498
A49: 本期綜合損益總額 | B49: 412372265 | C49: 392629589 | D49: 142991543 | E49: 546957298 | F49: 576491831
A50: 本期稅後淨利〈歸屬母公司股東〉 | B50: 374679727 | C50: 361564128 | D50: 398273102 | E50: 452301407 | F50: 505743990
A51: 每股盈餘 | B51: 14.45 | C51: 13.95 | D51: 15.36 | E51: 17.44 | F51: 19.51
A52: 營業毛利率 | B52: 59 | C52: 58.79 | D52: 58.62 | E52: 59.45 | F52: 62.33
A53: 營業利益率 | B53: 49.02 | C53: 48.51 | D53: 49.63 | E53: 50.58 | F53: 54
A54: 稅後淨利率 | B54: 43.12 | C54: 42.98 | D54: 42.57 | E54: 45.64 | F54: 48.31
A55: 營收成長率 | B55: 38.84 | C55: 41.61 | D55: 38.65 | E55: 30.31 | F55: 20.45
A56: 稅後淨利成長率 | B56: 57.14 | C56: 60.17 | D56: 60.5 | E56: 38.97 | F56: 34.97
